Workbook

Sheet Forside
B2: 1. Driftgren
B17: 2. Årstal

Sheet 1.1 Alle bedrifter
A1: Udtrukket: 09-10-2020 08:31:22 af LFjubp
A2: Denne udskrift kan indeholde fortrolige data og skal derfor behandles med særlig omhu og i forhold til gældende regler omkring datasikkerhed. Distribution til tredje part er ikke tilladt uden samtykke fra SEGES. Sker dette alligevel, kan SEGES ikke holdes ansvarlig
A3: Udvælgelse: (([norm_t_ejendom] >= 0 AND [norm_t_ejendom] <= 99999999999999999)) AND Godkendt = Ja AND Tilladelse IN (ØDB statistik) AND Opstilling = Statistik
A4: Gruppering: Afkastningsgrad
A6: Gruppering | B6: Alle | C6: Alle | D6: Alle | E6: Alle | F6: Alle | G6: Alle | H6: Alle | I6: Alle | J6: Alle | K6: Alle
A7: År | B7: 2020 | C7: 2019 | D7: 2018 | E7: 2017 | F7: 2016 | G7: 2015 | H7: 2014 | I7: 2013 | J7: 2012 | K7: 2011
A8: Antal | B8: 4566 | C8: 5308 | D8: 5877 | E8: 6650 | F8: 6644 | G8: 7006 | H8: 7214 | I8: 7442 | J8: 7544 | K8: 7715
A9: Antal vejet | B9: 17809 | C9: 25167.01 | D9: 26024.01 | E9: 26856.53 | F9: 28177.58 | G9: 29182.83 | H9: 29787.42 | I9: 30099.72 | J9: 31292.87 | K9: 31194.26
A10: Kredsnummer | B10: 285 | C10: 304 | D10: 309 | E10: 310 | F10: 307 | G10: 315 | H10: 313 | I10: 327 | J10: 316 | K10: 299
A11: Ejendomsnummer | B11: 3929 | C11: 3895 | D11: 3984 | E11: 3892 | F11: 3920 | G11: 3893 | H11: 3877 | I11: 3829 | J11: 3631 | K11: 3745
A12: Landbrugsareal, ha | B12: 137 | C12: 101 | D12: 98 | E12: 95 | F12: 91 | G12: 88 | H12: 86 | I12: 84 | J12: 82 | K12: 82
A13: Årskøer | B13: 32 | C13: 22 | D13: 22 | E13: 21 | F13: 20 | G13: 19 | H13: 19 | I13: 19 | J13: 19 | K13: 18
A14: Årssøer | B14: 58 | C14: 40 | D14: 40 | E14: 38 | F14: 35 | G14: 35 | H14: 34 | I14: 32 | J14: 32 | K14: 34
A15: Antal slagtesvin produceret | B15: 1051 | C15: 679 | D15: 744 | E15: 677 | F15: 687 | G15: 670 | H15: 677 | I15: 652 | J15: 652 | K15: 748
A16: Antal minktæver | B16: 90 | C16: 106 | D16: 130 | E16: 119 | F16: 114 | G16: 115 | H16: 116 | I16: 103 | J16: 94 | K16: 82
A17: Dyreenheder | B17: 114 | C17: 79 | D17: 82 | E17: 78 | F17: 77 | G17: 74 | H17: 76 | I17: 76 | J17: 73 | K17: 74
A18: Beregnet antal normtimer | B18: 3586 | C18: 2778 | D18: 2824 | E18: 2722 | F18: 2654 | G18: 2597 | H18: 2609 | I18: 2547 | J18: 2486 | K18: 2491
A20: Bruttoudbytte Planteavl inkl. IO | B20: 1409987 | C20: 1021710 | D20: 876728 | E20: 886776 | F20: 733772 | G20: 806566 | H20: 812167 | I20: 811686 | J20: 865604 | K20: 726289
A21: Bruttoudbytte Kvæg | B21: 1099862 | C21: 781934 | D21: 785037 | E21: 767509 | F21: 601154 | G21: 587702 | H21: 640645 | I21: 628491 | J21: 571955 | K21: 553144
A22: Bruttoudbytte Svin | B22: 1557265 | C22: 1106147 | D22: 792834 | E22: 905935 | F22: 842434 | G22: 682083 | H22: 720495 | I22: 770200 | J22: 765606 | K22: 754904
A23: Bruttoudbytte andre husdyr | B23: 295384 | C23: 209231 | D23: 249590 | E23: 286326 | F23: 270375 | G23: 346822 | H23: 424641 | I23: 587817 | J23: 480934 | K23: 349330
A24: Skovindtægter | B24: 6524 | C24: 5686 | D24: 6187 | E24: 5082 | F24: 3635 | G24: 4973 | H24: 0
A25: Maskinstationsindtægter | B25: 84228 | C25: 67728 | D25: 71928 | E25: 85307 | F25: 81659 | G25: 81200 | H25: 70040 | I25: 55432 | J25: 56129 | K25: 74296
A26: Andre landbrugsindtægter | B26: 170717 | C26: 93709 | D26: 98648 | E26: 125122 | F26: 87499 | G26: 85585 | H26: 93714 | I26: 77339 | J26: 74758 | K26: 91836
A27: Bruttoudbytte ialt | B27: 4623968 | C27: 3286146 | D27: 2880952 | E27: 3062057 | F27: 2620529 | G27: 2594931 | H27: 2761701 | I27: 2930965 | J27: 2814986 | K27: 2549798
A29: Stykomkostninger Mark | B29: -408539 | C29: -306320 | D29: -279288 | E29: -285310 | F29: -279800 | G29: -257995 | H29: -242762 | I29: -240639 | J29: -224051 | K29: -208374
A30: Korn inkl. IO | B30: -306583 | C30: -223181 | D30: -220704 | E30: -190141 | F30: -169751 | G30: -185092 | H30: -192839 | I30: -1130918 | J30: -1012436 | K30: -900548
A31: Færdigblanding mv. | B31: -983697 | C31: -682477 | D31: -717430 | E31: -661123 | F31: -639737 | G31: -628392 | H31: -699548
A32: Eget grovfoder inkl. IO | B32: -204720 | C32: -140239 | D32: -139017 | E32: -137681 | F32: -123197 | G32: -122523 | H32: -122845
A33: Øvrige stykomkostninger husdyr | B33: -221462 | C33: -155530 | D33: -155701 | E33: -146534 | F33: -136862 | G33: -134007 | H33: -134847 | I33: -124842 | J33: -117038 | K33: -113007
A34: Skovomkostninger | B34: -3677 | C34: -2865 | D34: -2641 | E34: -2717 | F34: -2958 | G34: -1869 | H34: 0
A35: Stykomkostninger i alt | B35: -2128677 | C35: -1510612 | D35: -1514782 | E35: -1423505 | F35: -1352305 | G35: -1329878 | H35: -1392840 | I35: -1496399 | J35: -1353525 | K35: -1221928
A37: Dækningsbidrag | B37: 2495290 | C37: 1775534 | D37: 1366170 | E37: 1638551 | F37: 1268224 | G37: 1265052 | H37: 1368861 | I37: 1434565 | J37: 1461461 | K37: 1327870
A39: Energi og brændstof | B39: -130706 | C39: -104438 | D39: -116806 | E39: -103155 | F39: -97650 | G39: -97273 | H39: -116312 | I39: -118240 | J39: -119531 | K39: -114437
A40: Maskinstation | B40: -205676 | C40: -148509 | D40: -141573 | E40: -133791 | F40: -125699 | G40: -118645 | H40: -120875 | I40: -115267 | J40: -115772 | K40: -105934
A41: Vedligeholdelse | B41: -268691 | C41: -181584 | D41: -179664 | E41: -172762 | F41: -160788 | G41: -154412 | H41: -158433 | I41: -155334 | J41: -144205 | K41: -139910
A42: Investeringer over driften | B42: -16001 | C42: -12753 | D42: -11343 | E42: -12592 | F42: -10460 | G42: -11682 | H42: -12544 | I42: -18671 | J42: -12336 | K42: -11725
A43: Lønomkostninger | B43: -372337 | C43: -255116 | D43: -254240 | E43: -238462 | F43: -210940 | G43: -208242 | H43: -211124 | I43: -185451 | J43: -157954 | K43: -155999
A44: Ejendomsskat og forsikringer | B44: -97503 | C44: -75449 | D44: -74396 | E44: -71050 | F44: -68727 | G44: -65164 | H44: -63934 | I44: -60004 | J44: -55675 | K44: -54740
A45: Diverse omkostninger | B45: -137590 | C45: -109531 | D45: -109107 | E45: -106589 | F45: -101807 | G45: -107761 | H45: -105676 | I45: -101749 | J45: -96069 | K45: -96256
A46: Kontante kapacitetsomkostninger | B46: -1228504 | C46: -887382 | D46: -887129 | E46: -838401 | F46: -776071 | G46: -763179 | H46: -788899 | I46: -754717 | J46: -701542 | K46: -679002
A48: Afskrivninger | B48: -444144 | C48: -333723 | D48: -337906 | E48: -332083 | F48: -321185 | G48: -304825 | H48: -304423 | I48: -285890 | J48: -267323 | K48: -263326
A49: Nedskrivninger | B49: -11582 | C49: -8977 | D49: -11075 | E49: -11092 | F49: -6232 | G49: -8821 | H49: -10450 | I49: -8944 | J49: -18403 | K49: -3809
A50: Tab/gevinst | B50: 22086 | C50: 5663 | D50: 13079 | E50: 6765 | F50: 9366 | G50: 10796 | H50: 11022 | I50: 13329 | J50: 8951 | K50: 7536
A51: Kapacitetsomkostninger i alt | B51: -1662144 | C51: -1224419 | D51: -1223031 | E51: -1174811 | F51: -1094123 | G51: -1066029 | H51: -1092750 | I51: -1036222 | J51: -978316 | K51: -938601
A53: Resultat af primær drift | B53: 833147 | C53: 551115 | D53: 143139 | E53: 463741 | F53: 174101 | G53: 199023 | H53: 276111 | I53: 398344 | J53: 483145 | K53: 389270
A56: Afkoblet EU-støtte mv. | B56: 308964 | C56: 234856 | D56: 236590 | E56: 226700 | F56: 221756 | G56: 222154 | H56: 223669 | I56: 218492 | J56: 219501 | K56: 210171
A58: Forpagtningsindtægt | B58: 56722 | C58: 44462 | D58: 46542 | E58: 39728 | F58: 35187 | G58: 29744 | H58: 29908 | I58: 24541 | J58: 20948 | K58: 20921
A59: Forpagtningsafgift | B59: -226180 | C59: -149553 | D59: -145748 | E59: -144622 | F59: -124756 | G59: -126710 | H59: -129134 | I59: -118170 | J59: -109667 | K59: -106305
A60: Renteindt, landbrug og fin.tilskud | B60: 15883 | C60: 10678 | D60: 12592 | E60: 11907 | F60: 11558 | G60: 12702 | H60: 15735 | I60: 13442 | J60: 12444 | K60: 13317
A61: Realiseret gevinst/tab finansaktiver | B61: -10110 | C61: -4276 | D61: -11418 | E61: -13457 | F61: -6974 | G61: -21606 | H61: -21046 | I61: -22057 | J61: -22760 | K61: -40589
A62: Renteudgifter, landbrug | B62: -269240 | C62: -232513 | D62: -238336 | E62: -249698 | F62: -251191 | G62: -257476 | H62: -276439 | I62: -260118 | J62: -301978 | K62: -305212
A63: Finansomkostninger ialt, landbrug | B63: -432926 | C63: -331201 | D63: -336368 | E63: -356144 | F63: -336177 | G63: -363346 | H63: -380975 | I63: -362362 | J63: -401012 | K63: -417866
A65: Driftsresultat | B65: 709186 | C65: 454770 | D65: 43362 | E65: 334297 | F65: 59680 | G65: 57831 | H65: 118804 | I65: 254501 | J65: 301599 | K65: 181629
A67: Ejerløn | B67: -383087 | C67: -389397 | D67: -395394 | E67: -395935 | F67: -216459 | G67: -208216 | H67: -209456 | I67: -216850 | J67: -215834 | K67: 0
A68: Korr. værdiændring stambes/foderbeh. | B68: 17661 | C68: -8778 | D68: -10376 | E68: -3759 | F68: -19824 | G68: -678 | H68: -3013
A69: Driftsresultat efter ejerløn mv. | B69: 343761 | C69: 56595 | D69: -362408 | E69: -65396 | F69: -176602 | G69: -151062 | H69: -93664
A71: Afskrivning immaterielle aktiver | B71: -5451 | C71: -4735 | D71: -5018 | E71: -4043 | F71: -4257 | G71: -716 | H71: -1315 | I71: -801 | J71: -674 | K71: -710
A72: Nedskrivning immaterielle aktiver | B72: -1714 | C72: -681 | D72: -1773 | E72: -1188 | F72: -1713 | G72: -5716 | H72: -68228 | I72: -53850 | J72: -39853 | K72: -97711
A73: Gevinst/tab immaterielle aktiver | B73: 1254 | C73: 10633 | D73: 15897 | E73: 12257 | F73: 13217 | G73: 12297 | H73: 25724 | I73: 22349 | J73: 2517 | K73: 9597
A74: Anden virksomhed og engangsposter | B74: 105361 | C74: 82511 | D74: 60435 | E74: 73176 | F74: 61561 | G74: 61040 | H74: 55823 | I74: 61945 | J74: 55399 | K74: 49180
A75: Renteindtægter, privat | B75: 8200 | C75: 9044 | D75: 10429 | E75: 8917 | F75: 8785 | G75: 9488 | H75: 5603 | I75: 5116 | J75: 5498 | K75: 6011
A76: Renteudgifter, privat | B76: -21711 | C76: -20135 | D76: -20929 | E76: -22842 | F76: -23393 | G76: -31416 | H76: -34385 | I76: -31004 | J76: -36543 | K76: -38628
A77: Urealiseret regulering værdipapirer | B77: 67667 | C77: 77793 | D77: -34910 | E77: 51956 | F77: 25031 | G77: 39268 | H77: 29805 | I77: 60821 | J77: 28160 | K77: -30599
A78: Urealiseret regulering gæld | B78: 3449 | C78: -3141 | D78: -3809 | E78: 1915 | F78: 505 | G78: 22437 | H78: -6895 | I78: 11630 | J78: -33135 | K78: -30237
A79: Værdiændring inv. ejendomme og tilknyttede virks. | B79: 97 | C79: -6 | D79: -156 | F79: 460 | G79: 0 | H79: 0
A81: Resultat før personlig indtjening | B81: 866118 | C81: 606045 | D81: 63590 | E81: 454166 | F81: 139877 | G81: 164411 | H81: 124911 | I81: 330679 | J81: 282960 | K81: 48562
A83: Private indtægter/omkostninger | B83: 354291 | C83: 402597 | D83: 382377 | E83: 373843 | F83: 354264 | G83: 370850 | H83: 359434 | I83: 356414 | J83: 350174 | K83: 337889
A85: Årets resultat før skat | B85: 1220409 | C85: 1008642 | D85: 445967 | E85: 828009 | F85: 494141 | G85: 535261 | H85: 484346 | I85: 687093 | J85: 633134 | K85: 386451
A87: Skat af årets resultat | B87: -441003 | C87: -361231 | D87: -179669 | E87: -276550 | F87: -180970 | G87: -174997 | H87: -178143 | I87: -239296 | J87: -189520 | K87: -140482
A89: BALANCE
A91: Fast ejendom | B91: 19437114 | C91: 15292367 | D91: 15184402 | E91: 14573368 | F91: 14381529 | G91: 13755805 | H91: 13542849 | I91: 13149899 | J91: 12767904 | K91: 12988807
A92: Stamplanter | B92: 1642 | C92: 814 | D92: 602 | E92: 455 | F92: 495 | G92: 0 | H92: 0
A93: Betalingsrettigheder EU | B93: 15585 | C93: 15176 | D93: 17902 | E93: 19268 | F93: 23122 | G93: 34366 | H93: 39073 | I93: 47356 | J93: 46786 | K93: 47116
A94: Mælkekvoter og andre leveringsrettigheder | B94: 11021 | C94: 8093 | D94: 6103 | E94: 6673 | F94: 6547 | G94: 10468 | H94: 10532 | I94: 75879 | J94: 120454 | K94: 160277
A95: Inventar og maskiner | B95: 1797097 | C95: 1283849 | D95: 1266585 | E95: 1287290 | F95: 1236963 | G95: 1237632 | H95: 1251475 | I95: 1200943 | J95: 1121717 | K95: 1149058
A96: Besætning | B96: 1140032 | C96: 881066 | D96: 825453 | E96: 819398 | F96: 803156 | G96: 729578 | H96: 745241 | I96: 765367 | J96: 743801 | K96: 686115
A97: Beholdning | B97: 847542 | C97: 581761 | D97: 534489 | E97: 548499 | F97: 489627 | G97: 520835 | H97: 497793 | I97: 493770 | J97: 485477 | K97: 429226
A98: Tilgodehavende | B98: 974857 | C98: 767024 | D98: 818439 | E98: 771174 | F98: 754600 | G98: 676583 | H98: 669776 | I98: 653245 | J98: 626671 | K98: 559178
A99: Andelskapital og financielle kontrakter | B99: 650368 | C99: 475484 | D99: 432799 | E99: 400734 | F99: 377663 | G99: 341858 | H99: 308375 | I99: 274520 | J99: 247452 | K99: 246127
A100: Landbrugsaktiver i alt | B100: 24875257 | C100: 19305634 | D100: 19086775 | E100: 18426859 | F100: 18073701 | G100: 17307126 | H100: 17065114 | I100: 16660979 | J100: 16160262 | K100: 16265904
A102: Fast ejendom udenfor landbrug | B102: 1469988 | C102: 1391278 | D102: 1386642 | E102: 1389317 | F102: 1413938 | G102: 1440725 | H102: 1377333 | I102: 335990 | J102: 339104 | K102: 335935
A103: Private aktiver | B103: 397086 | C103: 347155 | D103: 345571 | E103: 346105 | F103: 344141 | G103: 175593 | H103: 167303 | I103: 1137747 | J103: 1140379 | K103: 1120602
A104: Øvrige aktiver udenfor landbrug | B104: 190870 | C104: 137164 | D104: 158052 | E104: 153477 | F104: 146247 | G104: 183934 | H104: 192312 | I104: 187219 | J104: 161012 | K104: 179954
A105: Værdipapirer og indlån | B105: 1290402 | C105: 958275 | D105: 892040 | E105: 910119 | F105: 826900 | G105: 817759 | H105: 783237 | I105: 733256 | J105: 712927 | K105: 744420
A106: Hensættelser (positive) | B106: 35423 | C106: 29292 | D106: 37497 | E106: 37880 | F106: 46910 | G106: 54233 | H106: 57527
A108: Aktiver i alt | B108: 28259026 | C108: 22168798 | D108: 21906576 | E108: 21263757 | F108: 20851838 | G108: 19979370 | H108: 19642826 | I108: 19055191 | J108: 18513684 | K108: 18646815
A110: Ansvarlig lånekapital | B110: -38227 | C110: -30231 | D110: -26345
A111: Realkreditinstitutter | B111: -12263466 | C111: -9196969 | D111: -9083203 | E111: -8829422 | F111: -8654720 | G111: -8119871 | H111: -8178242 | I111: -7831740 | J111: -7737659 | K111: -7706409
A112: Pengeinstitutter | B112: -1425229 | C112: -1196731 | D112: -1309461 | E112: -1352286 | F112: -1447628 | G112: -1354097 | H112: -1381966 | I112: -1370066 | J112: -1326016 | K112: -1322612
A113: Pante- og gældsbreve | B113: -140729 | C113: -91322 | D113: -96359 | E113: -89087 | F113: -82170 | G113: -77376 | H113: -71587
A114: Anden langfristet gæld | B114: -208315 | C114: -138520 | D114: -118682 | E114: -136269 | F114: -147217 | G114: -15643 | H114: -11920
A115: Anden gæld | B115: -1494085 | C115: -1022848 | D115: -1032206 | E115: -1058558 | F115: -940333 | G115: -953537 | H115: -1019702 | I115: -969961 | J115: -967953 | K115: -915341
A116: Kassekredit | B116: -627373 | C116: -540992 | D116: -689749 | E116: -625692 | F116: -694501 | G116: -674530 | H116: -677689 | I116: -653100 | J116: -656782 | K116: -618351
A117: Gæld i alt | B117: -16197423 | C117: -12217612 | D117: -12356005 | E117: -12120701 | F117: -11966570 | G117: -11195053 | H117: -11341106 | I117: -10824867 | J117: -10688410 | K117: -10562713
A119: Hensættelser (negative) | B119: -3333769 | C119: -2673205 | D119: -2566687 | E119: -2497538 | F119: -2467853 | G119: -2246889 | H119: -2117906 | I119: -2066774 | J119: -1878436 | K119: -1939501
A121: Egenkapital | B121: 8727834 | C121: 7277981 | D121: 6983884 | E121: 6645518 | F121: 6417416 | G121: 6537428 | H121: 6183814 | I121: 6163550 | J121: 5946837 | K121: 6144601
A123: EGENKAPITALFORKLARING
A125: Resultat efter finansiering | B125: 801036 | C125: 526190 | D125: 93296 | E125: 393549 | F125: 106634 | G125: 96841 | H125: 145820 | I125: 290530 | J125: 325980 | K125: 198168
A126: Private indtægter | B126: 354291 | C126: 402597 | D126: 382377 | E126: 373843 | F126: 354264 | G126: 370850 | H126: 359434 | I126: 356414 | J126: 350174 | K126: 337889
A127: Resultat før regulering og skat | B127: 1155326 | C127: 928787 | D127: 475673 | E127: 767391 | F127: 460898 | G127: 467691 | H127: 505255 | I127: 646944 | J127: 676153 | K127: 536057
A129: Privat | B129: -247641 | C129: -255205 | D129: -239955 | E129: -250051 | F129: -248293 | G129: -251011 | H129: -251837 | I129: -272398 | J129: -262422 | K129: -263672
A130: Formueindtægter/-udgifter | B130: -17439 | C130: -14051 | D130: -13738 | E130: -12219 | F130: -17490 | G130: -32995 | H130: -29556 | I130: -29709 | J130: -24811 | K130: -28744
A131: Privat udtræk | B131: -265080 | C131: -269255 | D131: -253693 | E131: -262270 | F131: -265783 | G131: -284005 | H131: -281393 | I131: -288847 | J131: -277220 | K131: -274710
A133: Ud- og indbetaling interessenter | B133: 26460 | C133: -25279 | D133: -12673 | F133: -14176 | G133: -16313 | H133: -17619 | I133: -23404 | J133: -14439 | K133: -13769
A134: Betalt skat | B134: -277445 | C134: -234452 | D134: -173603 | E134: -196321 | F134: -147750 | G134: -163163 | H134: -159719 | I134: -176311 | J134: -148500 | K134: -139476
A135: Ændring i udskudt skat | B135: -163558 | C135: -126779 | D135: -6066 | E135: -80229 | F135: -33217 | G135: -11833 | H135: -18424 | I135: -62985 | J135: -41021 | K135: -1006
A136: Skat af årets resultat | B136: -441003 | C136: -361231 | D136: -179669 | E136: -276550 | F136: -180970 | G136: -174997 | H136: -178143 | I136: -239296 | J136: -189520 | K136: -140482
A138: Ændring af egenkapital fra drift, privat og skat | B138: 475704 | C138: 273022 | D138: 29639 | E138: 200480 | F138: -31 | G138: -7624 | H138: 28100 | I138: 95111 | J138: 195317 | K138: 120865
A139: Regulering ialt fra resultat | B139: 64986 | C139: 79860 | D139: -29551 | E139: 61064 | F139: 32783 | G139: 67570 | H139: -20909 | I139: 40149 | J139: -42984 | K139: -149660
A140: Værdireguleringer | B140: 103758 | C140: 55568 | D140: 46588 | E140: 91050 | F140: -27166 | G140: 41073 | H140: 127909 | I140: 61436 | J140: 25226 | K140: -388451
A141: Pensionsindbetaling | B141: -54207 | C141: -42713 | D141: -29229 | E141: -32239 | F141: -25654 | G141: -28609 | H141: -35788 | I141: -54434 | J141: -40190 | K141: -36370
A142: Øvrige egenkapitalbevægelser | B142: -157 | C142: 0 | D142: 0 | E142: 313 | F142: 0 | G142: 0 | H142: 0 | I142: 0 | J142: 0 | K142: 0
A144: Ændring af egenkapital | B144: 590398 | C144: 365740 | D144: 17230 | E144: 320221 | F144: -19608 | G144: 72410 | H144: 99311 | I144: 146104 | J144: 137523 | K144: -487097
A146: Egenkapital primo | B146: 8138001 | C146: 6913999 | D146: 6964118 | E146: 6325258 | F146: 6437100 | G146: 6466694 | H146: 6083975 | I146: 6019637 | J146: 5810037 | K146: 6631988
A148: Egenkapital ultimo | B148: 8727834 | C148: 7277981 | D148: 6983884 | E148: 6645518 | F148: 6417416 | G148: 6537428 | H148: 6183814 | I148: 6165741 | J148: 5947560 | K148: 6144892
A150: PENGEBINDING
A152: Årets resultat før skat | B152: 1220409 | C152: 1008642 | D152: 445967 | E152: 828009 | F152: 494141 | G152: 535261 | H152: 484346 | I152: 687093 | J152: 633134 | K152: 386451
A154: Værdiændring besætning/beholdning | B154: 108095 | C154: -76718 | D154: -12532 | E154: 11071 | F154: -41849 | G154: -11282 | H154: 0 | I154: 2734 | J154: -132639 | K154: -79632
A155: Afskrivninger m.v., landbrug | B155: 439551 | C155: 331820 | D155: 326795 | E155: 329382 | F155: 310805 | G155: 296984 | H155: 347670 | I155: 313806 | J155: 314819 | K155: 348369
A156: Afskrivninger andre erhverv | B156: 12191 | C156: 11144 | D156: 15534 | E156: 14903 | F156: 16616 | G156: 13593 | H156: 11284 | I156: 9862 | J156: 10292 | K156: 9834
A157: Regulering I/S | B157: -15510 | C157: -13322 | D157: -2638 | E157: -7569 | F157: -4182 | G157: 0 | H157: 0 | I157: 6432 | J157: 476 | K157: 461
A158: Gevinst/tab finansaktiver | B158: -2132 | C158: -2383 | D158: -2713 | E158: -4469 | F158: -3506 | G158: -1611 | H158: -1771 | I158: -1515 | J158: -2205 | K158: -1094
A159: Urealiseret regulering finansaktiver | B159: -67449 | C159: -77784 | D159: 34848 | E159: -52122 | F159: -25031 | G159: -39268 | H159: -29805 | I159: -60821 | J159: -28160 | K159: 30599
A160: Gevinst/tab gæld | B160: 1048 | C160: 11960 | D160: 6997 | E160: 5970 | F160: 1280 | G160: 12468 | H160: 6441 | I160: 2376 | J160: 6634 | K160: 6020
A161: Urealiseret regulering gæld | B161: -3449 | C161: 3141 | D161: 3809 | E161: 1915 | F161: -505 | G161: -22437 | H161: 6895 | I161: -11630 | J161: -33135 | K161: -30237
A162: Øvrige tilbageførsler | B162: -21502 | C162: -12098 | D162: -2369 | E162: -3812 | F162: -3995 | G162: 276 | H162: 442
A163: Tilbageførsel i alt | B163: 450815 | C163: 175759 | D163: 367732 | E163: 291439 | F163: 249632 | G163: 260005 | H163: 341155 | I163: 258511 | J163: 334991 | K163: 424426
A165: Betalt skat | B165: -274817 | C165: -234394 | D165: -173558 | E165: -196321 | F165: -147616 | G165: -163548 | H165: -158335 | I165: -176311 | J165: -148500 | K165: -139476
A166: Privat | B166: -248097 | C166: -256723 | D166: -239955 | E166: -250051 | F166: -248293 | G166: -251011 | H166: -251837 | I166: -272398 | J166: -262422 | K166: -263672
A167: Afskrivninger privat tlbf. | B167: 25834 | C167: 20394 | D167: 20630 | E167: 21457 | F167: 19514 | G167: 20341 | H167: 20710 | I167: 19756 | J167: 18067 | K167: 20060
A168: Formueindtægter/-udgifter | B168: -17439 | C168: -14051 | D168: -13738 | E168: -12219 | F168: -17490 | G168: -32995 | H168: -29556 | I168: -29709 | J168: -24811 | K168: -28744
A169: Pensionsindbetaling | B169: -54705 | C169: -43353 | D169: -29036 | E169: -32239 | F169: -24444 | G169: -29655 | H169: -38203 | I169: -54434 | J169: -40190 | K169: -36370
A170: Privat udtræk, skat og pension i alt | B170: -569225 | C170: -528127 | D170: -435657 | E170: -468586 | F170: -418329 | G170: -456867 | H170: -457222 | I170: -525391 | J170: -463846 | K170: -443033
A172: Indskud/udlodning mv interessentskaber/selskaber | B172: 34272 | C172: -17583 | D172: -9383 | E172: -22814 | F172: -17738 | G172: -17561 | H172: -19157 | I172: -23404 | J172: -14439 | K172: -13769
A174: Til invest og afdrag | B174: 1136299 | C174: 638692 | D174: 368659 | E174: 628047 | F174: 307706 | G174: 314085 | H174: 350977
A176: Besætning (realforskydning) | B176: -87645 | C176: 16035 | D176: 2363 | E176: -23496 | F176: -10194 | G176: -912 | H176: 42982 | I176: -6859 | J176: -67288 | K176: -76621
A177: Beholdninger (realforskydninger) | B177: -36389 | C177: -89408 | D177: 75303 | E177: -34960 | F177: 24902 | G177: -24932 | H177: 11365 | I177: 9606 | J177: -65334 | K177: -3011
A178: Flerårige afgrøder | B178: -10 | C178: 8 | D178: -50 | E178: 26 | F178: 15 | G178: 0 | H178: -6 | I178: -13 | J178: -17 | K178: 0
A180: Likviditet før anlægsinvesteringer | B180: 1012255 | C180: 565327 | D180: 446274 | E180: 569618 | F180: 322429 | G180: 288241 | H180: 405318 | I180: 426700 | J180: 371640 | K180: 288212
A182: Investeringer
A183: Jord | B183: -165538 | C183: -202841 | D183: -185843 | E183: -184611 | F183: -200005 | G183: -172007 | H183: -125520 | I183: -157934 | J183: -119409 | K183: -131329
A184: Immaterielle aktiver | B184: -2267 | C184: -2092 | D184: -1538 | E184: -1222 | F184: -1706 | G184: 95 | H184: -2623 | I184: -7132 | J184: -2966 | K184: -6122
A185: Grundforbedring | B185: -8811 | C185: -4403 | D185: -5414 | E185: -4135 | F185: -4923 | G185: -6186 | H185: -5898 | I185: -4908 | J185: -4534 | K185: -3644
A186: Stamplanter | B186: -205 | C186: -106 | D186: -39 | E186: 455 | F186: -112 | G186: 0 | H186: 0
A187: Driftsbygninger | B187: -125980 | C187: -74603 | D187: -95541 | E187: -105539 | F187: -114377 | G187: -109110 | H187: -139194 | I187: -113240 | J187: -119047 | K187: -107745
A188: Inventar markbrug | B188: -194846 | C188: -118440 | D188: -93816 | E188: -117325 | F188: -91682 | G188: -100450 | H188: -100607 | I188: -131849 | J188: -100541 | K188: -97973
A189: Inventar husdyrbrug | B189: -79499 | C189: -55319 | D189: -55900 | E189: -59571 | F189: -47073 | G189: -52457 | H189: -57744 | I189: -63861 | J189: -57692 | K189: -48879
A190: Inventar andet | B190: -5566 | C190: -3462 | D190: -2064 | E190: -6666 | F190: -3271 | G190: -5083 | H190: -3763 | I190: -383 | J190: -6333 | K190: -2641
A191: Beboelse, landbrug | B191: -43457 | C191: -31022 | D191: -35478 | E191: -33047 | F191: -37532 | G191: -42913 | H191: -37337 | I191: -61076 | J191: -41212 | K191: -53252
A192: Private aktiver | B192: -54560 | C192: -42097 | D192: -37324 | E192: 346105 | F192: -29570 | G192: -24963 | H192: -25990 | I192: -31371 | J192: -28721 | K192: -23007
A193: Aktiver udenfor landbrug | B193: -17065 | C193: -2919 | D193: -8011 | E193: -19887 | F193: -28748 | G193: -25418 | H193: -32181 | I193: -40648 | J193: -23772 | K193: -28653
A194: Investeringer ialt | B194: -697794 | C194: -537302 | D194: -520967 | E194: -568894 | F194: -558998 | G194: -538494 | H194: -530856 | I194: -612403 | J194: -504228 | K194: -503245
A196: Likviditetsoverskud/-behov | B196: 314460 | C196: 28025 | D196: -74693 | E196: 724 | F196: -236569 | G196: -250253 | H196: -125538 | I196: -185704 | J196: -132588 | K196: -215033
A198: Ændring finansaktiver og gæld
A199: Tilgodehav. og værdipapirer | B199: -82438 | C199: -63779 | D199: -15410 | E199: -77117 | F199: -16513 | G199: 51287 | H199: -66652 | I199: -22619 | J199: -86717 | K199: -35591
A200: Realkreditinstitutter | B200: -17733 | C200: 86266 | D200: 49960 | E200: -8829422 | F200: 162167 | G200: 145961 | H200: 112743 | I200: -7831740 | J200: -7737659 | K200: -7706409
A201: Pengeinstitutter lån, netto | B201: -242044 | C201: -62024 | D201: -4976 | E201: -16976 | F201: 34263 | G201: 25196 | H201: 37826 | I201: 75097 | J201: 23777 | K201: 36131
A202: Anden gæld | B202: 90174 | C202: 124238 | D202: -30618 | E202: -1058558 | F202: 18637 | G202: -23084 | H202: 49210 | I202: -969961 | J202: -967953 | K202: -915341
A203: Kassekredit, ændring | B203: -48181 | C203: -104974 | D203: 78615 | E203: -66688 | F203: 32498 | G203: 45314 | H203: 4843 | I203: 41780 | J203: 22234 | K203: 52783
A204: Ændring hensættelser | B204: -876 | C204: 102 | D204: -84 | E204: -134 | F204: -20 | G204: 883 | H204: 1520 | I204: 20 | J204: 283 | K204: -15
A206: Likviditetsanvendelse/fremskaffelse | B206: -301097 | C206: -20170 | D206: 77488 | E206: 4029 | F206: 231033 | G206: 228875 | H206: 126533 | I206: 193336 | J206: 134146 | K206: 219044
A208: Konsolideringsanalyse
A209: Resultat efter finansiering | B209: 801037 | C209: 526191 | D209: 93298 | E209: 393549 | F209: 106637 | G209: 0 | H209: 0
A210: Private indtægter/omkostninger | B210: 354291 | C210: 402597 | D210: 382377 | E210: 373843 | F210: 354264 | G210: 0 | H210: 0
A211: tilbf. værdiændr. stambesætning mm | B211: -10423 | C211: -20511 | D211: -14048 | E211: -9190 | F211: -26364 | G211: 0 | H211: 0
A212: Beregnet skat | B212: -410996 | C212: -338844 | D212: -178618 | E212: -251308 | F212: -157303 | G212: 0 | H212: 0
A213: Privat udtræk | B213: -265536 | C213: -270773 | D213: -253693 | E213: -262270 | F213: -265774 | G213: 0 | H213: 0
A214: Pensionsindbetaling | B214: -54705 | C214: -43353 | D214: -29036 | E214: -32239 | F214: -24443 | G214: 0 | H214: 0
A215: Konsolidering | B215: 413667 | C215: 255309 | D215: 280 | E215: 211910 | F215: -13023 | G215: -43704 | H215: 0
A217: Nøgletal - konsolidering | E217: 0
A218: Ændring i resultat - nulkonsolidering | B218: -703126 | C218: -471539 | D218: -71645 | E218: -344157 | F218: -22829 | G218: 0 | H218: 0
A219: nulpunktsrente pct | B219: 293610.21 | C219: -533232.74 | D219: -606561.35 | E219: -1204445.07 | F219: -681312.98 | G219: 0 | H219: 0
A220: nulpunktsmælkepris kr/kg EKM | B220: 0.33 | C220: 0.21 | D220: 0.28 | E220: 1262.57 | F220: 2325 | G220: 0 | H220: 0
A221: Nulpunktspris fravænnede grise | B221: 1 | C221: 1 | D221: 1 | E221: -22660 | F221: -9127 | G221: 0 | H221: 0
A222: Nulpunktspris smågrise | B222: 16 | C222: 12 | D222: 16 | E222: -8857 | F222: -2260 | G222: 0 | H222: 0
A223: Nulpunktspris slagtesvin kg | B223: 0.52 | C223: 0.58 | D223: 0.54 | E223: -5.11 | F223: 2.34 | G223: 0 | H223: 0
A224: Nulpunktspris minkskind
A226: Øknomiske nøgletal
A227: Virksomhedens afkast, pct. | B227: 0.7 | C227: -2.5 | D227: =(D53+D74+D56+D67+D58+D59)*100/(D108-D103-D105) -> -0.2633707106 | E227: =(E53+E74+E56+E67+E58+E59)*100/(E108-E103-E105) -> 1.313445291 | F227: 0.769226978 | G227: 0.9324493425 | H227: 1.320978076 | I227: 2.143261002 | J227: 2.721979057 | K227: 3.356238514 | L227: 2.4
A228: Virksomhedens overskudsmargin, pct | B228: -16.4 | C228: -64 | D228: =(D53+D74+D56+D67+D58+D59)*100/D27 -> -1.889514299 | E228: =(E53+E74+E56+E67+E58+E59)*100/E27 -> 8.582074076 | F228: 5.777077834 | G228: 6.822339399 | H228: 8.940902726 | I228: 12.56589553 | J228: 16.10992026 | K228: 22.08947532
A229: Dækningsgrad, pct | B229: 58.5 | C229: 54.2 | D229: =D37*100/D27 -> 47.42078313 | E229: =E37*100/E27 -> 53.51144672 | F229: 48.39572468 | G229: 48.75089164 | H229: 49.56586539 | I229: 48.94514264 | J229: 51.91716762 | K229: 52.07745868 | L229: 53.5
A230: Virksomhedens afkast til egenkapital, pct | B230: =(B209+B67)*100/B148 -> 4.788702443 | C230: =(C209+C67)*100/C148 -> 1.87955973 | D230: -4.325615947 | E230: -0.03590389794 | F230: -1.711311843 | G230: -3.184983452 | H230: -3.387165267 | I230: -3.517014419 | J230: -3.628950359
A231: Soliditetsgrad, pct | B231: 36.3 | C231: 39.3 | D231: =D148*100/D108 -> 31.88030845 | E231: =E148*100/E108 -> 31.25279319 | F231: 30.77626059 | G231: 32.7208916 | H231: 31.48128482 | I231: 32.35727734 | J231: 32.12521074 | K231: 32.95411039 | L231: 38.3
A232: Rentedækningsgrad
A234: Bilag 1: Produktionstekniske oplysninger, planteavl | K234: 0
A236: Gruppering | B236: Alle | C236: Alle | D236: Alle | E236: Alle | F236: Alle | G236: Alle | H236: Alle | I236: Alle | J236: Alle | K236: Alle
A237: År | B237: 2020 | C237: 2019 | D237: 2018 | E237: 2017 | F237: 2016 | G237: 2015 | H237: 2014 | I237: 2013 | J237: 2012 | K237: 2011
A239: Afgrødefordeling, ha
A240: Vårbyg, ha | B240: 33.7 | C240: 22.3 | D240: 30.1 | E240: 22.5 | F240: 23.4 | G240: 19.7 | H240: 17.8 | I240: 20.9 | J240: 21.6 | K240: 17.1
A241: Vinterbyg, ha | B241: 5.2 | C241: 4.2 | D241: 3.4 | E241: 4.8 | F241: 3.9 | G241: 3.9 | H241: 3.9 | I241: 3.3 | J241: 3.3 | K241: 4
A242: Vårhvede | B242: 0.9 | C242: 0.6 | D242: 1.2 | E242: 0.6 | F242: 0.6 | G242: 0.6 | H242: 0.7 | I242: 1.2 | J242: 0.9 | K242: 0.7
A243: Vinterhvede, ha | B243: 28.4 | C243: 24.2 | D243: 16.4 | E243: 22.4 | F243: 20.6 | G243: 21.6 | H243: 21.9 | I243: 17.6 | J243: 18 | K243: 22.8
A244: Triticale, ha | B244: 0.3 | C244: 0.3 | D244: 0.2 | E244: 0.3 | F244: 0.3 | G244: 0.5 | H244: 0.6 | I244: 0.5 | J244: 0.8 | K244: 1
A245: Rug, ha | B245: 5.7 | C245: 5.4 | D245: 3.2 | E245: 3.9 | F245: 3.3 | G245: 3.9 | H245: 3.3 | I245: 2.6 | J245: 1.8 | K245: 1.6
A246: Havre, ha | B246: 4.1 | C246: 1.9 | D246: 2.9 | E246: 2.1 | F246: 1.8 | G246: 1.2 | H246: 1.2 | I246: 1.8 | J246: 1.9 | K246: 1.4
A247: Kernemajs/majs til modenhed, ha | B247: 0.4 | C247: 0.3 | D247: 0.2 | E247: 0.2 | F247: 0.2 | G247: 0.2 | H247: 0.3 | I247: 0.3 | J247: 0.3 | K247: 0.4
A248: Blandsæd | B248: 0.3 | C248: 0.2 | D248: 0.2 | E248: 0.2 | F248: 0.3 | G248: 0.2 | H248: 0.3 | I248: 0.4 | J248: 0.6 | K248: 0.5
A249: Korn areal, ha | B249: 79 | C249: 59.3 | D249: 57.8 | E249: 56.9 | F249: 54.4 | G249: 51.7 | H249: 49.8 | I249: 48.7 | J249: 49.1 | K249: 49.5
A252: Græsfrø, ha | B252: 0.5 | C252: 0.3 | D252: 0.4 | E252: 0.3 | F252: 0.4 | G252: 0.4 | H252: 0.4 | I252: 0.4 | J252: 0.4 | K252: 0.7
... 514 more rows

Sheet 1.2 Alle konv
A1: Udtrukket: 09-10-2020 08:35:40 af LFjubp
A2: Denne udskrift kan indeholde fortrolige data og skal derfor behandles med særlig omhu og i forhold til gældende regler omkring datasikkerhed. Distribution til tredje part er ikke tilladt uden samtykke fra SEGES. Sker dette alligevel, kan SEGES ikke holdes ansvarlig
A3: Udvælgelse: (([norm_t_ejendom] >= 0 AND [norm_t_ejendom] <= 99999999999999999)) AND (([006410] IN (0,1,3))) AND Godkendt = Ja AND Tilladelse IN (ØDB statistik) AND Opstilling = Statistik
A4: Gruppering: Afkastningsgrad
A6: Gruppering | B6: Alle | C6: Alle | D6: Alle | E6: Alle | F6: Alle | G6: Alle | H6: Alle | I6: Alle | J6: Alle | K6: Alle
A7: År | B7: 2020 | C7: 2019 | D7: 2018 | E7: 2017 | F7: 2016 | G7: 2015 | H7: 2014 | I7: 2013 | J7: 2012 | K7: 2011
A8: Antal | B8: 4142 | C8: 4836 | D8: 5437 | E8: 6162 | F8: 6239 | G8: 6593 | H8: 6778 | I8: 6988 | J8: 7066 | K8: 7201
A9: Antal vejet | B9: 16452.11 | C9: 23373.96 | D9: 24369.7 | E9: 25437.3 | F9: 26746.83 | G9: 27795.83 | H9: 28332.84 | I9: 28630.69 | J9: 29757.28 | K9: 29661.59
A10: Kredsnummer | B10: 286 | C10: 304 | D10: 309 | E10: 311 | F10: 309 | G10: 316 | H10: 313 | I10: 329 | J10: 317 | K10: 298
A11: Ejendomsnummer | B11: 3916 | C11: 3865 | D11: 3960 | E11: 3874 | F11: 3901 | G11: 3863 | H11: 3840 | I11: 3811 | J11: 3618 | K11: 3733
A12: Landbrugsareal, ha | B12: 135 | C12: 100 | D12: 98 | E12: 95 | F12: 90 | G12: 87 | H12: 86 | I12: 83 | J12: 81 | K12: 81
A13: Årskøer | B13: 30 | C13: 21 | D13: 21 | E13: 20 | F13: 19 | G13: 18 | H13: 18 | I13: 18 | J13: 18 | K13: 17
A14: Årssøer | B14: 62 | C14: 42 | D14: 42 | E14: 40 | F14: 37 | G14: 37 | H14: 36 | I14: 34 | J14: 34 | K14: 35
A15: Antal slagtesvin produceret | B15: 1115 | C15: 714 | D15: 778 | E15: 706 | F15: 717 | G15: 695 | H15: 706 | I15: 681 | J15: 683 | K15: 782
A16: Antal minktæver | B16: 97 | C16: 113 | D16: 138 | E16: 125 | F16: 120 | G16: 121 | H16: 121 | I16: 108 | J16: 98 | K16: 86
A17: Dyreenheder | B17: 114 | C17: 79 | D17: 82 | E17: 77 | F17: 77 | G17: 74 | H17: 76 | I17: 76 | J17: 73 | K17: 74
A18: Beregnet antal normtimer | B18: 3574 | C18: 2771 | D18: 2830 | E18: 2718 | F18: 2652 | G18: 2596 | H18: 2603 | I18: 2540 | J18: 2479 | K18: 2491
A20: Bruttoudbytte Planteavl inkl. IO | B20: 1428150 | C20: 1025590 | D20: 884405 | E20: 886415 | F20: 726539 | G20: 811459 | H20: 814226 | I20: 813656 | J20: 873486 | K20: 729249
A21: Bruttoudbytte Kvæg | B21: 1018430 | C21: 726146 | D21: 741747 | E21: 723589 | F21: 559663 | G21: 555334 | H21: 606320 | I21: 596895 | J21: 541319 | K21: 522775
A22: Bruttoudbytte Svin | B22: 1644047 | C22: 1162624 | D22: 821840 | E22: 938087 | F22: 872425 | G22: 703680 | H22: 749689 | I22: 802988 | J22: 797859 | K22: 787602
A23: Bruttoudbytte andre husdyr | B23: 294237 | C23: 206468 | D23: 252025 | E23: 277277 | F23: 262523 | G23: 343827 | H23: 423050 | I23: 595510 | J23: 486780 | K23: 351533
A24: Skovindtægter | B24: 6626 | C24: 5850 | D24: 6311 | E24: 5260 | F24: 3706 | G24: 5071 | H24: 0
A25: Maskinstationsindtægter | B25: 84693 | C25: 68583 | D25: 74052 | E25: 87060 | F25: 83081 | G25: 82147 | H25: 71293 | I25: 56383 | J25: 57315 | K25: 76059
A26: Andre landbrugsindtægter | B26: 162186 | C26: 84618 | D26: 92076 | E26: 119778 | F26: 82197 | G26: 82488 | H26: 92067 | I26: 75624 | J26: 72550 | K26: 88783
A27: Bruttoudbytte ialt | B27: 4638369 | C27: 3279879 | D27: 2872457 | E27: 3037466 | F27: 2590134 | G27: 2584006 | H27: 2756644 | I27: 2941056 | J27: 2829309 | K27: 2556002
A29: Stykomkostninger Mark | B29: -426845 | C29: -318038 | D29: -288895 | E29: -293732 | F29: -287105 | G29: -264991 | H29: -249168 | I29: -246193 | J29: -229765 | K29: -213927
A30: Korn inkl. IO | B30: -313918 | C30: -226019 | D30: -223590 | E30: -191325 | F30: -170658 | G30: -186822 | H30: -193654 | I30: -1132553 | J30: -1014689 | K30: -903851
A31: Færdigblanding mv. | B31: -989243 | C31: -679593 | D31: -719179 | E31: -657799 | F31: -641080 | G31: -632823 | H31: -706338
A32: Eget grovfoder inkl. IO | B32: -180194 | C32: -125508 | D32: -125447 | E32: -126954 | F32: -113179 | G32: -113625 | H32: -113341
A33: Øvrige stykomkostninger husdyr | B33: -223834 | C33: -156942 | D33: -157310 | E33: -147353 | F33: -137476 | G33: -135082 | H33: -135592 | I33: -125356 | J33: -117233 | K33: -113098
A34: Skovomkostninger | B34: -3737 | C34: -2919 | D34: -2682 | E34: -2397 | F34: -2930 | G34: -1782 | H34: 0
A35: Stykomkostninger i alt | B35: -2137772 | C35: -1509018 | D35: -1517104 | E35: -1419560 | F35: -1352428 | G35: -1335125 | H35: -1398092 | I35: -1504102 | J35: -1361688 | K35: -1230876
A37: Dækningsbidrag | B37: 2500598 | C37: 1770861 | D37: 1355353 | E37: 1617906 | F37: 1237707 | G37: 1248881 | H37: 1358552 | I37: 1436955 | J37: 1467621 | K37: 1325126
A39: Energi og brændstof | B39: -132101 | C39: -105045 | D39: -117320 | E39: -103630 | F39: -98144 | G39: -97906 | H39: -116509 | I39: -118613 | J39: -120375 | K39: -115140
A40: Maskinstation | B40: -196943 | C40: -141807 | D40: -136924 | E40: -129575 | F40: -119309 | G40: -115786 | H40: -117850 | I40: -112233 | J40: -112792 | K40: -102545
A41: Vedligeholdelse | B41: -268093 | C41: -180667 | D41: -178863 | E41: -171568 | F41: -159163 | G41: -153784 | H41: -157698 | I41: -155148 | J41: -144051 | K41: -139567
A42: Investeringer over driften | B42: -16095 | C42: -12628 | D42: -11006 | E42: -12291 | F42: -10132 | G42: -11525 | H42: -12449 | I42: -18987 | J42: -12342 | K42: -11667
A43: Lønomkostninger | B43: -372684 | C43: -253455 | D43: -254649 | E43: -237803 | F43: -210509 | G43: -209113 | H43: -212029 | I43: -185569 | J43: -158139 | K43: -156576
A44: Ejendomsskat og forsikringer | B44: -97785 | C44: -75819 | D44: -75087 | E44: -71480 | F44: -69005 | G44: -65526 | H44: -64227 | I44: -60270 | J44: -55887 | K44: -54951
A45: Diverse omkostninger | B45: -137342 | C45: -109322 | D45: -109419 | E45: -106418 | F45: -101526 | G45: -107862 | H45: -105135 | I45: -101709 | J45: -96028 | K45: -95967
A46: Kontante kapacitetsomkostninger | B46: -1221043 | C46: -878742 | D46: -883268 | E46: -832765 | F46: -767788 | G46: -761503 | H46: -785897 | I46: -752529 | J46: -699615 | K46: -676414
A48: Afskrivninger | B48: -444284 | C48: -333755 | D48: -339035 | E48: -331069 | F48: -319703 | G48: -304079 | H48: -303617 | I48: -285557 | J48: -266481 | K48: -262199
A49: Nedskrivninger | B49: -11958 | C49: -9406 | D49: -11560 | E49: -11587 | F49: -6225 | G49: -9261 | H49: -10880 | I49: -9135 | J49: -19247 | K49: -3739
A50: Tab/gevinst | B50: 16486 | C50: 5227 | D50: 13389 | E50: 6896 | F50: 9316 | G50: 10986 | H50: 10859 | I50: 13378 | J50: 9205 | K50: 7912
A51: Kapacitetsomkostninger i alt | B51: -1660799 | C51: -1216675 | D51: -1220474 | E51: -1168525 | F51: -1084400 | G51: -1063857 | H51: -1089535 | I51: -1033843 | J51: -976137 | K51: -934441
A53: Resultat af primær drift | B53: 839799 | C53: 554187 | D53: 134879 | E53: 449381 | F53: 153306 | G53: 185025 | H53: 269017 | I53: 403112 | J53: 491483 | K53: 390686
A56: Afkoblet EU-støtte mv. | B56: 304875 | C56: 231143 | D56: 234719 | E56: 224921 | F56: 220551 | G56: 220819 | H56: 220573 | I56: 216112 | J56: 217292 | K56: 207732
A58: Forpagtningsindtægt | B58: 56800 | C58: 44436 | D58: 46739 | E58: 39843 | F58: 34324 | G58: 29723 | H58: 30418 | I58: 24835 | J58: 20951 | K58: 20919
A59: Forpagtningsafgift | B59: -220012 | C59: -144293 | D59: -143593 | E59: -141571 | F59: -123096 | G59: -126035 | H59: -128379 | I59: -117389 | J59: -108789 | K59: -105579
A60: Renteindt, landbrug og fin.tilskud | B60: 16132 | C60: 10434 | D60: 12538 | E60: 11710 | F60: 11257 | G60: 12510 | H60: 15645 | I60: 13377 | J60: 12361 | K60: 12966
A61: Realiseret gevinst/tab finansaktiver | B61: -9758 | C61: -5145 | D61: -12279 | E61: -13081 | F61: -6521 | G61: -22493 | H61: -20830 | I61: -22290 | J61: -22551 | K61: -39127
A62: Renteudgifter, landbrug | B62: -265388 | C62: -229731 | D62: -235869 | E62: -247789 | F62: -249137 | G62: -256211 | H62: -274595 | I62: -258302 | J62: -300254 | K62: -302787
A63: Finansomkostninger ialt, landbrug | B63: -422226 | C63: -324299 | D63: -332464 | E63: -350888 | F63: -333172 | G63: -362507 | H63: -377741 | I63: -359769 | J63: -398281 | K63: -413607
A65: Driftsresultat | B65: 722448 | C65: 461031 | D65: 37134 | E65: 323414 | F65: 40686 | G65: 43337 | H65: 111849 | I65: 259478 | J65: 310455 | K65: 184868
A67: Ejerløn | B67: -382718 | C67: -388757 | D67: -394357 | E67: -395009 | F67: -217453 | G67: -208198 | H67: -208739 | I67: -216287 | J67: -215570 | K67: 0
A68: Korr. værdiændring stambes/foderbeh. | B68: 16428 | C68: -9747 | D68: -11157 | E68: -3395 | F68: -20741 | G68: -1786 | H68: -3216
A69: Driftsresultat efter ejerløn mv. | B69: 356158 | C69: 62527 | D69: -368380 | E69: -74991 | F69: -197508 | G69: -166647 | H69: -100106
A71: Afskrivning immaterielle aktiver | B71: -5415 | C71: -4687 | D71: -5018 | E71: -4016 | F71: -4115 | G71: -715 | H71: -1327 | I71: -815 | J71: -688 | K71: -725
A72: Nedskrivning immaterielle aktiver | B72: -1796 | C72: -97 | D72: -1813 | E72: -1011 | F72: -1414 | G72: -5761 | H72: -66092 | I72: -51687 | J72: -38027 | K72: -94267
A73: Gevinst/tab immaterielle aktiver | B73: 11158 | C73: 10855 | D73: 16902 | E73: 11360 | F73: 14415 | G73: 12377 | H73: 26924 | I73: 24099 | J73: 2596 | K73: 8946
A74: Anden virksomhed og engangsposter | B74: 107007 | C74: 83004 | D74: 59864 | E74: 74042 | F74: 62911 | G74: 61362 | H74: 55132 | I74: 62347 | J74: 54639 | K74: 49020
A75: Renteindtægter, privat | B75: 8499 | C75: 9463 | D75: 10456 | E75: 9042 | F75: 8081 | G75: 9618 | H75: 5628 | I75: 5141 | J75: 5346 | K75: 5691
A76: Renteudgifter, privat | B76: -21520 | C76: -19994 | D76: -20761 | E76: -22805 | F76: -23090 | G76: -31275 | H76: -34155 | I76: -30721 | J76: -35943 | K76: -36708
A77: Urealiseret regulering værdipapirer | B77: 70156 | C77: 83190 | D77: -33412 | E77: 53437 | F77: 33469 | G77: 40124 | H77: 30168 | I77: 61962 | J77: 26157 | K77: -29651
A78: Urealiseret regulering gæld | B78: 3506 | C78: -3176 | D78: -3353 | E78: 1901 | F78: 40 | G78: 22085 | H78: -6275 | I78: 11594 | J78: -32833 | K78: -30046
A79: Værdiændring inv. ejendomme og tilknyttede virks. | B79: 105 | C79: -6 | D79: -166 | F79: 558 | G79: 0 | H79: 0
A81: Resultat før personlig indtjening | B81: 893911 | C81: 619573 | D81: 59899 | E81: 445065 | F81: 131540 | G81: 151044 | H81: 121826 | I81: 341368 | J81: 291693 | K81: 57161
A83: Private indtægter/omkostninger | B83: 354832 | C83: 403717 | D83: 381217 | E83: 371975 | F83: 351259 | G83: 368723 | H83: 358632 | I83: 355169 | J83: 348262 | K83: 337729
A85: Årets resultat før skat | B85: 1248744 | C85: 1023290 | D85: 441116 | E85: 817040 | F85: 482800 | G85: 519767 | H85: 480458 | I85: 696537 | J85: 639955 | K85: 394890
A87: Skat af årets resultat | B87: -447427 | C87: -367272 | D87: -175561 | E87: -271886 | F87: -172733 | G87: -170188 | H87: -177724 | I87: -241132 | J87: -193999 | K87: -142448
A89: BALANCE
A91: Fast ejendom | B91: 19639300 | C91: 15388014 | D91: 15314331 | E91: 14648123 | F91: 14417173 | G91: 13799425 | H91: 0 | I91: 13155848 | J91: 12765981 | K91: 12972824
A92: Stamplanter | B92: 1164 | C92: 710 | D92: 636 | E92: 470 | F92: 521 | G92: 0 | H92: 0
A93: Betalingsrettigheder EU | B93: 15353 | C93: 15198 | D93: 17949 | E93: 19154 | F93: 22916 | G93: 34063 | H93: 38443 | I93: 46484 | J93: 45793 | K93: 45767
A94: Mælkekvoter og andre leveringsrettigheder | B94: 11766 | C94: 8538 | D94: 6381 | E94: 6890 | F94: 6740 | G94: 10811 | H94: 10829 | I94: 73997 | J94: 115479 | K94: 153373
A95: Inventar og maskiner | B95: 1801397 | C95: 1280775 | D95: 1272321 | E95: 1287132 | F95: 1232799 | G95: 1238249 | H95: 1253010 | I95: 1203660 | J95: 1123146 | K95: 1148087
A96: Besætning | B96: 1158071 | C96: 894743 | D96: 833567 | E96: 825243 | F96: 810803 | G96: 734975 | H96: 752347 | I96: 772574 | J96: 749996 | K96: 691449
A97: Beholdning | B97: 863605 | C97: 587613 | D97: 542747 | E97: 551338 | F97: 490508 | G97: 525051 | H97: 500285 | I97: 498992 | J97: 488872 | K97: 430736
A98: Tilgodehavende | B98: 969613 | C98: 762100 | D98: 806065 | E98: 764898 | F98: 719419 | G98: 674040 | H98: 678235 | I98: 658158 | J98: 625917 | K98: 540132
A99: Andelskapital og financielle kontrakter | B99: 666331 | C99: 488196 | D99: 440799 | E99: 404210 | F99: 383471 | G99: 345594 | H99: 312464 | I99: 278298 | J99: 250812 | K99: 249213
A100: Landbrugsaktiver i alt | B100: 25126599 | C100: 19425886 | D100: 19234794 | E100: 18507459 | F100: 18084349 | G100: 17362208 | H100: 17106943 | I100: 16688011 | J100: 16165996 | K100: 16231580
A102: Fast ejendom udenfor landbrug | B102: 1475873 | C102: 1401224 | D102: 1398677 | E102: 1398648 | F102: 1420198 | G102: 1443691 | H102: 0 | I102: 341970 | J102: 346203 | K102: 337891
A103: Private aktiver | B103: 398803 | C103: 350280 | D103: 349824 | E103: 347554 | F103: 344796 | G103: 176466 | H103: 167600 | I103: 1131619 | J103: 1137654 | K103: 1119918
A104: Øvrige aktiver udenfor landbrug | B104: 190780 | C104: 137883 | D104: 159513 | E104: 152468 | F104: 149747 | G104: 180154 | H104: 188826 | I104: 184291 | J104: 159463 | K104: 177276
A105: Værdipapirer og indlån | B105: 1340010 | C105: 998032 | D105: 909457 | E105: 931376 | F105: 828177 | G105: 829430 | H105: 793896 | I105: 739971 | J105: 697569 | K105: 712537
A106: Hensættelser (positive) | B106: 36934 | C106: 30695 | D106: 38727 | E106: 38385 | F106: 47532 | G106: 54885 | H106: 57812
A108: Aktiver i alt | B108: 28569000 | C108: 22344000 | D108: 22090992 | E108: 21375890 | F108: 20874800 | G108: 20046835 | H108: 19691601 | I108: 19085862 | J108: 18506885 | K108: 18579202
A110: Ansvarlig lånekapital | B110: -38803 | C110: -30842 | D110: -27179
A111: Realkreditinstitutter | B111: -12326054 | C111: -9188708 | D111: -9104342 | E111: -8844333 | F111: -8627906 | G111: -8115997 | H111: -8156685 | I111: -7807442 | J111: -7707787 | K111: -7674074
A112: Pengeinstitutter | B112: -1414269 | C112: -1181586 | D112: -1301446 | E112: -1336489 | F112: -1408558 | G112: -1346082 | H112: -1374739 | I112: -1365843 | J112: -1303634 | K112: -1286345
A113: Pante- og gældsbreve | B113: -144585 | C113: -93183 | D113: -97969 | E113: -91502 | F113: -85095 | G113: -79746 | H113: -73744
A114: Anden langfristet gæld | B114: -207744 | C114: -134055 | D114: -116650 | E114: -136976 | F114: -147684 | G114: -14451 | H114: -12216
A115: Anden gæld | B115: -1504869 | C115: -1025501 | D115: -1036411 | E115: -1055501 | F115: -937716 | G115: -956204 | H115: -1023542 | I115: -975952 | J115: -977039 | K115: -910659
A116: Kassekredit | B116: -617881 | C116: -532818 | D116: -690623 | E116: -622426 | F116: -695269 | G116: -679196 | H116: -676449 | I116: -649596 | J116: -654161 | K116: -616368
A117: Gæld i alt | B117: -16254206 | C117: -12186693 | D117: -12374621 | E117: -12118114 | F117: -11902226 | G117: -11191676 | H117: -11317376 | I117: -10798833 | J117: -10642622 | K117: -10487447
A119: Hensættelser (negative) | B119: -3399556 | C119: -2715162 | D119: -2606249 | E119: -2522022 | F119: -2490110 | G119: -2246320 | H119: -2111782 | I119: -2075570 | J119: -1889732 | K119: -1955681
A121: Egenkapital | B121: 8915238 | C121: 7442145 | D121: 7110122 | E121: 6735754 | F121: 6482463 | G121: 6608839 | H121: 6262443 | I121: 6211459 | J121: 5974531 | K121: 6136074
A123: EGENKAPITALFORKLARING
A125: Resultat efter finansiering | B125: 816434 | C125: 533504 | D125: 86693 | E125: 383692 | F125: 88587 | G125: 82935 | H125: 138427 | I125: 296215 | J125: 334526 | K125: 202847
A126: Private indtægter | B126: 354832 | C126: 403717 | D126: 381217 | E126: 371975 | F126: 351259 | G126: 368723 | H126: 358632 | I126: 355169 | J126: 348262 | K126: 337729
A127: Resultat før regulering og skat | B127: 1171267 | C127: 937222 | D127: 467910 | E127: 755667 | F127: 439847 | G127: 451659 | H127: 497060 | I127: 651384 | J127: 682787 | K127: 540577
A129: Privat | B129: -247744 | C129: -254288 | D129: -238370 | E129: -248219 | F129: -245799 | G129: -248979 | H129: -249645 | I129: -270638 | J129: -260219 | K129: -261787
A130: Formueindtægter/-udgifter | B130: -17397 | C130: -13392 | D130: -14146 | E130: -11667 | F130: -17696 | G130: -32938 | H130: -28778 | I130: -29342 | J130: -24634 | K130: -28614
A131: Privat udtræk | B131: -265141 | C131: -267679 | D131: -252515 | E131: -259887 | F131: -263496 | G131: -281917 | H131: -278423 | I131: -286610 | J131: -274885 | K131: -272414
A133: Ud- og indbetaling interessenter | B133: -35413 | C133: -25396 | D133: -12852 | F133: -13336 | G133: -16417 | H133: -18005 | I133: -23637 | J133: -14789 | K133: -15192
A134: Betalt skat | B134: -278206 | C134: -237666 | D134: -172267 | E134: -193856 | F134: -144184 | G134: -161404 | H134: -159386 | I134: -176890 | J134: -149798 | K134: -140226
A135: Ændring i udskudt skat | B135: -169221 | C135: -129605 | D135: -3294 | E135: -78030 | F135: -28546 | G135: -8783 | H135: -18338 | I135: -64243 | J135: -44202 | K135: -2222
A136: Skat af årets resultat | B136: -447427 | C136: -367272 | D136: -175561 | E136: -271886 | F136: -172733 | G136: -170188 | H136: -177724 | I136: -241132 | J136: -193999 | K136: -142448
A138: Ændring af egenkapital fra drift, privat og skat | B138: 423285 | C138: 276874 | D138: 26981 | E138: 195958 | F138: -9719 | G138: -16863 | H138: 22907 | I138: 99718 | J138: 199563 | K138: 125714
A139: Regulering ialt fra resultat | B139: 77372 | C139: 86075 | D139: -26628 | E139: 61845 | F139: 42395 | G139: 68109 | H139: -16602 | I139: 45153 | J139: -42794 | K139: -145744
A140: Værdireguleringer | B140: 102751 | C140: 53093 | D140: 49048 | E140: 92744 | F140: -26581 | G140: 40830 | H140: 135625 | I140: 59437 | J140: 28944 | K140: -386223
A141: Pensionsindbetaling | B141: -54929 | C141: -43196 | D141: -28934 | E141: -32003 | F141: -24653 | G141: -28644 | H141: -35554 | I141: -55461 | J141: -40585 | K141: -36616
A142: Øvrige egenkapitalbevægelser | B142: -173 | C142: 0 | D142: 0 | E142: 330 | F142: 0 | G142: 0 | H142: 0 | I142: 0 | J142: 0 | K142: 0
A144: Ændring af egenkapital | B144: 548648 | C144: 372850 | D144: 20235 | E144: 318403 | F144: -17999 | G144: 63431 | H144: 106376 | I144: 152688 | J144: 145150 | K144: -477400
A146: Egenkapital primo | B146: 8367161 | C146: 7070732 | D146: 7086026 | E146: 6417309 | F146: 6500329 | G146: 6547083 | H146: 6155513 | I146: 6060878 | J146: 5830002 | K146: 6613745
A148: Egenkapital ultimo | B148: 8915238 | C148: 7442145 | D148: 7110122 | E148: 6735754 | F148: 6482463 | G148: 6608839 | H148: 6262443 | I148: 6213566 | J148: 5975152 | K148: 6136345
A150: PENGEBINDING
A152: Årets resultat før skat | B152: 1248744 | C152: 1023290 | D152: 441116 | E152: 817040 | F152: 482800 | G152: 519767 | H152: 480458 | I152: 696537 | J152: 639955 | K152: 394890
A154: Værdiændring besætning/beholdning | B154: 112500 | C154: -83456 | D154: -14924 | E154: 12111 | F154: -44180 | G154: -13522 | H154: 0
A155: Afskrivninger m.v., landbrug | B155: 435810 | C155: 331862 | D155: 327136 | E155: 329429 | F155: 307727 | G155: 296453 | H155: 344132 | I155: 309717 | J155: 312680 | K155: 344016
A156: Afskrivninger andre erhverv | B156: 14646 | C156: 10663 | D156: 14843 | E156: 14401 | F156: 14937 | G156: 13403 | H156: 11111 | I156: 9786 | J156: 9521 | K156: 8598
A157: Regulering I/S | B157: -15809 | C157: -12989 | D157: -2673 | E157: -7637 | F157: -4334 | G157: 0 | H157: 0 | I157: 6728 | J157: 492 | K157: 491
A158: Gevinst/tab finansaktiver | B158: -2470 | C158: -2472 | D158: -2826 | E158: -4647 | F158: -3638 | G158: -1652 | H158: -1916 | I158: -1573 | J158: -2286 | K158: -1136
A159: Urealiseret regulering finansaktiver | B159: -69920 | C159: -83181 | D159: 33346 | E159: -53612 | F159: -33469 | G159: -40124 | H159: -30168 | I159: -61962 | J159: -26157 | K159: 29651
A160: Gevinst/tab gæld | B160: 756 | C160: 11846 | D160: 6468 | E160: 6087 | F160: 1390 | G160: 12300 | H160: 6549 | I160: 2276 | J160: 6670 | K160: 4576
A161: Urealiseret regulering gæld | B161: -3506 | C161: 3176 | D161: 3353 | E161: 1901 | F161: -40 | G161: -22085 | H161: 6275 | I161: -11594 | J161: -32833 | K161: -30046
A162: Øvrige tilbageførsler | B162: -24824 | C162: -11978 | D162: -1798 | E162: -4027 | F162: -4370 | G162: 276 | H162: 454
A163: Tilbageførsel i alt | B163: 447153 | C163: 163471 | D163: 362923 | E163: 290205 | F163: 234022 | G163: 258573 | H163: 336436 | I163: 253377 | J163: 333752 | K163: 416241
A165: Betalt skat | B165: -275391 | C165: -237597 | D165: -172216 | E165: -193856 | F165: -144043 | G165: -161787 | H165: -157989 | I165: -176890 | J165: -149798 | K165: -140226
A166: Privat | B166: -248238 | C166: -255466 | D166: -238370 | E166: -248219 | F166: -245799 | G166: -248979 | H166: -249645 | I166: -270638 | J166: -260219 | K166: -261787
A167: Afskrivninger privat tlbf. | B167: 21615 | C167: 20670 | D167: 20417 | E167: 21339 | F167: 19721 | G167: 20335 | H167: 20666 | I167: 19450 | J167: 17717 | K167: 19956
A168: Formueindtægter/-udgifter | B168: -17397 | C168: -13392 | D168: -14146 | E168: -11667 | F168: -17696 | G168: -32938 | H168: -28778 | I168: -29342 | J168: -24634 | K168: -28614
A169: Pensionsindbetaling | B169: -55476 | C169: -43873 | D169: -28725 | E169: -32003 | F169: -24360 | G169: -29742 | H169: -37898 | I169: -55461 | J169: -40585 | K169: -36616
A170: Privat udtræk, skat og pension i alt | B170: -574888 | C170: -529658 | D170: -433039 | E170: -463537 | F170: -412178 | G170: -453111 | H170: -453644 | I170: -525372 | J170: -463925 | K170: -443113
A172: Indskud/udlodning mv interessentskaber/selskaber | B172: -26818 | C172: -17515 | D172: -9844 | E172: -22729 | F172: -17236 | G172: -17748 | H172: -19565 | I172: -23637 | J172: -14789 | K172: -15192
A174: Til invest og afdrag | B174: 1094222 | C174: 639589 | D174: 361156 | E174: 620978 | F174: 287408 | G174: 302857 | H174: 345544
A176: Besætning (realforskydning) | B176: -100112 | C176: 16701 | D176: 3651 | E176: -23477 | F176: -9533 | G176: 1851 | H176: 43853 | I176: -7057 | J176: -68936 | K176: -78428
A177: Beholdninger (realforskydninger) | B177: -39676 | C177: -88209 | D177: 76062 | E177: -34173 | F177: 28147 | G177: -26110 | H177: 14296 | I177: 8954 | J177: -67792 | K177: -2542
A178: Flerårige afgrøder | B178: -11 | C178: 9 | D178: -54 | E178: 28 | F178: 16 | G178: 0 | H178: -6 | I178: -14 | J178: -17 | K178: 0
A180: Likviditet før anlægsinvesteringer | B180: 954423 | C180: 568090 | D180: 440816 | E180: 563357 | F180: 306038 | G180: 278598 | H180: 403687 | I180: 430518 | J180: 373036 | K180: 287048
A182: Investeringer
A183: Jord | B183: -276923 | C183: -197489 | D183: -185658 | E183: -176372 | F183: -173613 | G183: -175940 | H183: -125638 | I183: -164414 | J183: -116637 | K183: -128573
A184: Immaterielle aktiver | B184: -2297 | C184: -2059 | D184: -1596 | E184: -1223 | F184: -1576 | G184: 13 | H184: -2595 | I184: -7314 | J184: -2843 | K184: -4897
A185: Grundforbedring | B185: -8988 | C185: -4340 | D185: -5336 | E185: -4060 | F185: -4838 | G185: -6320 | H185: -5916 | I185: -4802 | J185: -4610 | K185: -3646
A186: Stamplanter | B186: -81 | C186: -112 | D186: -39 | E186: 470 | F186: -116 | G186: 0 | H186: 0
A187: Driftsbygninger | B187: -149077 | C187: -73839 | D187: -95295 | E187: -103361 | F187: -104363 | G187: -107851 | H187: -142083 | I187: -114061 | J187: -120251 | K187: -104018
A188: Inventar markbrug | B188: -200922 | C188: -118869 | D188: -93790 | E188: -115886 | F188: -89519 | G188: -100181 | H188: -99709 | I188: -132662 | J188: -101304 | K188: -98882
A189: Inventar husdyrbrug | B189: -85806 | C189: -54396 | D189: -53106 | E189: -57211 | F189: -42547 | G189: -50154 | H189: -58272 | I189: -63767 | J189: -58127 | K189: -47179
A190: Inventar andet | B190: -5729 | C190: -3415 | D190: -2073 | E190: -6542 | F190: -3020 | G190: -5224 | H190: -3492 | I190: -233 | J190: -6639 | K190: -2721
A191: Beboelse, landbrug | B191: -53831 | C191: -31144 | D191: -36640 | E191: -31428 | F191: -35573 | G191: -43963 | H191: -37180 | I191: -62338 | J191: -41727 | K191: -53983
A192: Private aktiver | B192: -54900 | C192: -44066 | D192: -36255 | E192: 347554 | F192: -28380 | G192: -24638 | H192: -26021 | I192: -31539 | J192: -28394 | K192: -22848
A193: Aktiver udenfor landbrug | B193: -17872 | C193: -1584 | D193: -6700 | E193: -20434 | F193: -27627 | G193: -24209 | H193: -31476 | I193: -40784 | J193: -23655 | K193: -26755
A194: Investeringer ialt | B194: -856426 | C194: -531315 | D194: -516488 | E194: -553556 | F194: -511173 | G194: -538467 | H194: -532383 | I194: -621914 | J194: -504187 | K194: -493503
A196: Likviditetsoverskud/-behov | B196: 97997 | C196: 36775 | D196: -75673 | E196: 9800 | F196: -205135 | G196: -259869 | H196: -128695 | I196: -191395 | J196: -131151 | K196: -206455
A198: Ændring finansaktiver og gæld
A199: Tilgodehav. og værdipapirer | B199: -76999 | C199: -65255 | D199: -17348 | E199: -72659 | F199: -17417 | G199: 62276 | H199: -70711 | I199: -26553 | J199: -92165 | K199: -31202
A200: Realkreditinstitutter | B200: 94939 | C200: 81548 | D200: 45538 | E200: -8844333 | F200: 134905 | G200: 150059 | H200: 114362 | I200: -7807442 | J200: -7707787 | K200: -7674074
A201: Pengeinstitutter lån, netto | B201: -162346 | C201: -58735 | D201: -1471 | E201: -16339 | F201: 35509 | G201: 21549 | H201: 38349 | I201: 79519 | J201: 26837 | K201: 38520
A202: Anden gæld | B202: 90876 | C202: 126856 | D202: -28480 | E202: -1055501 | F202: 13482 | G202: -26247 | H202: 50048 | I202: -975952 | J202: -977039 | K202: -910659
A203: Kassekredit, ændring | B203: -33706 | C203: -112698 | D203: 79201 | E203: -70838 | F203: 32837 | G203: 48678 | H203: 9696 | I203: 43267 | J203: 19688 | K203: 50404
A204: Ændring hensættelser | B204: -949 | C204: 106 | D204: -90 | E204: -136 | F204: -20 | G204: 927 | H204: 1598 | I204: 21 | J204: 297 | K204: -16
A206: Likviditetsanvendelse/fremskaffelse | B206: -88185 | C206: -28177 | D206: 77352 | E206: -4928 | F206: 199297 | G206: 241971 | H206: 129722 | I206: 199568 | J206: 132812 | K206: 210098
A208: Konsolideringsanalyse
A209: Resultat efter finansiering | B209: 816436 | C209: 533505 | D209: 86694 | E209: 383692 | F209: 88590 | G209: 0 | H209: 0
A210: Private indtægter/omkostninger | B210: 354832 | C210: 403717 | D210: 381217 | E210: 371975 | F210: 351259 | G210: 0 | H210: 0
A211: tilbf. værdiændr. stambesætning mm | B211: -15585 | C211: -21317 | D211: -14405 | E211: -9095 | F211: -27500 | G211: 0 | H211: 0
A212: Beregnet skat | B212: -416357 | C212: -342692 | D212: -177250 | E212: -246453 | F212: -150642 | G212: 0 | H212: 0
A213: Privat udtræk | B213: -265635 | C213: -268858 | D213: -252515 | E213: -259887 | F213: -263486 | G213: 0 | H213: 0
A214: Pensionsindbetaling | B214: -55476 | C214: -43873 | D214: -28725 | E214: -32003 | F214: -24358 | G214: 0 | H214: 0
A215: Konsolidering | B215: 418215 | C215: 260483 | D215: -4984 | E215: 207761 | F215: -26179 | G215: -52650 | H215: 0
A217: Nøgletal - konsolidering | E217: 0
A218: Ændring i resultat - nulkonsolidering | B218: -713022 | C218: -481612 | D218: -65923 | E218: -336786 | F218: -4221 | G218: 0 | H218: 0
A219: nulpunktsrente pct | B219: 880155.84 | C219: -559855.07 | D219: -605933.59 | E219: -1231302.52 | F219: -591205.15 | G219: 0 | H219: 0
A220: nulpunktsmælkepris kr/kg EKM | B220: 0.3 | C220: 0.23 | D220: 0.25 | E220: 1501.85 | F220: 2492.37 | G220: 0 | H220: 0
A221: Nulpunktspris fravænnede grise | B221: 1 | C221: 1 | D221: 1 | E221: -23232 | F221: -8949 | G221: 0 | H221: 0
A222: Nulpunktspris smågrise | B222: 17 | C222: 12 | D222: 17 | E222: -8924 | F222: -1796 | G222: 0 | H222: 0
A223: Nulpunktspris slagtesvin kg | B223: 0.51 | C223: 0.46 | D223: 0.51 | E223: -1.36 | F223: 2.45 | G223: 0 | H223: 0
A224: Nulpunktspris minkskind
A226: Øknomiske nøgletal
A227: Virksomhedens afkast, pct. | B227: 0.7 | C227: -1.5 | D227: =(D53+D74+D56+D67+D58+D59)*100/(D108-D103-D105) -> -0.2964182827 | E227: =(E53+E74+E56+E67+E58+E59)*100/(E108-E103-E105) -> 1.251965471 | F227: 0.6625933727 | G227: 0.854453659 | H227: 1.270799069 | I227: 2.16523824 | J227: 2.75920901 | K227: 3.3605213
A228: Virksomhedens overskudsmargin, pct | B228: -15.9 | C228: -64.8 | D228: =(D53+D74+D56+D67+D58+D59)*100/D27 -> -2.149692754 | E228: =(E53+E74+E56+E67+E58+E59)*100/E27 -> 8.283450745 | F228: 5.040009513 | G228: 6.29627021 | H228: 8.63448454 | I228: 12.6733391 | J228: 16.25859883 | K228: 22.01790139
A229: Dækningsgrad, pct | B229: 58.1 | C229: 53.6 | D229: =D37*100/D27 -> 47.18444871 | E229: =E37*100/E27 -> 53.26499128 | F229: 47.78544276 | G229: 48.33119583 | H229: 49.28282361 | I229: 48.85847124 | J229: 51.87206488 | K229: 51.84369965
A230: Virksomhedens afkast til egenkapital, pct | B230: =(B209+B67)*100/B148 -> 4.864906579 | C230: =(C209+C67)*100/C148 -> 1.944976885 | D230: -4.327112812 | E230: -0.1680138556 | F230: -1.987870968 | G230: -3.150296141 | H230: -3.333188023 | I230: -3.480883602 | J230: -3.607774329 | K230: 0
A231: Soliditetsgrad, pct | B231: 36.7 | C231: 40.2 | D231: =D148*100/D108 -> 32.18561665 | E231: =E148*100/E108 -> 31.51098738 | F231: 31.05401249 | G231: 32.96699454 | H231: 31.80260965 | I231: 32.55585731 | J231: 32.28610325 | K231: 33.02803317
A232: Rentedækningsgrad | B232: 13.2 | C232: -46.8
A234: Bilag 1: Produktionstekniske oplysninger, planteavl | K234: 0
A236: Gruppering | B236: Alle | C236: Alle | D236: Alle | E236: Alle | F236: Alle | G236: Alle | H236: Alle | I236: Alle | J236: Alle | K236: Alle
A237: År | B237: 2020 | C237: 2019 | D237: 2018 | E237: 2017 | F237: 2016 | G237: 2015 | H237: 2014 | I237: 2013 | J237: 2012 | K237: 2011
A239: Afgrødefordeling, ha
A240: Vårbyg, ha | B240: 35 | C240: 23.1 | D240: 31.4 | E240: 23.1 | F240: 24.1 | G240: 20.2 | H240: 18.2 | I240: 21.5 | J240: 22.2 | K240: 17.6
A241: Vinterbyg, ha | B241: 5.5 | C241: 4.5 | D241: 3.6 | E241: 5 | F241: 4.1 | G241: 4.1 | H241: 4 | I241: 3.5 | J241: 3.4 | K241: 4.2
A242: Vårhvede | B242: 0.7 | C242: 0.5 | D242: 1.1 | E242: 0.5 | F242: 0.5 | G242: 0.5 | H242: 0.6 | I242: 1.1 | J242: 0.8 | K242: 0.6
A243: Vinterhvede, ha | B243: 30.4 | C243: 25.8 | D243: 17.3 | E243: 23.5 | F243: 21.5 | G243: 22.5 | H243: 22.8 | I243: 18.4 | J243: 18.8 | K243: 23.8
A244: Triticale, ha | B244: 0.2 | C244: 0.3 | D244: 0.2 | E244: 0.2 | F244: 0.3 | G244: 0.4 | H244: 0.5 | I244: 0.4 | J244: 0.7 | K244: 0.9
A245: Rug, ha | B245: 5.2 | C245: 4.4 | D245: 2.9 | E245: 3.6 | F245: 3.1 | G245: 3.7 | H245: 3.1 | I245: 2.5 | J245: 1.8 | K245: 1.5
A246: Havre, ha | B246: 3.1 | C246: 1.5 | D246: 2.3 | E246: 1.7 | F246: 1.5 | G246: 1 | H246: 1 | I246: 1.5 | J246: 1.6 | K246: 1.1
A247: Kernemajs/majs til modenhed, ha | B247: 0.4 | C247: 0.3 | D247: 0.2 | E247: 0.2 | F247: 0.2 | G247: 0.2 | H247: 0.3 | I247: 0.3 | J247: 0.4 | K247: 0.4
A248: Blandsæd | B248: 0.2 | C248: 0.1 | D248: 0.1 | E248: 0.1 | F248: 0.2 | G248: 0.1 | H248: 0.1 | I248: 0.3 | J248: 0.5 | K248: 0.4
A249: Korn areal, ha | B249: 80.9 | C249: 60.4 | D249: 59.2 | E249: 57.9 | F249: 55.5 | G249: 52.7 | H249: 50.7 | I249: 49.6 | J249: 50.1 | K249: 50.5
A252: Græsfrø, ha | B252: 0.4 | C252: 0.3 | D252: 0.4 | E252: 0.3 | F252: 0.4 | G252: 0.4 | H252: 0.4 | I252: 0.4 | J252: 0.4 | K252: 0.7
... 513 more rows

Sheet 1.3 Alle øko
A1: Udtrukket: 09-10-2020 08:38:02 af LFjubp
A2: Denne udskrift kan indeholde fortrolige data og skal derfor behandles med særlig omhu og i forhold til gældende regler omkring datasikkerhed. Distribution til tredje part er ikke tilladt uden samtykke fra SEGES. Sker dette alligevel, kan SEGES ikke holdes ansvarlig
A3: Udvælgelse: (([norm_t_ejendom] >= 0 AND [norm_t_ejendom] <= 99999999999999999)) AND (([006410]=2)) AND Godkendt = Ja AND Tilladelse IN (ØDB statistik) AND Opstilling = Statistik
A4: Gruppering: Afkastningsgrad
A6: Gruppering | B6: Alle | C6: Alle | D6: Alle | E6: Alle | F6: Alle | G6: Alle | H6: Alle | I6: Alle | J6: Alle | K6: Alle
A7: År | B7: 2020 | C7: 2019 | D7: 2018 | E7: 2017 | F7: 2016 | G7: 2015 | H7: 2014 | I7: 2013 | J7: 2012 | K7: 2011
A8: Antal | B8: 423 | C8: 472 | D8: 440 | E8: 488 | F8: 405 | G8: 413 | H8: 436 | I8: 454 | J8: 478 | K8: 514
A9: Antal vejet | B9: 1355 | C9: 1793.05 | D9: 1654.31 | E9: 1419.23 | F9: 1430.75 | G9: 1387 | H9: 1454.58 | I9: 1469.03 | J9: 1535.59 | K9: 1532.67
A10: Kredsnummer | B10: 280 | C10: 294 | D10: 319 | E10: 306 | F10: 279 | G10: 303 | H10: 311 | I10: 298 | J10: 311 | K10: 318
A11: Ejendomsnummer | B11: 4094 | C11: 4284 | D11: 4338 | E11: 4216 | F11: 4279 | G11: 4485 | H11: 4598 | I11: 4193 | J11: 3890 | K11: 3965
A12: Landbrugsareal, ha | B12: 157 | C12: 119 | D12: 106 | E12: 107 | F12: 100 | G12: 97 | H12: 101 | I12: 96 | J12: 94 | K12: 94
A13: Årskøer | B13: 56 | C13: 40 | D13: 37 | E13: 40 | F13: 38 | G13: 36 | H13: 38 | I13: 40 | J13: 40 | K13: 38
A14: Årssøer | B14: 10 | C14: 7 | D14: 9 | E14: 6 | F14: 5 | G14: 4 | H14: 4 | I14: 3 | J14: 5 | K14: 3
A15: Antal slagtesvin produceret | B15: 275 | C15: 221 | D15: 231 | E15: 159 | F15: 131 | G15: 156 | H15: 115 | I15: 96 | J15: 67 | K15: 95
A16: Antal minktæver | B16: 0 | C16: 11 | D16: 12 | E16: 19 | F16: 6 | G16: 0 | H16: 3 | I16: 8 | J16: 4 | K16: 7
A17: Dyreenheder | B17: 118 | C17: 86 | D17: 82 | E17: 85 | F17: 74 | G17: 74 | H17: 78 | I17: 76 | J17: 75 | K17: 74
A18: Beregnet antal normtimer | B18: 3717 | C18: 2876 | D18: 2737 | E18: 2795 | F18: 2709 | G18: 2623 | H18: 2714 | I18: 2678 | J18: 2626 | K18: 2487
A20: Bruttoudbytte Planteavl inkl. IO | B20: 1188228 | C20: 971131 | D20: 763643 | E20: 893238 | F20: 868993 | G20: 708508 | H20: 772054 | I20: 773307 | J20: 712870 | K20: 668997
A21: Bruttoudbytte Kvæg | B21: 2090127 | C21: 1509175 | D21: 1422733 | E21: 1554699 | F21: 1376788 | G21: 1236375 | H21: 1309230 | I21: 1244275 | J21: 1165639 | K21: 1140865
A22: Bruttoudbytte Svin | B22: 491458 | C22: 369921 | D22: 365543 | E22: 329671 | F22: 281779 | G22: 249259 | H22: 151845 | I22: 131187 | J22: 140602 | K22: 122095
A23: Bruttoudbytte andre husdyr | B23: 309706 | C23: 245256 | D23: 213713 | E23: 448528 | F23: 417145 | G23: 406849 | H23: 455633 | I23: 437869 | J23: 367637 | K23: 306688
A24: Skovindtægter | B24: 5295 | C24: 3555 | D24: 4363 | E24: 1884 | F24: 2322 | G24: 3005 | H24: 0
A25: Maskinstationsindtægter | B25: 78657 | C25: 56588 | D25: 40643 | E25: 53885 | F25: 55078 | G25: 62227 | H25: 45648 | I25: 36898 | J25: 33143 | K25: 40167
A26: Andre landbrugsindtægter | B26: 274443 | C26: 212217 | D26: 195458 | E26: 220899 | F26: 186628 | G26: 147647 | H26: 125795 | I26: 110752 | J26: 117552 | K26: 150924
A27: Bruttoudbytte ialt | B27: 4437915 | C27: 3367841 | D27: 3006095 | E27: 3502803 | F27: 3188734 | G27: 2813870 | H27: 2860207 | I27: 2734288 | J27: 2537443 | K27: 2429735
A29: Stykomkostninger Mark | B29: -185909 | C29: -153568 | D29: -137771 | E29: -134353 | F29: -143240 | G29: -117795 | H29: -117993 | I29: -132395 | J29: -113322 | K29: -100905
A30: Korn inkl. IO | B30: -216745 | C30: -186185 | D30: -178197 | E30: -168931 | F30: -152801 | G30: -150425 | H30: -176973 | I30: -1099059 | J30: -968766 | K30: -836615
A31: Færdigblanding mv. | B31: -911755 | C31: -720074 | D31: -691651 | E31: -720698 | F31: -614642 | G31: -539593 | H31: -567285
A32: Eget grovfoder inkl. IO | B32: -502794 | C32: -332282 | D32: -338911 | E32: -329941 | F32: -310471 | G32: -300848 | H32: -307958
A33: Øvrige stykomkostninger husdyr | B33: -192281 | C33: -137134 | D33: -131999 | E33: -131865 | F33: -125385 | G33: -112466 | H33: -120342 | I33: -114834 | J33: -113255 | K33: -111238
A34: Skovomkostninger | B34: -2948 | C34: -2149 | D34: -2040 | E34: -8440 | F34: -3479 | G34: -3621 | H34: 0
A35: Stykomkostninger i alt | B35: -2012433 | C35: -1531393 | D35: -1480569 | E35: -1494228 | F35: -1350018 | G35: -1224747 | H35: -1290551 | I35: -1346288 | J35: -1195343 | K35: -1048759
A37: Dækningsbidrag | B37: 2425482 | C37: 1836448 | D37: 1525525 | E37: 2008575 | F37: 1838716 | G37: 1589122 | H37: 1569655 | I37: 1388000 | J37: 1342100 | K37: 1380976
A39: Energi og brændstof | B39: -113502 | C39: -96535 | D39: -109225 | E39: -94638 | F39: -88430 | G39: -84578 | H39: -112474 | I39: -110971 | J39: -103161 | K39: -100830
A40: Maskinstation | B40: -311653 | C40: -235882 | D40: -210068 | E40: -209358 | F40: -245154 | G40: -175944 | H40: -179785 | I40: -174396 | J40: -173512 | K40: -171517
A41: Vedligeholdelse | B41: -275250 | C41: -193544 | D41: -191464 | E41: -194155 | F41: -191164 | G41: -166986 | H41: -172756 | I41: -158963 | J41: -147187 | K41: -146551
A42: Investeringer over driften | B42: -14779 | C42: -14387 | D42: -16313 | E42: -17978 | F42: -16589 | G42: -14836 | H42: -14408 | I42: -12523 | J42: -12230 | K42: -12842
A43: Lønomkostninger | B43: -366745 | C43: -276775 | D43: -248216 | E43: -250288 | F43: -219004 | G43: -190782 | H43: -193507 | I43: -183148 | J43: -154367 | K43: -144841
A44: Ejendomsskat og forsikringer | B44: -93706 | C44: -70627 | D44: -64216 | E44: -63354 | F44: -63528 | G44: -57913 | H44: -58244 | I44: -54812 | J44: -51557 | K44: -50653
A45: Diverse omkostninger | B45: -140362 | C45: -112262 | D45: -104514 | E45: -109654 | F45: -107053 | G45: -105736 | H45: -116203 | I45: -102541 | J45: -96873 | K45: -101842
A46: Kontante kapacitetsomkostninger | B46: -1315998 | C46: -1000013 | D46: -944015 | E46: -939424 | F46: -930922 | G46: -796775 | H46: -847377 | I46: -797354 | J46: -738886 | K46: -729077
A48: Afskrivninger | B48: -441136 | C48: -333309 | D48: -321268 | E48: -350257 | F48: -348893 | G48: -319769 | H48: -320121 | I48: -292386 | J48: -283640 | K48: -285140
A49: Nedskrivninger | B49: -7034 | C49: -3396 | D49: -3929 | E49: -2208 | F49: -6373 | G49: 9 | H49: -2078 | I49: -5211 | J49: -2046 | K49: -5153
A50: Tab/gevinst | B50: 89894 | C50: 11349 | D50: 8516 | E50: 4426 | F50: 10314 | G50: 6976 | H50: 14197 | I50: 12365 | J50: 4029 | K50: 261
A51: Kapacitetsomkostninger i alt | B51: -1674274 | C51: -1325369 | D51: -1260696 | E51: -1287464 | F51: -1275873 | G51: -1109560 | H51: -1155379 | I51: -1082585 | J51: -1020543 | K51: -1019109
A53: Resultat af primær drift | B53: 751208 | C53: 511080 | D53: 264830 | E53: 721111 | F53: 562843 | G53: 479563 | H53: 414276 | I53: 305415 | J53: 321557 | K53: 361867
A56: Afkoblet EU-støtte mv. | B56: 358324 | C56: 283248 | D56: 264153 | E56: 258593 | F56: 244282 | G56: 248898 | H56: 283978 | I56: 264887 | J56: 262319 | K56: 257367
A58: Forpagtningsindtægt | B58: 55849 | C58: 44795 | D58: 43641 | E58: 37654 | F58: 51322 | G58: 30182 | H58: 19963 | I58: 18815 | J58: 20875 | K58: 20959
A59: Forpagtningsafgift | B59: -301372 | C59: -218120 | D59: -177497 | E59: -199311 | F59: -155793 | G59: -140241 | H59: -143831 | I59: -133381 | J59: -126682 | K59: -120354
A60: Renteindt, landbrug og fin.tilskud | B60: 12822 | C60: 13861 | D60: 13387 | E60: 15429 | F60: 17172 | G60: 16535 | H60: 17492 | I60: 14698 | J60: 14062 | K60: 20115
A61: Realiseret gevinst/tab finansaktiver | B61: -14398 | C61: 7063 | D61: 1266 | E61: -20196 | F61: -15446 | G61: -3818 | H61: -25247 | I61: -17518 | J61: -26793 | K61: -68875
A62: Renteudgifter, landbrug | B62: -315517 | C62: -268771 | D62: -274675 | E62: -283917 | F62: -289606 | G62: -282819 | H62: -312353 | I62: -295516 | J62: -335386 | K62: -352143
A63: Finansomkostninger ialt, landbrug | B63: -562616 | C63: -421172 | D63: -393878 | E63: -450341 | F63: -392351 | G63: -380161 | H63: -443975 | I63: -412902 | J63: -453924 | K63: -500298
A65: Driftsresultat | B65: 546916 | C65: 373156 | D65: 135105 | E65: 529363 | F65: 414774 | G65: 348299 | H65: 254279 | I65: 157510 | J65: 129975 | K65: 118937
A67: Ejerløn | B67: -387468 | C67: -397739 | D67: -410673 | E67: -412518 | F67: -197870 | G67: -208560 | H67: -223429 | I67: -227828 | J67: -220951 | K67: 0
A68: Korr. værdiændring stambes/foderbeh. | B68: 32504 | C68: 3843 | D68: 1122 | E68: -10271 | F68: -2680 | G68: 21526 | H68: 954
A69: Driftsresultat efter ejerløn mv. | B69: 191952 | C69: -20739 | D69: -274446 | E69: 106573 | F69: 214223 | G69: 161265 | H69: 31804
A71: Afskrivning immaterielle aktiver | B71: -5894 | C71: -5371 | D71: -5012 | E71: -4519 | F71: -6912 | G71: -729 | H71: -1086 | I71: -522 | J71: -400 | K71: -416
A72: Nedskrivning immaterielle aktiver | B72: -722 | C72: -8282 | D72: -1184 | E72: -4347 | F72: -7298 | G72: -4807 | H72: -109837 | I72: -96005 | J72: -75229 | K72: -164362
A73: Gevinst/tab immaterielle aktiver | B73: -118997 | C73: 7745 | D73: 1096 | E73: 28351 | F73: -9188 | G73: 10698 | H73: 2342 | I73: -11751 | J73: 986 | K73: 22195
A74: Anden virksomhed og engangsposter | B74: 85164 | C74: 76078 | D74: 68844 | E74: 57664 | F74: 36340 | G74: 54582 | H74: 69285 | I74: 54109 | J74: 70130 | K74: 52266
A75: Renteindtægter, privat | B75: 4562 | C75: 3576 | D75: 10024 | E75: 6678 | F75: 21941 | G75: 6878 | H75: 5114 | I75: 4623 | J75: 8444 | K75: 12209
A76: Renteudgifter, privat | B76: -24013 | C76: -21968 | D76: -23397 | E76: -23493 | F76: -29049 | G76: -34247 | H76: -38879 | I76: -36515 | J76: -48162 | K76: -75800
A77: Urealiseret regulering værdipapirer | B77: 37475 | C77: 7436 | D77: -56977 | E77: 25416 | F77: -132713 | G77: 22110 | H77: 22736 | I77: 38577 | J77: 66965 | K77: -48940
A78: Urealiseret regulering gæld | B78: 2688 | C78: -2680 | D78: -10527 | E78: 2177 | F78: 9203 | G78: 29500 | H78: -18958 | I78: 12326 | J78: -38981 | K78: -33938
A79: Værdiændring inv. ejendomme og tilknyttede virks. | B79: 0 | C79: 0 | D79: 0 | F79: -1383 | G79: 0 | H79: 0
A81: Resultat før personlig indtjening | B81: 527177 | C81: 429690 | D81: 117972 | E81: 617289 | F81: 295715 | G81: 432286 | H81: 185018 | I81: 122353 | J81: 113728 | K81: -117850
A83: Private indtægter/omkostninger | B83: 347611 | C83: 387999 | D83: 399459 | E83: 407313 | F83: 410433 | G83: 413477 | H83: 375056 | I83: 380675 | J83: 387225 | K83: 340982
A85: Årets resultat før skat | B85: 874789 | C85: 817690 | D85: 517430 | E85: 1024602 | F85: 706149 | G85: 845763 | H85: 560074 | I85: 503028 | J85: 500953 | K85: 223132
A87: Skat af årets resultat | B87: -361798 | C87: -282488 | D87: -240175 | E87: -360147 | F87: -334944 | G87: -271365 | H87: -186294 | I87: -203517 | J87: -102726 | K87: -102438
A89: BALANCE
A91: Fast ejendom | B91: 16942707 | C91: 14045522 | D91: 13270419 | E91: 13233507 | F91: 13715199 | G91: 12881648 | H91: 0 | I91: 13033938 | J91: 12805168 | K91: 13298141
A92: Stamplanter | B92: 7450 | C92: 2177 | D92: 108 | E92: 182 | F92: 19 | G92: 0 | H92: 0
A93: Betalingsrettigheder EU | B93: 18364 | C93: 14891 | D93: 17224 | E93: 21299 | F93: 26962 | G93: 40441 | H93: 51351 | I93: 64338 | J93: 66026 | K93: 73213
A94: Mælkekvoter og andre leveringsrettigheder | B94: 1988 | C94: 2291 | D94: 2009 | E94: 2778 | F94: 2940 | G94: 3590 | H94: 4731 | I94: 112560 | J94: 216858 | K94: 293885
A95: Inventar og maskiner | B95: 1737044 | C95: 1323920 | D95: 1182095 | E95: 1290134 | F95: 1314800 | G95: 1225282 | H95: 1221572 | I95: 1147988 | J95: 1094022 | K95: 1167854
A96: Besætning | B96: 915006 | C96: 702779 | D96: 705921 | E96: 714645 | F96: 660199 | G96: 621406 | H96: 606823 | I96: 624917 | J96: 623757 | K96: 582887
A97: Beholdning | B97: 652202 | C97: 505479 | D97: 412848 | E97: 497613 | F97: 473155 | G97: 436343 | H97: 449257 | I97: 392006 | J97: 419690 | K97: 400013
A98: Tilgodehavende | B98: 1038630 | C98: 831220 | D98: 1000724 | E98: 883665 | F98: 1412292 | G98: 727565 | H98: 505014 | I98: 557487 | J98: 641288 | K98: 927755
A99: Andelskapital og financielle kontrakter | B99: 454112 | C99: 309762 | D99: 314952 | E99: 338420 | F99: 269078 | G99: 266982 | H99: 228732 | I99: 200894 | J99: 182334 | K99: 186421
A100: Landbrugsaktiver i alt | B100: 21767504 | C100: 17738041 | D100: 16906300 | E100: 16982244 | F100: 17874644 | G100: 16203256 | H100: 16250350 | I100: 16134128 | J100: 16049143 | K100: 16930170
A102: Fast ejendom udenfor landbrug | B102: 1395970 | C102: 1261619 | D102: 1209354 | E102: 1222058 | F102: 1296899 | G102: 1381279 | H102: 0 | I102: 219443 | J102: 201549 | K102: 298078
A103: Private aktiver | B103: 376730 | C103: 306422 | D103: 282916 | E103: 320124 | F103: 331896 | G103: 158099 | H103: 161508 | I103: 1257168 | J103: 1193160 | K103: 1133829
A104: Øvrige aktiver udenfor landbrug | B104: 191708 | C104: 127788 | D104: 136530 | E104: 171574 | F104: 80820 | G104: 259690 | H104: 260201 | I104: 244281 | J104: 191032 | K104: 231791
A105: Værdipapirer og indlån | B105: 687568 | C105: 440019 | D105: 635467 | E105: 529126 | F105: 803033 | G105: 583866 | H105: 575607 | I105: 602392 | J105: 1010545 | K105: 1361448
A106: Hensættelser (positive) | B106: 17130 | C106: 11005 | D106: 19381 | E106: 28840 | F106: 35291 | G106: 41159 | H106: 51971
A108: Aktiver i alt | B108: 24436611 | C108: 19884895 | D108: 19189948 | E108: 19253965 | F108: 20422583 | G108: 18627349 | H108: 18692757 | I108: 18457412 | J108: 18645429 | K108: 19955316
A110: Ansvarlig lånekapital | B110: -31279 | C110: -22264 | D110: -14059
A111: Realkreditinstitutter | B111: -11468928 | C111: -9304654 | D111: -8771806 | E111: -8562157 | F111: -9155992 | G111: -8197505 | H111: -8598131 | I111: -8305306 | J111: -8316534 | K111: -8332176
A112: Pengeinstitutter | B112: -1560283 | C112: -1394163 | D112: -1427524 | E112: -1635434 | F112: -2178015 | G112: -1514717 | H112: -1522738 | I112: -1452375 | J112: -1759728 | K112: -2024484
A113: Pante- og gældsbreve | B113: -94105 | C113: -67052 | D113: -72638 | E113: -45804 | F113: -27499 | G113: -29886 | H113: -29573
A114: Anden langfristet gæld | B114: -215526 | C114: -196727 | D114: -148615 | E114: -123602 | F114: -138496 | G114: -39526 | H114: -6149
A115: Anden gæld | B115: -1356099 | C115: -988264 | D115: -970264 | E115: -1113335 | F115: -989266 | G115: -900089 | H115: -944902 | I115: -853207 | J115: -791865 | K115: -1005942
A116: Kassekredit | B116: -743507 | C116: -647543 | D116: -676871 | E116: -684243 | F116: -680148 | G116: -581018 | H116: -701836 | I116: -721379 | J116: -707581 | K116: -656721
A117: Gæld i alt | B117: -15469727 | C117: -12620667 | D117: -12081777 | E117: -12167069 | F117: -13169415 | G117: -11262741 | H117: -11803329 | I117: -11332268 | J117: -11575708 | K117: -12019323
A119: Hensættelser (negative) | B119: -2524254 | C119: -2126256 | D119: -1983897 | E119: -2058701 | F119: -2051768 | G119: -2258286 | H119: -2237186 | I119: -1895336 | J119: -1659541 | K119: -1626367
A121: Egenkapital | B121: 6442629 | C121: 5137972 | D121: 5124273 | E121: 5028195 | F121: 5201399 | G121: 5106322 | H121: 4652242 | I121: 5229809 | J121: 5410180 | K121: 6309627
A123: EGENKAPITALFORKLARING
A125: Resultat efter finansiering | B125: 612628 | C125: 430843 | D125: 190576 | E125: 570212 | F125: 444006 | G125: 375514 | H125: 289821 | I125: 179727 | J125: 160364 | K125: 107611
A126: Private indtægter | B126: 347611 | C126: 387999 | D126: 399459 | E126: 407313 | F126: 410433 | G126: 413477 | H126: 375056 | I126: 380675 | J126: 387225 | K126: 340982
A127: Resultat før regulering og skat | B127: 960240 | C127: 818842 | D127: 590035 | E127: 977525 | F127: 854439 | G127: 788990 | H127: 664878 | I127: 560403 | J127: 547589 | K127: 448593
A129: Privat | B129: -247155 | C129: -267160 | D129: -263305 | E129: -282874 | F129: -294905 | G129: -291720 | H129: -294535 | I129: -306689 | J129: -305096 | K129: -300149
A130: Formueindtægter/-udgifter | B130: -17951 | C130: -22639 | D130: -7730 | E130: -22108 | F130: -13633 | G130: -34136 | H130: -44710 | I130: -36845 | J130: -28240 | K130: -31253
A131: Privat udtræk | B131: -265106 | C131: -289799 | D131: -271035 | E131: -304982 | F131: -308538 | G131: -325856 | H131: -339244 | I131: -332441 | J131: -322468 | K131: -319141
A133: Ud- og indbetaling interessenter | B133: 777746 | C133: -23748 | D133: -10036 | F133: -29878 | G133: -14235 | H133: -10084 | I133: -18868 | J133: -7653 | K133: 13785
A134: Betalt skat | B134: -268130 | C134: -192548 | D134: -193281 | E134: -240498 | F134: -214410 | G134: -198411 | H134: -166192 | I134: -165039 | J134: -123348 | K134: -124959
A135: Ændring i udskudt skat | B135: -93669 | C135: -89939 | D135: -46894 | E135: -119648 | F135: -120533 | G135: -72955 | H135: -20103 | I135: -38478 | J135: 20622 | K135: 22521
A136: Skat af årets resultat | B136: -361798 | C136: -282488 | D136: -240175 | E136: -360147 | F136: -334944 | G136: -271365 | H136: -186294 | I136: -203517 | J136: -102726 | K136: -102438
A138: Ændring af egenkapital fra drift, privat og skat | B138: 1111082 | C138: 222807 | D138: 68789 | E138: 281522 | F138: 181080 | G138: 177534 | H138: 129254 | I138: 5323 | J138: 113046 | K138: 27014
A139: Regulering ialt fra resultat | B139: -85451 | C139: -1152 | D139: -72604 | E139: 47077 | F139: -146907 | G139: 56772 | H139: -104803 | I139: -57375 | J139: -46659 | K139: -225461
A140: Værdireguleringer | B140: 115708 | C140: 87832 | D140: 10356 | E140: 60680 | F140: -38100 | G140: 45958 | H140: -22387 | I140: 100404 | J140: -46830 | K140: -431573
A141: Pensionsindbetaling | B141: -45490 | C141: -36424 | D141: -33577 | E141: -36472 | F141: -44364 | G141: -27905 | H141: -40348 | I141: -34419 | J141: -32544 | K141: -31621
A142: Øvrige egenkapitalbevægelser | B142: 32 | C142: 0 | D142: 0 | E142: 0 | F142: 0 | G142: 0 | H142: 0 | I142: 0 | J142: 0 | K142: 0
A144: Ændring af egenkapital | B144: 1095880 | C144: 273062 | D144: -27036 | E144: 352807 | F144: -49675 | G144: 252359 | H144: -38284 | I144: 17775 | J144: -10272 | K144: -674763
A146: Egenkapital primo | B146: 5347241 | C146: 4870849 | D146: 5168288 | E146: 4675389 | F146: 5255080 | G146: 4855681 | H146: 4690524 | I146: 5215874 | J146: 5423143 | K146: 6985048
A148: Egenkapital ultimo | B148: 6442629 | C148: 5137972 | D148: 5124273 | E148: 5028195 | F148: 5201399 | G148: 5106322 | H148: 4652242 | I148: 5233648 | J148: 5412871 | K148: 6310285
A150: PENGEBINDING
A152: Årets resultat før skat | B152: 874789 | C152: 817690 | D152: 517430 | E152: 1024602 | F152: 706149 | G152: 845763 | H152: 560074 | I152: 503028 | J152: 500953 | K152: 223132
A154: Værdiændring besætning/beholdning | B154: 53657 | C154: 11117 | D154: 22704 | E154: -7585 | F154: 1738 | G154: 33589 | H154: 0
A155: Afskrivninger m.v., landbrug | B155: 483890 | C155: 331264 | D155: 321781 | E155: 328555 | F155: 368349 | G155: 307621 | H155: 416583 | I155: 393510 | J155: 356277 | K155: 432615
A156: Afskrivninger andre erhverv | B156: -17755 | C156: 17413 | D156: 25719 | E156: 23900 | F156: 48003 | G156: 17407 | H156: 14654 | I156: 11350 | J156: 25229 | K156: 33756
A157: Regulering I/S | B157: -11910 | C157: -17654 | D157: -2108 | E157: -6348 | F157: -1345 | G157: 0 | H157: 0 | I157: 667 | J157: 169 | K157: -130
A158: Gevinst/tab finansaktiver | B158: 1972 | C158: -1233 | D158: -1054 | E158: -1285 | F158: -1035 | G158: -799 | H158: 1062 | I158: -371 | J158: -631 | K158: -273
A159: Urealiseret regulering finansaktiver | B159: -37475 | C159: -7436 | D159: 56977 | E159: -25416 | F159: 132713 | G159: -22110 | H159: -22736 | I159: -38577 | J159: -66965 | K159: 48940
A160: Gevinst/tab gæld | B160: 4593 | C160: 13451 | D160: 14801 | E160: 3866 | F160: -767 | G160: 15830 | H160: 4342 | I160: 4326 | J160: 5935 | K160: 33981
A161: Urealiseret regulering gæld | B161: -2688 | C161: 2680 | D161: 10527 | E161: 2177 | F161: -9203 | G161: -29500 | H161: 18958 | I161: -12326 | J161: -38981 | K161: -33938
A162: Øvrige tilbageførsler | B162: 18803 | C162: -13657 | D162: -10783 | E162: 43 | F162: 3008 | G162: 259 | H162: 206
A163: Tilbageførsel i alt | B163: 493087 | C163: 335945 | D163: 438563 | E163: 313554 | F163: 541460 | G163: 288708 | H163: 433069 | I163: 358578 | J163: 358995 | K163: 582827
A165: Betalt skat | B165: -267771 | C165: -192648 | D165: -193334 | E165: -240498 | F165: -214410 | G165: -198843 | H165: -165070 | I165: -165039 | J165: -123348 | K165: -124959
A166: Privat | B166: -247155 | C166: -273101 | D166: -263305 | E166: -282874 | F166: -294905 | G166: -291720 | H166: -294535 | I166: -306689 | J166: -305096 | K166: -300149
A167: Afskrivninger privat tlbf. | B167: 77076 | C167: 16796 | D167: 23773 | E167: 23576 | F167: 15641 | G167: 20465 | H167: 21556 | I167: 25733 | J167: 24838 | K167: 22077
A168: Formueindtægter/-udgifter | B168: -17951 | C168: -22639 | D168: -7730 | E168: -22108 | F168: -13633 | G168: -34136 | H168: -44710 | I168: -36845 | J168: -28240 | K168: -31253
A169: Pensionsindbetaling | B169: -45393 | C169: -36570 | D169: -33622 | E169: -36472 | F169: -26025 | G169: -27905 | H169: -44153 | I169: -34419 | J169: -32544 | K169: -31621
A170: Privat udtræk, skat og pension i alt | B170: -501193 | C170: -508162 | D170: -474218 | E170: -559081 | F170: -533332 | G170: -532140 | H170: -526912 | I170: -525751 | J170: -462302 | K170: -441469
A172: Indskud/udlodning mv interessentskaber/selskaber | B172: 776061 | C172: -18464 | D172: -2594 | E172: -24330 | F172: -27115 | G172: -13802 | H172: -11205 | I172: -18868 | J172: -7653 | K172: 13785
A174: Til invest og afdrag | B174: 1642743 | C174: 627008 | D174: 479182 | E174: 754745 | F174: 687162 | G174: 539101 | H174: 456806
A176: Besætning (realforskydning) | B176: 63266 | C176: 7349 | D176: -16625 | E176: -23836 | F176: -22548 | G176: -56281 | H176: 26014 | I176: -2999 | J176: -35351 | K176: -41664
A177: Beholdninger (realforskydninger) | B177: 3764 | C177: -105044 | D177: 64125 | E177: -49063 | F177: -35771 | G177: -1332 | H177: -45738 | I177: 22328 | J177: -17710 | K177: -12077
A178: Flerårige afgrøder | B178: 0 | C178: 0 | D178: 0 | E178: 0 | F178: 0 | G178: 0 | H178: 0 | I178: 0 | J178: 0 | K178: 0
A180: Likviditet før anlægsinvesteringer | B180: 1709774 | C180: 529313 | D180: 526681 | E180: 681846 | F180: 628842 | G180: 481488 | H180: 437081 | I180: 352278 | J180: 344585 | K180: 310749
A182: Investeringer
A183: Jord | B183: 1186436 | C183: -272612 | D183: -188575 | E183: -332280 | F183: -693379 | G183: -93194 | H183: -123206 | I183: -31633 | J183: -173125 | K183: -184650
A184: Immaterielle aktiver | B184: -1906 | C184: -2518 | D184: -686 | E184: -1220 | F184: -4133 | G184: 1738 | H184: -3165 | I184: -3585 | J184: -5343 | K184: -29819
A185: Grundforbedring | B185: -6528 | C185: -5218 | D185: -6568 | E185: -5474 | F185: -6513 | G185: -3499 | H185: -5533 | I185: -6984 | J185: -3074 | K185: -3605
A186: Stamplanter | B186: -1712 | C186: -26 | D186: -39 | E186: 182 | F186: -24 | G186: 0 | H186: 0
A187: Driftsbygninger | B187: 154357 | C187: -84555 | D187: -99166 | E187: -144579 | F187: -301578 | G187: -134346 | H187: -82930 | I187: -97256 | J187: -95723 | K187: -179876
A188: Inventar markbrug | B188: -119976 | C188: -112835 | D188: -94196 | E188: -143114 | F188: -132116 | G188: -105845 | H188: -118091 | I188: -116019 | J188: -85754 | K188: -80384
A189: Inventar husdyrbrug | B189: -3155 | C189: -67343 | D189: -97061 | E189: -101869 | F189: -131697 | G189: -98630 | H189: -47457 | I189: -65688 | J189: -49254 | K189: -81774
A190: Inventar andet | B190: -3595 | C190: -4074 | D190: -1925 | E190: -8887 | F190: -7955 | G190: -2271 | H190: -9042 | I190: -3314 | J190: -408 | K190: -1101
A191: Beboelse, landbrug | B191: 82445 | C191: -29428 | D191: -18354 | E191: -62060 | F191: -74145 | G191: -21866 | H191: -40382 | I191: -36477 | J191: -31226 | K191: -39102
A192: Private aktiver | B192: -50503 | C192: -16422 | D192: -53057 | E192: 320124 | F192: -51816 | G192: -31486 | H192: -25388 | I192: -28097 | J192: -35071 | K192: -26092
A193: Aktiver udenfor landbrug | B193: -7299 | C193: -20322 | D193: -27321 | E193: -10093 | F193: -49696 | G193: -49647 | H193: -45917 | I193: -37996 | J193: -26040 | K193: -65384
A194: Investeringer ialt | B194: 1228565 | C194: -615352 | D194: -586948 | E194: -843793 | F194: -1453052 | G194: -539046 | H194: -501111 | I194: -427049 | J194: -505020 | K194: -691787
A196: Likviditetsoverskud/-behov | B196: 2938339 | C196: -86039 | D196: -60267 | E196: -161947 | F196: -824210 | G196: -57558 | H196: -64029 | I196: -74771 | J196: -160434 | K196: -381037
A198: Ændring finansaktiver og gæld
A199: Tilgodehav. og værdipapirer | B199: -145310 | C199: -44542 | D199: 13136 | E199: -157014 | F199: 381 | G199: -168949 | H199: 12416 | I199: 54054 | J199: 18855 | K199: -120535
A200: Realkreditinstitutter | B200: -1384695 | C200: 147773 | D200: 115101 | E200: -8562157 | F200: 671803 | G200: 63827 | H200: 81208 | I200: -8305306 | J200: -8316534 | K200: -8332176
A201: Pengeinstitutter lån, netto | B201: -1210053 | C201: -104907 | D201: -56615 | E201: -28396 | F201: 10978 | G201: 98264 | H201: 27658 | I201: -11096 | J201: -35530 | K201: -10116
A202: Anden gæld | B202: 82208 | C202: 90111 | D202: -62114 | E202: -1113335 | F202: 115022 | G202: 40307 | H202: 32886 | I202: -853207 | J202: -791865 | K202: -1005942
A203: Kassekredit, ændring | B203: -223994 | C203: -4279 | D203: 69987 | E203: 7687 | F203: 26153 | G203: -22118 | H203: -89695 | I203: 12812 | J203: 71577 | K203: 98814
A204: Ændring hensættelser | B204: 0 | C204: 50 | D204: -4 | E204: -99 | F204: -24 | G204: 0 | H204: 0 | I204: 0 | J204: -2 | K204: 0
A206: Likviditetsanvendelse/fremskaffelse | B206: -2881844 | C206: 84207 | D206: 79492 | E206: 164574 | F206: 824313 | G206: -33591 | H206: 64416 | I206: 71867 | J206: 159982 | K206: 392189
A208: Konsolideringsanalyse
A209: Resultat efter finansiering | B209: 612630 | C209: 430844 | D209: 190577 | E209: 570212 | F209: 444007 | G209: 0 | H209: 0
A210: Private indtægter/omkostninger | B210: 347611 | C210: 387999 | D210: 399459 | E210: 407313 | F210: 410433 | G210: 0 | H210: 0
A211: tilbf. værdiændr. stambesætning mm | B211: 52082 | C211: -9998 | D211: -8793 | E211: -10892 | F211: -5123 | G211: 0 | H211: 0
A212: Beregnet skat | B212: -345163 | C212: -288677 | D212: -198763 | E212: -338334 | F212: -281833 | G212: 0 | H212: 0
A213: Privat udtræk | B213: -265106 | C213: -295740 | D213: -271035 | E213: -304982 | F213: -308538 | G213: 0 | H213: 0
A214: Pensionsindbetaling | B214: -45393 | C214: -36570 | D214: -33622 | E214: -36472 | F214: -26025 | G214: 0 | H214: 0
A215: Konsolidering | B215: 356662 | C215: 187858 | D215: 77824 | E215: 286285 | F215: 232923 | G215: 135578 | H215: 0
A217: Nøgletal - konsolidering | E217: 0
A218: Ændring i resultat - nulkonsolidering | B218: -579957 | C218: -340229 | D218: -155939 | E218: -476288 | F218: -370700 | G218: 0 | H218: 0
A219: nulpunktsrente pct
A220: nulpunktsmælkepris kr/kg EKM
A221: Nulpunktspris fravænnede grise
A222: Nulpunktspris smågrise
A223: Nulpunktspris slagtesvin kg
A224: Nulpunktspris minkskind
A226: Øknomiske nøgletal
A227: Virksomhedens afkast, pct. | B227: 0.6 | C227: -15.6 | D227: =(D53+D74+D56+D67+D58+D59)*100/(D108-D103-D105) -> 0.2916991511 | E227: =(E53+E74+E56+E67+E58+E59)*100/(E108-E103-E105) -> 2.516708354 | F227: 2.805545973 | G227: 2.59666776 | H227: 2.340445415 | I227: 1.699117452 | J227: 1.99035089 | K227: 3.27665362
A228: Virksomhedens overskudsmargin, pct | B228: -22.8 | C228: -54.2 | D228: =(D53+D74+D56+D67+D58+D59)*100/D27 -> 1.772997859 | E228: =(E53+E74+E56+E67+E58+E59)*100/E27 -> 13.22349558 | F228: 16.96986955 | G228: 16.50481366 | H228: 14.6927128 | I228: 10.31409274 | J228: 12.89676261 | K228: 23.54598341
A229: Dækningsgrad, pct | B229: 63.3 | C229: 61.7 | D229: =D37*100/D27 -> 50.74773086 | E229: =E37*100/E27 -> 57.34193445 | F229: 57.66288439 | G229: 56.47460615 | H229: 54.87906994 | I229: 50.76275798 | J229: 52.89182851 | K229: 56.83648628
A230: Virksomhedens afkast til egenkapital, pct | B230: =(B209+B67)*100/B148 -> 3.494877635 | C230: =(C209+C67)*100/C148 -> 0.6443203661 | D230: -4.295165382 | E230: 3.136194996 | F230: 4.732130721 | G230: -4.084348774 | H230: -4.802609151 | I230: -4.353139531 | J230: -4.081955768 | K230: 0
A231: Soliditetsgrad, pct | B231: 31.6 | C231: 27 | D231: =D148*100/D108 -> 26.70290196 | E231: =E148*100/E108 -> 26.11511447 | F231: 25.46885964 | G231: 27.41303661 | H231: 24.88793922 | I231: 28.35526454 | J231: 29.03055221 | K231: 31.62207504
A232: Rentedækningsgrad | B232: 5.7 | C232: 5
A234: Bilag 1: Produktionstekniske oplysninger, planteavl | K234: 0
A236: Gruppering | B236: Alle | C236: Alle | D236: Alle | E236: Alle | F236: Alle | G236: Alle | H236: Alle | I236: Alle | J236: Alle | K236: Alle
A237: År | B237: 2020 | C237: 2019 | D237: 2018 | E237: 2017 | F237: 2016 | G237: 2015 | H237: 2014 | I237: 2013 | J237: 2012 | K237: 2011
A239: Afgrødefordeling, ha
A240: Vårbyg, ha | B240: 17.8 | C240: 12.1 | D240: 12 | E240: 11.2 | F240: 11 | G240: 9.1 | H240: 9.6 | I240: 9.7 | J240: 9.9 | K240: 8.8
A241: Vinterbyg, ha | B241: 1.6 | C241: 1.5 | D241: 0.7 | E241: 1.2 | F241: 0.4 | G241: 0.4 | H241: 0.6 | I241: 0.4 | J241: 0.4 | K241: 0.5
A242: Vårhvede | B242: 2.3 | C242: 1.9 | D242: 1.8 | E242: 1.9 | F242: 2.1 | G242: 2.7 | H242: 2.4 | I242: 3.3 | J242: 4 | K242: 3.7
A243: Vinterhvede, ha | B243: 4.8 | C243: 3.6 | D243: 1.8 | E243: 3.8 | F243: 3.2 | G243: 3.2 | H243: 2.9 | I243: 1.4 | J243: 2.1 | K243: 3.4
A244: Triticale, ha | B244: 0.7 | C244: 0.5 | D244: 0.2 | E244: 0.7 | F244: 1.1 | G244: 2.2 | H244: 3.2 | I244: 1.8 | J244: 2.4 | K244: 2.6
A245: Rug, ha | B245: 11.6 | C245: 17.3 | D245: 7.9 | E245: 9 | F245: 7.5 | G245: 7.4 | H245: 6.9 | I245: 4.4 | J245: 2.5 | K245: 2.6
A246: Havre, ha | B246: 15.9 | C246: 7.5 | D246: 11.1 | E246: 8.8 | F246: 6.4 | G246: 4.8 | H246: 4.7 | I246: 8 | J246: 6.5 | K246: 6.2
A247: Kernemajs/majs til modenhed, ha | B247: 0.2 | C247: 0.1 | D247: 0 | E247: 0 | F247: 0 | G247: 0 | H247: 0 | I247: 0 | J247: 0 | K247: 0
A248: Blandsæd | B248: 1.4 | C248: 1.6 | D248: 1.1 | E248: 1.9 | F248: 1.7 | G248: 1.8 | H248: 2.5 | I248: 2.3 | J248: 2.6 | K248: 2.6
A249: Korn areal, ha | B249: 56.2 | C249: 45.9 | D249: 36.7 | E249: 38.7 | F249: 33.4 | G249: 31.6 | H249: 32.9 | I249: 31.3 | J249: 30.5 | K249: 30.4
A252: Græsfrø, ha | B252: 1.6 | C252: 0.3 | D252: 0.6 | E252: 0.3 | F252: 0.3 | G252: 0.5 | H252: 0.5 | I252: 0.3 | J252: 0.4 | K252: 0.4
... 513 more rows

Sheet 1.4 Heltid alle
A1: Udtrukket: 09-10-2020 08:41:29 af LFjubp
A2: Denne udskrift kan indeholde fortrolige data og skal derfor behandles med særlig omhu og i forhold til gældende regler omkring datasikkerhed. Distribution til tredje part er ikke tilladt uden samtykke fra SEGES. Sker dette alligevel, kan SEGES ikke holdes ansvarlig
A3: Udvælgelse: (([norm_t_ejendom] >= 1665 AND [norm_t_ejendom] <= 99999999999999999)) AND Godkendt = Ja AND Tilladelse IN (ØDB statistik) AND Opstilling = Statistik
A4: Gruppering: Afkastningsgrad
B5: NB: USIKKERHED VEDR. MINK I 2020 - SE TABEL 1.4A
A6: Gruppering | B6: Alle | C6: Alle | D6: Alle | E6: Alle | F6: Alle | G6: Alle | H6: Alle | I6: Alle | J6: Alle | K6: Alle
A7: År | B7: 2020 | C7: 2019 | D7: 2018 | E7: 2017 | F7: 2016 | G7: 2015 | H7: 2014 | I7: 2013 | J7: 2012 | K7: 2011
A8: Antal | B8: 3750 | C8: 4199 | D8: 4587 | E8: 5120 | F8: 5162 | G8: 5247 | H8: 5452 | I8: 5769 | J8: 5876 | K8: 5868
A9: Antal vejet | B9: 8456.11 | C9: 8772.81 | D9: 9559.52 | E9: 9765.6 | F9: 9788.78 | G9: 10770.89 | H9: 11169.9 | I9: 11127.47 | J9: 11591.23 | K9: 11670.19
A10: Kredsnummer
A11: Ejendomsnummer
A12: Landbrugsareal, ha | B12: 218 | C12: 196 | D12: 181 | E12: 183 | F12: 170 | G12: 162 | H12: 165 | I12: 159 | J12: 151 | K12: 152
A13: Årskøer | B13: 66 | C13: 64 | D13: 60 | E13: 58 | F13: 58 | G13: 52 | H13: 50 | I13: 51 | J13: 50 | K13: 48
A14: Årssøer | B14: 122 | C14: 114 | D14: 109 | E14: 104 | F14: 102 | G14: 96 | H14: 92 | I14: 87 | J14: 86 | K14: 90
A15: Antal slagtesvin produceret | B15: 2123 | C15: 1852 | D15: 1933 | E15: 1786 | F15: 1908 | G15: 1749 | H15: 1730 | I15: 1662 | J15: 1670 | K15: 1863
A16: Antal minktæver | B16: 181 | C16: 292 | D16: 337 | E16: 311 | F16: 318 | G16: 305 | H16: 300 | I16: 269 | J16: 246 | K16: 206
A17: Dyreenheder | B17: 231 | C17: 216 | D17: 213 | E17: 203 | F17: 208 | G17: 191 | H17: 185 | I17: 182 | J17: 177 | K17: 178
A18: Beregnet antal normtimer | B18: 6270 | C18: 6095 | D18: 5944 | E18: 5787 | F18: 5713 | G18: 5395 | H18: 5358 | I18: 5179 | J18: 5045 | K18: 5045
A20: Bruttoudbytte Planteavl inkl. IO | B20: 2357613 | C20: 2177966 | D20: 1773759 | E20: 1852514 | F20: 1559236 | G20: 1601001 | H20: 1701386 | I20: 1652168 | J20: 1704199 | K20: 1441184
A21: Bruttoudbytte Kvæg | B21: 2210363 | C21: 2117323 | D21: 1995911 | E21: 1982405 | F21: 1578438 | G21: 1472069 | H21: 1610806 | I21: 1586696 | J21: 1423781 | K21: 1350875
A22: Bruttoudbytte Svin | B22: 3198613 | C22: 3091781 | D22: 2086328 | E22: 2437226 | F22: 2375783 | G22: 1809439 | H22: 1881490 | I22: 2023089 | J22: 2002765 | K22: 1932762
A23: Bruttoudbytte andre husdyr | B23: 584108 | C23: 571233 | D23: 646347 | E23: 719550 | F23: 693281 | G23: 891437 | H23: 774228 | I23: 1067304 | J23: 891102 | K23: 635567
A24: Skovindtægter | B24: 8932 | C24: 10811 | D24: 11639 | E24: 9477 | F24: 7455 | G24: 8837 | H24: 0
A25: Maskinstationsindtægter | B25: 144483 | C25: 149941 | D25: 155585 | E25: 176810 | F25: 163361 | G25: 155206 | H25: 140971 | I25: 113285 | J25: 114830 | K25: 135168
A26: Andre landbrugsindtægter | B26: 280144 | C26: 200611 | D26: 197545 | E26: 250738 | F26: 181466 | G26: 146659 | H26: 168149 | I26: 156693 | J26: 139235 | K26: 155789
A27: Bruttoudbytte ialt | B27: 8784257 | C27: 8319666 | D27: 6867115 | E27: 7428720 | F27: 6559021 | G27: 6084649 | H27: 6277028 | I27: 6599235 | J27: 6275911 | K27: 5651344
A29: Stykomkostninger Mark | B29: -655991 | C29: -600929 | D29: -527010 | E29: -551780 | F29: -528028 | G29: -478012 | H29: -475923 | I29: -455966 | J29: -415287 | K29: -383909
A30: Korn inkl. IO | B30: -615293 | C30: -602155 | D30: -558191 | E30: -496162 | F30: -491352 | G30: -466812 | H30: -476198 | I30: -2546461 | J30: -2288790 | K30: -2094768
A31: Færdigblanding mv. | B31: -1968848 | C31: -1848111 | D31: -1834019 | E31: -1714558 | F31: -1712005 | G31: -1621584 | H31: -1604047
A32: Eget grovfoder inkl. IO | B32: -413303 | C32: -389704 | D32: -368456 | E32: -359432 | F32: -339364 | G32: -319411 | H32: -313264
A33: Øvrige stykomkostninger husdyr | B33: -450116 | C33: -423109 | D33: -400201 | E33: -374367 | F33: -367668 | G33: -339563 | H33: -321271 | I33: -302494 | J33: -285266 | K33: -270311
A34: Skovomkostninger | B34: -6146 | C34: -5621 | D34: -4636 | E34: -5787 | F34: -7684 | G34: -3564 | H34: 0
A35: Stykomkostninger i alt | B35: -4109696 | C35: -3869629 | D35: -3692513 | E35: -3502087 | F35: -3446100 | G35: -3228947 | H35: -3190703 | I35: -3304921 | J35: -2989343 | K35: -2748988
A37: Dækningsbidrag | B37: 4674561 | C37: 4450036 | D37: 3174602 | E37: 3926633 | F37: 3112920 | G37: 2855702 | H37: 3086325 | I37: 3294314 | J37: 3286569 | K37: 2902356
A39: Energi og brændstof | B39: -237680 | C39: -239726 | D39: -257926 | E39: -232094 | F39: -225643 | G39: -216558 | H39: -248737 | I39: -251245 | J39: -245370 | K39: -239167
A40: Maskinstation | B40: -353785 | C40: -330015 | D40: -293896 | E40: -285219 | F40: -273528 | G40: -246372 | H40: -249199 | I40: -238910 | J40: -236365 | K40: -217306
A41: Vedligeholdelse | B41: -471106 | C41: -400609 | D41: -376519 | E41: -372580 | F41: -342915 | G41: -318379 | H41: -324021 | I41: -319198 | J41: -291905 | K41: -275934
A42: Investeringer over driften | B42: -27324 | C42: -24687 | D42: -22064 | E42: -24938 | F42: -20995 | G42: -21759 | H42: -24223 | I42: -23745 | J42: -22422 | K42: -20982
A43: Lønomkostninger | B43: -766054 | C43: -711863 | D43: -678457 | E43: -634709 | F43: -588548 | G43: -545194 | H43: -524957 | I43: -469394 | J43: -410121 | K43: -387796
A44: Ejendomsskat og forsikringer | B44: -152759 | C44: -142664 | D44: -135030 | E44: -130554 | F44: -125415 | G44: -115334 | H44: -112876 | I44: -105057 | J44: -96594 | K44: -93669
A45: Diverse omkostninger | B45: -219221 | C45: -209008 | D45: -201727 | E45: -194348 | F45: -187459 | G45: -178877 | H45: -178293 | I45: -174276 | J45: -167207 | K45: -161874
A46: Kontante kapacitetsomkostninger | B46: -2227929 | C46: -2058572 | D46: -1965619 | E46: -1874443 | F46: -1764504 | G46: -1642473 | H46: -1662305 | I46: -1581825 | J46: -1469984 | K46: -1396728
A48: Afskrivninger | B48: -767084 | C48: -732908 | D48: -706775 | E48: -705396 | F48: -696998 | G48: -637334 | H48: -626164 | I48: -586330 | J48: -550860 | K48: -534706
A49: Nedskrivninger | B49: -17845 | C49: -14296 | D49: -20661 | E49: -25086 | F49: -20497 | G49: -20461 | H49: -12871 | I49: -22477 | J49: -10601 | K49: -8408
A50: Tab/gevinst | B50: 24167 | C50: 9132 | D50: 19486 | E50: 10753 | F50: 19077 | G50: 20853 | H50: 25040 | I50: 39746 | J50: 21385 | K50: 15495
A51: Kapacitetsomkostninger i alt | B51: -2988691 | C51: -2796644 | D51: -2673568 | E51: -2594172 | F51: -2462922 | G51: -2279414 | H51: -2276301 | I51: -2150886 | J51: -2010060 | K51: -1924347
A53: Resultat af primær drift | B53: 1685870 | C53: 1653393 | D53: 501034 | E53: 1332461 | F53: 649998 | G53: 576288 | H53: 810024 | I53: 1143428 | J53: 1276509 | K53: 978009
A56: Afkoblet EU-støtte mv. | B56: 490553 | C56: 456793 | D56: 440180 | E56: 440744 | F56: 422023 | G56: 416292 | H56: 429821 | I56: 418172 | J56: 410978 | K56: 389850
A58: Forpagtningsindtægt | B58: 80071 | C58: 87282 | D58: 83339 | E58: 69996 | F58: 66588 | G58: 47770 | H58: 44877 | I58: 35451 | J58: 36463 | K58: 30375
A59: Forpagtningsafgift | B59: -423379 | C59: -357691 | D59: -331286 | E59: -335348 | F59: -296256 | G59: -292454 | H59: -293546 | I59: -273331 | J59: -252987 | K59: -240996
A60: Renteindt, landbrug og fin.tilskud | B60: 26810 | C60: 23378 | D60: 22616 | E60: 23841 | F60: 21375 | G60: 23300 | H60: 25755 | I60: 25045 | J60: 23281 | K60: 24010
A61: Realiseret gevinst/tab finansaktiver | B61: -24980 | C61: -18904 | D61: -33994 | E61: -40239 | F61: -50736 | G61: -41996 | H61: -53332 | I61: -59606 | J61: -56783 | K61: -103063
A62: Renteudgifter, landbrug | B62: -465744 | C62: -510923 | D62: -516142 | E62: -545758 | F62: -564162 | G62: -546878 | H62: -572615 | I62: -553569 | J62: -637942 | K62: -641650
A63: Finansomkostninger ialt, landbrug | B63: -807222 | C63: -776858 | D63: -775468 | E63: -827507 | F63: -823191 | G63: -810258 | H63: -848860 | I63: -826011 | J63: -887967 | K63: -931324
A65: Driftsresultat | B65: 1369201 | C65: 1333328 | D65: 165746 | E65: 945699 | F65: 248830 | G65: 182322 | H65: 390985 | I65: 735643 | J65: 799423 | K65: 436681
A67: Ejerløn | B67: -426453 | C67: -446935 | D67: -449562 | E67: -448264 | F67: -365577 | G67: -346617 | H67: -355549 | I67: -369792 | J67: -364118 | K67: 0
A68: Korr. værdiændring stambes/foderbeh. | B68: 33928 | C68: -27815 | D68: -26525 | E68: -7785 | F68: -59547 | G68: -2356 | H68: -399
A69: Driftsresultat efter ejerløn mv. | B69: 976677 | C69: 858577 | D69: -310341 | E69: 489649 | F69: -176293 | G69: -166651 | H69: 35038
A71: Afskrivning immaterielle aktiver | B71: -9292 | C71: -10010 | D71: -10307 | E71: -7921 | F71: -8531 | G71: -1612 | H71: -3187 | I71: -1990 | J71: -1610 | K71: -1461
A72: Nedskrivning immaterielle aktiver | B72: -3537 | C72: -1454 | D72: -4145 | E72: -3022 | F72: -2552 | G72: -12348 | H72: -172972 | I72: -138853 | J72: -104460 | K72: -252957
A73: Gevinst/tab immaterielle aktiver | B73: 10573 | C73: 21484 | D73: 22448 | E73: 25316 | F73: 18128 | G73: 17852 | H73: 11979 | I73: 6719 | J73: 6274 | K73: 3337
A74: Anden virksomhed og engangsposter | B74: 157690 | C74: 133545 | D74: 84589 | E74: 102049 | F74: 87935 | G74: 80503 | H74: 76711 | I74: 86686 | J74: 82450 | K74: 70278
A75: Renteindtægter, privat | B75: 10218 | C75: 12488 | D75: 13588 | E75: 12429 | F75: 12104 | G75: 15150 | H75: 7913 | I75: 7772 | J75: 8870 | K75: 8818
A76: Renteudgifter, privat | B76: -31431 | C76: -33498 | D76: -34964 | E76: -38481 | F76: -41040 | G76: -49204 | H76: -52472 | I76: -48399 | J76: -57637 | K76: -63390
A77: Urealiseret regulering værdipapirer | B77: 104963 | C77: 109373 | D77: -32727 | E77: 110382 | F77: 53431 | G77: 67459 | H77: 36231 | I77: 120430 | J77: 50574 | K77: -42477
A78: Urealiseret regulering gæld | B78: 4793 | C78: -8904 | D78: -8044 | E78: 4878 | F78: 4102 | G78: 34622 | H78: -19679 | I78: 19060 | J78: -78866 | K78: -64289
A79: Værdiændring inv. ejendomme og tilknyttede virks. | B79: 204 | C79: 0 | D79: -424 | F79: 1887 | G79: 0 | H79: 0
A81: Resultat før personlig indtjening | B81: 1612925 | C81: 1556326 | D81: 195930 | E81: 1151095 | F81: 374293 | G81: 334627 | H81: 275442 | I81: 787075 | J81: 705017 | K81: 94617
A83: Private indtægter/omkostninger | B83: 260872 | C83: 255440 | D83: 251262 | E83: 232901 | F83: 226641 | G83: 235748 | H83: 231271 | I83: 230772 | J83: 231134 | K83: 216875
A85: Årets resultat før skat | B85: 1873796 | C85: 1811767 | D85: 447192 | E85: 1383996 | F85: 600934 | G85: 570375 | H85: 506713 | I85: 1017847 | J85: 936151 | K85: 311492
A87: Skat af årets resultat | B87: -684064 | C87: -662539 | D87: -196524 | E87: -446072 | F87: -257215 | G87: -219499 | H87: -216697 | I87: -395647 | J87: -258476 | K87: -123249
A89: BALANCE
A91: Fast ejendom | B91: 29583547 | C91: 28703766 | D91: 27235713 | E91: 27069201 | F91: 26588441 | G91: 24281489 | H91: 24367429 | I91: 23689332 | J91: 22937327 | K91: 22908679
A92: Stamplanter | B92: 3204 | C92: 1882 | D92: 1474 | E92: 1143 | F92: 1253 | G92: 0 | H92: 0
A93: Betalingsrettigheder EU | B93: 25703 | C93: 30679 | D93: 34201 | E93: 38851 | F93: 45965 | G93: 59040 | H93: 72570 | I93: 90739 | J93: 91312 | K93: 88276
A94: Mælkekvoter og andre leveringsrettigheder | B94: 22193 | C94: 21847 | D94: 15759 | E94: 12924 | F94: 15037 | G94: 21727 | H94: 23297 | I94: 185943 | J94: 316779 | K94: 416754
A95: Inventar og maskiner | B95: 3198832 | C95: 2925338 | D95: 2783366 | E95: 2865348 | F95: 2809952 | G95: 2704673 | H95: 2725884 | I95: 2623274 | J95: 2444475 | K95: 2448746
A96: Besætning | B96: 2257486 | C96: 2321842 | D96: 2037058 | E96: 2032008 | F96: 2090592 | G96: 1797018 | H96: 1783691 | I96: 1857793 | J96: 1796182 | K96: 1605915
A97: Beholdning | B97: 1478102 | C97: 1289197 | D97: 1141347 | E97: 1212072 | F97: 1070264 | G97: 1087107 | H97: 1079167 | I97: 1050200 | J97: 1024130 | K97: 874582
A98: Tilgodehavende | B98: 1530167 | C98: 1500500 | D98: 1565017 | E98: 1546420 | F98: 1508554 | G98: 1288222 | H98: 1310143 | I98: 1253606 | J98: 1204003 | K98: 1060881
A99: Andelskapital og financielle kontrakter | B99: 1068340 | C99: 984058 | D99: 832806 | E99: 806794 | F99: 743470 | G99: 631057 | H99: 571867 | I99: 490587 | J99: 435874 | K99: 424773
A100: Landbrugsaktiver i alt | B100: 39167574 | C100: 37779109 | D100: 35646743 | E100: 35584763 | F100: 34873528 | G100: 31870333 | H100: 31934048 | I100: 31241474 | J100: 30250082 | K100: 29828605
A102: Fast ejendom udenfor landbrug | B102: 1638798 | C102: 1728800 | D102: 1654536 | E102: 1691918 | F102: 1691585 | G102: 1702953 | H102: 0 | I102: 552100 | J102: 557993 | K102: 534689
A103: Private aktiver | B103: 420081 | C103: 432728 | D103: 434185 | E103: 418759 | F103: 411131 | G103: 235903 | H103: 226809 | I103: 1232748 | J103: 1216118 | K103: 1193382
A104: Øvrige aktiver udenfor landbrug | B104: 277717 | C104: 229533 | D104: 247002 | E104: 242923 | F104: 242451 | G104: 297726 | H104: 308211 | I104: 324350 | J104: 266830 | K104: 266039
A105: Værdipapirer og indlån | B105: 1847677 | C105: 1290622 | D105: 1182293 | E105: 1278830 | F105: 1186334 | G105: 1096647 | H105: 1200941 | I105: 1214706 | J105: 1178500 | K105: 1199328
A106: Hensættelser (positive) | B106: 71962 | C106: 78002 | D106: 94744 | E106: 96303 | F106: 129102 | G106: 141395 | H106: 146409
A108: Aktiver i alt | B108: 43423808 | C108: 41538794 | D108: 39259502 | E108: 39313495 | F108: 38534131 | G108: 35344956 | H108: 35367907 | I108: 34565378 | J108: 33469523 | K108: 33022043
A110: Ansvarlig lånekapital | B110: -80507 | C110: -86725 | D110: -71720
A111: Realkreditinstitutter | B111: -20167005 | C111: -19590261 | D111: -18581953 | E111: -18617131 | F111: -18521939 | G111: -16620700 | H111: -16632501 | I111: -16245228 | J111: -16011824 | K111: -15838755
A112: Pengeinstitutter | B112: -2689149 | C112: -2941519 | D112: -3158564 | E112: -3278254 | F112: -3678326 | G112: -3244100 | H112: -3185337 | I112: -3320698 | J112: -3198580 | K112: -3134821
A113: Pante- og gældsbreve | B113: -228546 | C113: -194470 | D113: -196529 | E113: -181851 | F113: -166803 | G113: -153698 | H113: -148281
A114: Anden langfristet gæld | B114: -403498 | C114: -347763 | D114: -281357 | E114: -330412 | F114: -370465 | G114: -41297 | H114: -26633
A115: Anden gæld | B115: -2615955 | C115: -2401996 | D115: -2288048 | E115: -2401194 | F115: -2165859 | G115: -2099822 | H115: -2204102 | I115: -2136783 | J115: -2107718 | K115: -1950052
A116: Kassekredit | B116: -1133070 | C116: -1258525 | D116: -1604583 | E116: -1420950 | F116: -1676072 | G116: -1555933 | H116: -1498105 | I116: -1445376 | J116: -1433138 | K116: -1360759
A117: Gæld i alt | B117: -27317730 | C117: -26821257 | D117: -26182756 | E117: -26310608 | F117: -26579464 | G117: -23715549 | H117: -23694959 | I117: -23148085 | J117: -22751260 | K117: -22284387
A119: Hensættelser (negative) | B119: -4697801 | C119: -4382474 | D119: -3920202 | E119: -3910632 | F119: -3686076 | G119: -3236307 | H119: -3211697 | I119: -3060694 | J119: -2745544 | K119: -2756048
A121: Egenkapital | B121: 11408276 | C121: 10335063 | D121: 9156544 | E121: 9092254 | F121: 8268592 | G121: 8393101 | H121: 8461251 | I121: 8356599 | J121: 7972719 | K121: 7981608
A123: EGENKAPITALFORKLARING
A125: Resultat efter finansiering | B125: 1505678 | C125: 1445863 | D125: 228959 | E125: 1021696 | F125: 307829 | G125: 228653 | H125: 423070 | I125: 781709 | J125: 833201 | K125: 452318
A126: Private indtægter | B126: 260872 | C126: 255440 | D126: 251262 | E126: 232901 | F126: 226641 | G126: 235748 | H126: 231271 | I126: 230772 | J126: 231134 | K126: 216875
A127: Resultat før regulering og skat | B127: 1766550 | C127: 1701303 | D127: 480221 | E127: 1254597 | F127: 534470 | G127: 464400 | H127: 654342 | I127: 1012481 | J127: 1064335 | K127: 669193
A129: Privat | B129: -267658 | C129: -250089 | D129: -247699 | E129: -248074 | F129: -255848 | G129: -258661 | H129: -264524 | I129: -299329 | J129: -284283 | K129: -278734
A130: Formueindtægter/-udgifter | B130: -26277 | C130: -22232 | D130: -22978 | E130: -20424 | F130: -18079 | G130: -39515 | H130: -32737 | I130: -33270 | J130: -20686 | K130: -29410
A131: Privat udtræk | B131: -293935 | C131: -272321 | D131: -270677 | E131: -268498 | F131: -273928 | G131: -298176 | H131: -297261 | I131: -313097 | J131: -284399 | K131: -284283
A133: Ud- og indbetaling interessenter | B133: -64030 | C133: -74341 | D133: -31188 | F133: -41360 | G133: -40638 | H133: -45904 | I133: -59280 | J133: -36706 | K133: -32386
A134: Betalt skat | B134: -352399 | C134: -312948 | D134: -161730 | E134: -225594 | F134: -132850 | G134: -160451 | H134: -168304 | I134: -215876 | J134: -165624 | K134: -128084
A135: Ændring i udskudt skat | B135: -331665 | C135: -349592 | D135: -34795 | E135: -220478 | F135: -124356 | G135: -59048 | H135: -48393 | I135: -179771 | J135: -92853 | K135: 4835
A136: Skat af årets resultat | B136: -684064 | C136: -662539 | D136: -196524 | E136: -446072 | F136: -257215 | G136: -219499 | H136: -216697 | I136: -395647 | J136: -258476 | K136: -123249
A138: Ændring af egenkapital fra drift, privat og skat | B138: 724520 | C138: 692102 | D138: -18168 | E138: 463644 | F138: -38032 | G138: -93913 | H138: 94480 | I138: 243685 | J138: 486111 | K138: 261661
A139: Regulering ialt fra resultat | B139: 107042 | C139: 110463 | D139: -32606 | E139: 130087 | F139: 64578 | G139: 105974 | H139: -147629 | I139: 5366 | J139: -128087 | K139: -357848
A140: Værdireguleringer | B140: 165309 | C140: 132168 | D140: 73540 | E140: 191436 | F140: 32140 | G140: 72444 | H140: 251324 | I140: 151992 | J140: 24798 | K140: -700347
A141: Pensionsindbetaling | B141: -85216 | C141: -84668 | D141: -47587 | E141: -54581 | F141: -37769 | G141: -38715 | H141: -70426 | I141: -101131 | J141: -79238 | K141: -62254
A142: Øvrige egenkapitalbevægelser | B142: -331 | C142: 0 | D142: 0 | E142: 861 | F142: 0 | G142: 0 | H142: 0 | I142: 0 | J142: 0 | K142: 0
A144: Ændring af egenkapital | B144: 911988 | C144: 850091 | D144: -25413 | E144: 730759 | F144: 22803 | G144: 45791 | H144: 127750 | I144: 305786 | J144: 304169 | K144: -949260
A146: Egenkapital primo | B146: 10497479 | C146: 9488593 | D146: 9175848 | E146: 8359134 | F146: 8249803 | G146: 8349921 | H146: 8333186 | I146: 8054978 | J146: 7670033 | K146: 8931405
A148: Egenkapital ultimo | B148: 11408276 | C148: 10335063 | D148: 9156544 | E148: 9092254 | F148: 8268592 | G148: 8393101 | H148: 8461251 | I148: 8360764 | J148: 7974202 | K148: 7982145
A150: PENGEBINDING
A152: Årets resultat før skat | B152: 1873796 | C152: 1811767 | D152: 447192 | E152: 1383996 | F152: 600934 | G152: 570375 | H152: 506713 | I152: 1017847 | J152: 936151 | K152: 311492
A154: Værdiændring besætning/beholdning | B154: 222679 | C154: -244246 | D154: -5907 | E154: 37342 | F154: -132472 | G154: -27975 | H154: 0
A155: Afskrivninger m.v., landbrug | B155: 763018 | C155: 728052 | D155: 699954 | E155: 705357 | F155: 691374 | G155: 633049 | H155: 778176 | I155: 703185 | J155: 639969 | K155: 778554
A156: Afskrivninger andre erhverv | B156: 22283 | C156: 19273 | D156: 24045 | E156: 26498 | F156: 33825 | G156: 24342 | H156: 20408 | I156: 18863 | J156: 17629 | K156: 16745
A157: Regulering I/S | B157: -25281 | C157: -21750 | D157: -3392 | E157: -14314 | F157: -8053 | G157: 0 | H157: 0 | I157: 408 | J157: 517 | K157: 966
A158: Gevinst/tab finansaktiver | B158: -3159 | C158: -5668 | D158: -5671 | E158: -11718 | F158: -7964 | G158: -6904 | H158: -3543 | I158: -2492 | J158: -5017 | K158: -2394
A159: Urealiseret regulering finansaktiver | B159: -104504 | C159: -109347 | D159: 32558 | E159: -110837 | F159: -53431 | G159: -67459 | H159: -36231 | I159: -120430 | J159: -50574 | K159: 42477
A160: Gevinst/tab gæld | B160: -211 | C160: 21405 | D160: 11936 | E160: 10803 | F160: 1393 | G160: 21280 | H160: 10706 | I160: -4290 | J160: 9876 | K160: 11636
A161: Urealiseret regulering gæld | B161: -4793 | C161: 8904 | D161: 8044 | E161: 4878 | F161: -4102 | G161: -34622 | H161: 19679 | I161: -19060 | J161: -78866 | K161: -64289
A162: Øvrige tilbageførsler | B162: -48162 | C162: -34347 | D162: -6138 | E162: -10998 | F162: -11756 | G162: 259 | H162: 917
A163: Tilbageførsel i alt | B163: 821809 | C163: 362275 | D163: 755427 | E163: 627255 | F163: 508815 | G163: 569945 | H163: 790112 | I163: 576186 | J163: 691265 | K163: 912273
A165: Betalt skat | B165: -347083 | C165: -312783 | D165: -161608 | E165: -225594 | F165: -132609 | G165: -161533 | H165: -166833 | I165: -215876 | J165: -165624 | K165: -128084
A166: Privat | B166: -268620 | C166: -253019 | D166: -247699 | E166: -248074 | F166: -255848 | G166: -258661 | H166: -264524 | I166: -299329 | J166: -284283 | K166: -278734
A167: Afskrivninger privat tlbf. | B167: 21471 | C167: 20788 | D167: 20245 | E167: 22562 | F167: 20915 | G167: 22043 | H167: 23590 | I167: 19531 | J167: 20115 | K167: 24009
A168: Formueindtægter/-udgifter | B168: -26277 | C168: -22232 | D168: -22978 | E168: -20424 | F168: -18079 | G168: -39515 | H168: -32737 | I168: -33270 | J168: -20686 | K168: -29410
A169: Pensionsindbetaling | B169: -85967 | C169: -85677 | D169: -47822 | E169: -54581 | F169: -37197 | G169: -40769 | H169: -75078 | I169: -101131 | J169: -79238 | K169: -62254
A170: Privat udtræk, skat og pension i alt | B170: -706476 | C170: -652923 | D170: -459862 | E170: -523714 | F170: -422819 | G170: -478435 | H170: -515582 | I170: -672135 | J170: -546110 | K170: -479848
A172: Indskud/udlodning mv interessentskaber/selskaber | B172: -42398 | C172: -59607 | D172: -25043 | E172: -67916 | F172: -52998 | G172: -44033 | H172: -47853
A174: Til invest og afdrag | B174: 1946791 | C174: 1461512 | D174: 717714 | E174: 1419621 | F174: 633933 | G174: 599429 | H174: 731420
A176: Besætning (realforskydning) | B176: -206054 | C176: 18188 | D176: -14155 | E176: -68845 | F176: -34752 | G176: -5411 | H176: 77236 | I176: -38739 | J176: -180946 | K176: -192755
A177: Beholdninger (realforskydninger) | B177: -89667 | C177: -198498 | D177: 139138 | E177: -88122 | F177: 11317 | G177: -42083 | H177: -2391 | I177: 4785 | J177: -154758 | K177: -9807
A178: Flerårige afgrøder | B178: -22 | C178: 23 | D178: -137 | E178: 72 | F178: 35 | G178: 0 | H178: -16 | I178: -32 | J178: -45 | K178: 0
A180: Likviditet før anlægsinvesteringer | B180: 1651048 | C180: 1281226 | D180: 842560 | E180: 1262727 | F180: 610533 | G180: 551935 | H180: 806249 | I180: 899537 | J180: 745557 | K180: 541355
A182: Investeringer
A183: Jord | B183: -553115 | C183: -532897 | D183: -472442 | E183: -484218 | F183: -571366 | G183: -439517 | H183: -385705 | I183: -417275 | J183: -311560 | K183: -336051
A184: Immaterielle aktiver | B184: -4644 | C184: -5088 | D184: -3507 | E184: -3251 | F184: -4158 | G184: -5 | H184: -10110 | I184: -11648 | J184: -10428 | K184: -22331
A185: Grundforbedring | B185: -14706 | C185: -11255 | D185: -12087 | E185: -9587 | F185: -11715 | G185: -13343 | H185: -9866 | I185: -11180 | J185: -11129 | K185: -8041
A186: Stamplanter | B186: -432 | C186: -189 | D186: -105 | E186: 1143 | F186: -191 | G186: 0 | H186: 0
A187: Driftsbygninger | B187: -286310 | C187: -199372 | D187: -227307 | E187: -259886 | F187: -289231 | G187: -264843 | H187: -261380 | I187: -272890 | J187: -257594 | K187: -246478
A188: Inventar markbrug | B188: -355418 | C188: -267145 | D188: -201937 | E188: -257849 | F188: -205969 | G188: -206683 | H188: -229444 | I188: -276083 | J188: -211446 | K188: -204970
A189: Inventar husdyrbrug | B189: -175510 | C189: -156986 | D189: -147619 | E189: -155224 | F189: -128050 | G189: -139296 | H189: -127427 | I189: -165662 | J189: -144662 | K189: -118620
A190: Inventar andet | B190: -10714 | C190: -8574 | D190: -5840 | E190: -16295 | F190: -9259 | G190: -10376 | H190: -8663 | I190: -2612 | J190: -16067 | K190: -4739
A191: Beboelse, landbrug | B191: -80601 | C191: -67606 | D191: -64071 | E191: -52898 | F191: -70642 | G191: -68718 | H191: -81305 | I191: -103193 | J191: -77351 | K191: -80519
A192: Private aktiver | B192: -72319 | C192: -48184 | D192: -45154 | E192: 418759 | F192: -29717 | G192: -27907 | H192: -32152 | I192: -36396 | J192: -34177 | K192: -29000
A193: Aktiver udenfor landbrug | B193: -40641 | C193: -39058 | D193: -27918 | E193: -37953 | F193: -45782 | G193: -49278 | H193: -51714 | I193: -74737 | J193: -45787 | K193: -37030
A194: Investeringer ialt | B194: -1594411 | C194: -1336353 | D194: -1207989 | E194: -1324226 | F194: -1366080 | G194: -1219967 | H194: -1197767 | I194: -1371675 | J194: -1120202 | K194: -1087779
A196: Likviditetsoverskud/-behov | B196: 56637 | C196: -55127 | D196: -365429 | E196: -61499 | F196: -755547 | G196: -668032 | H196: -391518 | I196: -472138 | J196: -374644 | K196: -546424
A198: Ændring finansaktiver og gæld
A199: Tilgodehav. og værdipapirer | B199: -135299 | C199: -156630 | D199: 40552 | E199: -199991 | F199: -45702 | G199: 71455 | H199: -144351 | I199: -19970 | J199: -167498 | K199: -77982
A200: Realkreditinstitutter | B200: 241622 | C200: 283512 | D200: 176459 | E200: -18617131 | F200: 475371 | G200: 370059 | H200: 343748 | I200: -16245228 | J200: -16011824 | K200: -15838755
A201: Pengeinstitutter lån, netto | B201: -259354 | C201: -152441 | D201: -13645 | E201: -40138 | F201: 137883 | G201: 107160 | H201: 45652 | I201: 147767 | J201: 69668 | K201: 107647
A202: Anden gæld | B202: 170542 | C202: 362081 | D202: -50884 | E202: -2401194 | F202: 93494 | G202: -32880 | H202: 95479 | I202: -2136783 | J202: -2107718 | K202: -1950052
A203: Kassekredit, ændring | B203: -53302 | C203: -262770 | D203: 224891 | E203: -171436 | F203: 83094 | G203: 135264 | H203: 68736 | I203: 87670 | J203: 49192 | K203: 138182
A204: Ændring hensættelser | B204: -1867 | C204: 254 | D204: -264 | E204: -349 | F204: -55 | G204: 2374 | H204: 4059 | I204: 43 | J204: 728 | K204: -47
A206: Likviditetsanvendelse/fremskaffelse | B206: -37658 | C206: 74005 | D206: 377109 | E206: 75023 | F206: 744084 | G206: 614148 | H206: 388087 | I206: 480368 | J206: 378827 | K206: 556893
A208: Konsolideringsanalyse
A209: Resultat efter finansiering | B209: 1505680 | C209: 1445865 | D209: 228961 | E209: 1021696 | F209: 307836
A210: Private indtægter/omkostninger | B210: 260872 | C210: 255440 | D210: 251262 | E210: 232901 | F210: 226641
A211: tilbf. værdiændr. stambesætning mm | B211: -25536 | C211: -61020 | D211: -35385 | E211: -21612 | F211: -77918
A212: Beregnet skat | B212: -648415 | C212: -653771 | D212: -227853 | E212: -422311 | F212: -205554
A213: Privat udtræk | B213: -294897 | C213: -275250 | D213: -270677 | E213: -268498 | F213: -273902
A214: Pensionsindbetaling | B214: -85967 | C214: -85677 | D214: -47822 | E214: -54581 | F214: -37193
A215: Konsolidering | B215: 711737 | C215: 625586 | D215: -101514 | E215: 486530 | F215: -60191 | G215: -123080
A217: Nøgletal - konsolidering | E217: 0
A218: Ændring i resultat - nulkonsolidering | B218: -1215721 | C218: -1152697 | D218: -8398 | E218: -783039 | F218: -18351 | G218: 0 | H218: 0
A219: nulpunktsrente pct
A220: nulpunktsmælkepris kr/kg EKM
A221: Nulpunktspris fravænnede grise
A222: Nulpunktspris smågrise
A223: Nulpunktspris slagtesvin kg
A224: Nulpunktspris minkskind
A226: Øknomiske nøgletal
A227: Virksomhedens afkast, pct. | B227: 3.5 | C227: 2.9 | D227: =(D53+D74+D56+D67+D58+D59)*100/(D108-D103-D105) -> 0.8721244074 | E227: =(E53+E74+E56+E67+E58+E59)*100/(E108-E103-E105) -> 3.088156377 | F227: 1.528862946 | G227: 1.416489031 | H227: 2.098805848 | I227: 3.239979022 | J227: 3.827187887 | K227: 4.007648485
A228: Virksomhedens overskudsmargin, pct | B228: 14 | C228: 10.5 | D228: =(D53+D74+D56+D67+D58+D59)*100/D27 -> 4.780668447 | E228: =(E53+E74+E56+E67+E58+E59)*100/E27 -> 15.63712187 | F228: 8.609684281 | G228: 7.917991654 | H228: 11.34833236 | I228: 15.76870652 | J228: 18.9501572 | K228: 21.72078005
A229: Dækningsgrad, pct | B229: 56.5 | C229: 53.8 | D229: =D37*100/D27 -> 46.22904961 | E229: =E37*100/E27 -> 52.857464 | F229: 47.46013163 | G229: 46.93289621 | H229: 49.1685715 | I229: 49.91963462 | J229: 52.36799885 | K229: 51.35691616
A230: Virksomhedens afkast til egenkapital, pct | B230: =(B209+B67)*100/B148 -> 9.460035855 | C230: =(C209+C67)*100/C148 -> 9.665446645 | D230: -2.40921684 | E230: 6.306818969 | F230: -0.6983171984 | G230: -4.129784689 | H230: -4.202085484 | I230: -4.42294508 | J230: -4.566199853 | K230: 0
A231: Soliditetsgrad, pct | B231: 27.9 | C231: 26.2 | D231: =D148*100/D108 -> 23.32312825 | E231: =E148*100/E108 -> 23.12756472 | F231: 21.45783954 | G231: 23.74624826 | H231: 23.92352762 | I231: 24.18826144 | J231: 23.82526336 | K231: 24.1721719
A232: Rentedækningsgrad | B232: 9.9 | C232: 9.8
A234: Bilag 1: Produktionstekniske oplysninger, planteavl | K234: 0
A236: Gruppering | B236: Alle | C236: Alle | D236: Alle | E236: Alle | F236: Alle | G236: Alle | H236: Alle | I236: Alle | J236: Alle | K236: Alle
A237: År | B237: 2020 | C237: 2019 | D237: 2018 | E237: 2017 | F237: 2016 | G237: 2015 | H237: 2014 | I237: 2013 | J237: 2012 | K237: 2011
A239: Afgrødefordeling, ha
A240: Vårbyg, ha | B240: 50.3 | C240: 37.3 | D240: 51.3 | E240: 38.2 | F240: 39.1 | G240: 32.4 | H240: 30.2 | I240: 34.1 | J240: 35.3 | K240: 27.1
A241: Vinterbyg, ha | B241: 8 | C241: 8 | D241: 6.2 | E241: 9.1 | F241: 6.8 | G241: 6.7 | H241: 7.2 | I241: 6.2 | J241: 5.7 | K241: 7.4
A242: Vårhvede | B242: 1.4 | C242: 1.1 | D242: 2.4 | E242: 1 | F242: 0.9 | G242: 1.1 | H242: 1.3 | I242: 2.2 | J242: 1.8 | K242: 1.3
A243: Vinterhvede, ha | B243: 43.7 | C243: 44.8 | D243: 27.5 | E243: 42.3 | F243: 36.6 | G243: 39 | H243: 41.5 | I243: 33 | J243: 32.5 | K243: 41.6
A244: Triticale, ha | B244: 0.4 | C244: 0.7 | D244: 0.4 | E244: 0.6 | F244: 0.6 | G244: 0.9 | H244: 1.2 | I244: 1 | J244: 1.5 | K244: 1.8
A245: Rug, ha | B245: 9.3 | C245: 10.5 | D245: 6.1 | E245: 7.8 | F245: 6.5 | G245: 7.3 | H245: 6.4 | I245: 5.1 | J245: 3.5 | K245: 3
A246: Havre, ha | B246: 6.3 | C246: 3.2 | D246: 4.6 | E246: 3.6 | F246: 3 | G246: 2.1 | H246: 2 | I246: 3.2 | J246: 3.1 | K246: 2.3
A247: Kernemajs/majs til modenhed, ha | B247: 0.8 | C247: 0.7 | D247: 0.4 | E247: 0.4 | F247: 0.4 | G247: 0.4 | H247: 0.6 | I247: 0.7 | J247: 0.8 | K247: 0.8
A248: Blandsæd | B248: 0.4 | C248: 0.4 | D248: 0.4 | E248: 0.5 | F248: 0.7 | G248: 0.3 | H248: 0.5 | I248: 0.8 | J248: 1.1 | K248: 1
A249: Korn areal, ha | B249: 120.7 | C249: 106.7 | D249: 99.2 | E249: 103.5 | F249: 94.6 | G249: 90.1 | H249: 90.9 | I249: 86.4 | J249: 85.2 | K249: 86.4
... 515 more rows

Sheet 1.4A Heltid u. mink
A1: Udtrukket: 27-07-2021 16:07:42 af LFASMC
A2: Denne udskrift kan indeholde fortrolige data og skal derfor behandles med særlig omhu og i forhold til gældende regler omkring datasikkerhed. Distribution til tredje part er ikke tilladt uden samtykke fra SEGES. Sker dette alligevel, kan SEGES ikke holdes ansvarlig
A3: Udvælgelse: (([norm_t_ejendom] >= 1665 AND [norm_t_ejendom] <= 99999)) AND (([gtype] >= 15 AND [gtype] <= 99999)) AND Godkendt = Ja AND Tilladelse IN (ØDB statistik) AND Opstilling = Statistik
A4: Gruppering: Afkastningsgrad
A6: Gruppering | B6: Alle | C6: Alle | D6: Alle | E6: Alle | F6: Alle | G6: Alle | H6: Alle | I6: Alle | J6: Alle | K6: Alle
A7: År | B7: 2020 | C7: 2019 | D7: 2018 | E7: 2017 | F7: 2016 | G7: 2015 | H7: 2014 | I7: 2013 | J7: 2012 | K7: 2011
A8: Antal | B8: 3732 | C8: 4038 | D8: 4346 | E8: 4833 | F8: 4867 | G8: 4950 | H8: 5148 | I8: 5433 | J8: 5545 | K8: 5538
A9: Antal vejet | B9: 7829.11 | C9: 7985.63 | D9: 8563.97 | E9: 8713.23 | F9: 8654.86 | G9: 9510.58 | H9: 9938.39 | I9: 9961.22 | J9: 10362.22 | K9: 10672.93
A12: Landbrugsareal, ha | B12: 234 | C12: 211 | D12: 198 | E12: 200 | F12: 188 | G12: 178 | H12: 180 | I12: 174 | J12: 0 | K12: 0
A13: Årskøer | B13: 72 | C13: 70 | D13: 67 | E13: 65 | F13: 65 | G13: 58 | H13: 56 | I13: 57 | J13: 56 | K13: 52
A14: Årssøer | B14: 132 | C14: 125 | D14: 122 | E14: 116 | F14: 115 | G14: 108 | H14: 103 | I14: 97 | J14: 96 | K14: 99
A15: Antal slagtesvin produceret | B15: 2293 | C15: 2028 | D15: 2132 | E15: 1980 | F15: 2131 | G15: 1966 | H15: 1931 | I15: 1845 | J15: 1859 | K15: 2030
A16: Antal minktæver | B16: 1 | C16: 49 | D16: 20 | E16: 12 | F16: 10 | G16: 9 | H16: 9 | I16: 9 | J16: 8 | K16: 9
A17: Dyreenheder | B17: 245 | C17: 231 | D17: 229 | E17: 219 | F17: 226 | G17: 208 | H17: 199 | I17: 196 | J17: 191 | K17: 189
A18: Beregnet antal normtimer | B18: 6435 | C18: 6202 | D18: 5993 | E18: 5868 | F18: 5810 | G18: 5470 | H18: 5413 | I18: 5241 | J18: 5135 | K18: 5104
A20: Bruttoudbytte Planteavl inkl. IO | B20: 2527411 | C20: 2347266 | D20: 1949522 | E20: 2039644 | F20: 1736904 | G20: 1776570 | H20: 1879120 | I20: 1815721 | J20: 1873071 | K20: 0
A21: Bruttoudbytte Kvæg | B21: 2387416 | C21: 2325554 | D21: 2225880 | E21: 2217810 | F21: 1780518 | G21: 1660483 | H21: 1801924 | I21: 1769519 | J21: 1589549
A22: Bruttoudbytte Svin | B22: 3454776 | C22: 3392129 | D22: 2317620 | E22: 2718066 | F22: 2673314 | G22: 2041062 | H22: 2107615 | I22: 2253383 | J22: 2235301
A23: Bruttoudbytte andre husdyr | B23: 388776 | C23: 365875 | D23: 368187 | E23: 342117 | F23: 327511 | G23: 369775 | H23: 308360 | I23: 354809 | J23: 263636
A24: Skovindtægter | B24: 9237 | C24: 11333 | D24: 12026 | E24: 10000 | F24: 7671 | G24: 9258 | H24: 0 | I24: 0 | J24: 0
A25: Maskinstationsindtægter | B25: 155733 | C25: 159232 | D25: 159335 | E25: 186262 | F25: 171706 | G25: 164851 | H25: 153137 | I25: 119993 | J25: 123454
A26: Andre landbrugsindtægter | B26: 225086 | C26: 200227 | D26: 188380 | E26: 248922 | F26: 183479 | G26: 144685 | H26: 140774 | I26: 134149 | J26: 124783
A27: Bruttoudbytte ialt | B27: 9148436 | C27: 8801615 | D27: 7220950 | E27: 7762821 | F27: 6873432 | G27: 6157426 | H27: 6390929 | I27: 6447573 | J27: 6209794
A29: Stykomkostninger Mark | B29: -702746 | C29: -645842 | D29: -577278 | E29: -605190 | F29: -584031 | G29: -527011 | H29: -521864 | I29: -498012 | J29: -454322
A30: Korn inkl. IO | B30: -664569 | C30: -656235 | D30: -618464 | E30: -552919 | F30: -552856 | G30: -525108 | H30: -532664 | I30: 0 | J30: 0
A31: Færdigblanding mv. | B31: -2026279 | C31: -1862560 | D31: -1810686 | E31: -1692002 | F31: 0 | G31: 0 | H31: 0 | I31: 0 | J31: 0
A32: Eget grovfoder inkl. IO | B32: -446403 | C32: -427683 | D32: -410618 | E32: -401769 | F32: -382396 | G32: -360613 | H32: -350192 | I32: 0 | J32: 0
A33: Øvrige stykomkostninger husdyr | B33: -455712 | C33: -417388 | D33: -385056 | E33: -356241 | F33: 0 | G33: 0 | H33: 0 | I33: 0 | J33: 0
A34: Skovomkostninger | B34: -6246 | C34: -5994 | D34: -5003 | E34: -6234 | F34: -8479 | G34: -3423 | H34: 0 | I34: 0 | J34: 0
A35: Stykomkostninger i alt | B35: -4301955 | C35: -4015703 | D35: -3807103 | E35: -3614357 | F35: -3568364 | G35: -3327945 | H35: -3268000 | I35: -3392962 | J35: -3113058
A37: Dækningsbidrag | B37: 4846481 | C37: 4785912 | D37: 3413847 | E37: 4148464 | F37: 3305068 | G37: 2829480 | H37: 3122929 | I37: 3054611 | J37: 3096736 | K37: 2790053
A39: Energi og brændstof | B39: -253086 | C39: -256261 | D39: -277958 | E39: -250672 | F39: -245248 | G39: -236034 | H39: -269343 | I39: -270045 | J39: -265314 | K39: -253880
A40: Maskinstation | B40: -378565 | C40: -356534 | D40: -321127 | E40: -312654 | F40: -300754 | G40: -270092 | H40: -271678 | I40: -258411 | J40: -256615 | K40: -231461
A41: Vedligeholdelse | B41: -502266 | C41: -425770 | D41: -399833 | E41: -392707 | F41: -361976 | G41: -329121 | H41: -336279 | I41: -321195 | J41: -293892 | K41: -277245
A42: Investeringer over driften | B42: -28265 | C42: -25659 | D42: -22489 | E42: -24690 | F42: -20455 | G42: -18638 | H42: -21326 | I42: -18677 | J42: -18134 | K42: -17132
A43: Lønomkostninger | B43: -801649 | C43: -726811 | D43: -676098 | E43: -626047 | F43: -576512 | G43: -529069 | H43: -505554 | I43: -448411 | J43: -399884 | K43: -379526
A44: Ejendomsskat og forsikringer | B44: -159822 | C44: -148766 | D44: -140425 | E44: -136495 | F44: -131619 | G44: -121136 | H44: -117948 | I44: -109722 | J44: -101554 | K44: -97380
A45: Diverse omkostninger | B45: -224181 | C45: -214631 | D45: -204402 | E45: -196753 | F45: -189043 | G45: -181347 | H45: -179784 | I45: -175679 | J45: -168483 | K45: -163370
A46: Kontante kapacitetsomkostninger | B46: -2347833 | C46: -2154433 | D46: -2042332 | E46: -1940018 | F46: -1825606 | G46: -1685436 | H46: -1701911 | I46: -1602139 | J46: -1503877 | K46: -1419995
A48: Afskrivninger | B48: -797927 | C48: -754043 | D48: -722066 | E48: -722945 | F48: -713002 | G48: -652483 | H48: -632782 | I48: -595241 | J48: -564266 | K48: -544726
A49: Nedskrivninger | B49: -17408 | C49: -15409 | D49: -21179 | E49: -25631 | F49: -17736 | G49: -21474 | H49: -12302 | I49: -25078 | J49: -11474 | K49: -9118
A50: Tab/gevinst | B50: 25837 | C50: 9211 | D50: 19916 | E50: 11357 | F50: 21380 | G50: 22908 | H50: 27980 | I50: 43112 | J50: 23008 | K50: 15831
A51: Kapacitetsomkostninger i alt | B51: -3137331 | C51: -2914675 | D51: -2765662 | E51: -2677237 | F51: -2534965 | G51: -2336486 | H51: -2319016 | I51: -2179346 | J51: -2056609 | K51: -1958008
A53: Resultat af primær drift | B53: 1709150 | C53: 1871237 | D53: 648186 | E53: 1471227 | F53: 770103 | G53: 492995 | H53: 803913 | I53: 875265 | J53: 1040127 | K53: 832045
A56: Afkoblet EU-støtte mv. | B56: 522691 | C56: 491096 | D56: 481249 | E56: 482938 | F56: 465538 | G56: 459101 | H56: 470700 | I56: 457260 | J56: 449940 | K56: 418343
A58: Forpagtningsindtægt | B58: 85537 | C58: 89428 | D58: 80010 | E58: 69169 | F58: 64611 | G58: 48032 | H58: 44731 | I58: 33795 | J58: 36013 | K58: 28639
A59: Forpagtningsafgift | B59: -451322 | C59: -386353 | D59: -363105 | E59: -366941 | F59: -327700 | G59: -321148 | H59: -322953 | I59: -297641 | J59: -276311 | K59: -258496
A60: Renteindt, landbrug og fin.tilskud | B60: 26917 | C60: 24975 | D60: 23742 | E60: 25553 | F60: 22717 | G60: 24432 | H60: 26904 | I60: 25960 | J60: 24678 | K60: 25332
A61: Realiseret gevinst/tab finansaktiver | B61: -23759 | C61: -20619 | D61: -36026 | E61: -52034 | F61: -57774 | G61: -48052 | H61: -59263 | I61: -66981 | J61: -62965 | K61: -108157
A62: Renteudgifter, landbrug | B62: -490101 | C62: -536735 | D62: -541580 | E62: -577703 | F62: -603047 | G62: -590465 | H62: -609522 | I62: -591336 | J62: -681354 | K62: -673955
A63: Finansomkostninger ialt, landbrug | B63: -852728 | C63: -829304 | D63: -836960 | E63: -901956 | F63: -901194 | G63: -887201 | H63: -920103 | I63: -896203 | J63: -959939 | K63: -986637
A65: Driftsresultat | B65: 1379114 | C65: 1533030 | D65: 292475 | E65: 1052209 | F65: 334447 | G65: 64894 | H65: 354510 | I65: 436321 | J65: 530129 | K65: 263751
A67: Ejerløn | B67: -426384 | C67: -446426 | D67: -446610 | E67: -447645 | F67: -377083 | G67: -357514 | H67: -367320 | I67: -382121 | J67: -373455 | K67: 0
A68: Korr. værdiændring stambes/foderbeh. | B68: 36645 | C68: -30849 | D68: -29762 | E68: -9200 | F68: -68069 | G68: -2722 | H68: -419 | I68: -3413 | J68: 11736 | K68: 10891
A69: Driftsresultat efter ejerløn mv. | B69: 989375 | C69: 1055754 | D69: -183897 | E69: 595364 | F69: -110706 | G69: -295342 | H69: -13229 | I69: 50787 | J69: 168410 | K69: 274642
A71: Afskrivning immaterielle aktiver | B71: -10032 | C71: -10754 | D71: -11201 | E71: -8670 | F71: -9237 | G71: -1728 | H71: -3439 | I71: -2139 | J71: -1713 | K71: -1530
A72: Nedskrivning immaterielle aktiver | B72: -3820 | C72: -1614 | D72: -4364 | E72: -3383 | F72: -1810 | G72: -12913 | H72: -193042 | I72: -153866 | J72: -115775 | K72: -274333
A73: Gevinst/tab immaterielle aktiver | B73: 11418 | C73: 23286 | D73: 24013 | E73: 27382 | F73: 17819 | G73: 20437 | H73: 13955 | I73: 8991 | J73: 6899 | K73: 5246
A74: Anden virksomhed og engangsposter | B74: 160246 | C74: 140723 | D74: 89617 | E74: 109450 | F74: 94817 | G74: 85572 | H74: 83677 | I74: 92639 | J74: 85828 | K74: 72514
A75: Renteindtægter, privat | B75: 9765 | C75: 13364 | D75: 14506 | E75: 13275 | F75: 12917 | G75: 16271 | H75: 8331 | I75: 0 | J75: 0 | K75: 0
A76: Renteudgifter, privat | B76: -31416 | C76: -34623 | D76: -35764 | E76: -39701 | F76: -42957 | G76: -52246 | H76: -54371 | I76: 0 | J76: 0 | K76: 0
A77: Urealiseret regulering værdipapirer | B77: 95892 | C77: 114026 | D77: -33039 | E77: 121064 | F77: 53880 | G77: 71056 | H77: 38717 | I77: 76939 | J77: 43204 | K77: -50034
A78: Urealiseret regulering gæld | B78: 5171 | C78: -9515 | D78: -9140 | E78: 5557 | F78: 5189 | G78: 37890 | H78: -21661 | I78: 19901 | J78: -84916 | K78: -67756
A79: Værdiændring inv. ejendomme og tilknyttede virks. | B79: 220 | C79: 0 | D79: -473 | E79: -771 | F79: 2134 | G79: 0 | H79: 0 | I79: 0 | J79: 0 | K79: 0
A81: Resultat før personlig indtjening | B81: 1616062 | C81: 1767896 | D81: 326819 | E81: 1276923 | F81: 467046 | G81: 229119 | H81: 226603 | I81: 0 | J81: 0 | K81: 0
A83: Private indtægter/omkostninger | B83: 258476 | C83: 256883 | D83: 253374 | E83: 236271 | F83: 227209 | G83: 236742 | H83: 230580 | I83: 228736 | J83: 228963 | K83: 215096
A85: Årets resultat før skat | B85: 1874538 | C85: 2024778 | D85: 580193 | E85: 1513193 | F85: 694254 | G85: 465861 | H85: 457183 | I85: 664861 | J85: 641394 | K85: 106595
A87: Skat af årets resultat | B87: -671829 | C87: -751745 | D87: -263746 | E87: -494039 | F87: -298902 | G87: -181936 | H87: -199979 | I87: -247697 | J87: -136569 | K87: -41012
A89: BALANCE
A91: Fast ejendom | B91: 31130816 | C91: 30375122 | D91: 28889779 | E91: 28932860 | F91: 28501693 | G91: 26082327 | H91: 0 | I91: 0 | J91: 0 | K91: 0
A92: Stamplanter | B92: 3461 | C92: 2055 | D92: 1628 | E92: 1266 | F92: 1260 | G92: 0 | H92: 0 | I92: 0 | J92: 0 | K92: 0
A93: Betalingsrettigheder EU | B93: 27733 | C93: 32886 | D93: 37437 | E93: 42900 | F93: 51032 | G93: 65893 | H93: 80620 | I93: 100367 | J93: 101046 | K93: 95708
A94: Mælkekvoter og andre leveringsrettigheder | B94: 23955 | C94: 23865 | D94: 17448 | E94: 14302 | F94: 16790 | G94: 24373 | H94: 25572 | I94: 207058 | J94: 353814 | K94: 454997
A95: Inventar og maskiner | B95: 3367531 | C95: 3049614 | D95: 2888770 | E95: 2972607 | F95: 2907417 | G95: 2786842 | H95: 2766741 | I95: 2659936 | J95: 2507269 | K95: 2496590
A96: Besætning | B96: 1996344 | C96: 2131969 | D96: 1697764 | E96: 1716767 | F96: 1777452 | G96: 1474992 | H96: 1415270 | I96: 1555507 | J96: 1539736 | K96: 0
A97: Beholdning | B97: 1590700 | C97: 1400697 | D97: 1261786 | E97: 1339981 | F97: 1195486 | G97: 1210326 | H97: 1198931 | I97: 1156611 | J97: 1130926 | K97: 947159
A98: Tilgodehavende | B98: 1574642 | C98: 1527144 | D98: 1568295 | E98: 1576959 | F98: 1540215 | G98: 1302617 | H98: 1347556 | I98: 0 | J98: 0 | K98: 0
A99: Andelskapital og financielle kontrakter | B99: 1095155 | C99: 977278 | D99: 807399 | E99: 791942 | F99: 710857 | G99: 615907 | H99: 560529 | I99: 0 | J99: 0 | K99: 0
A100: Landbrugsaktiver i alt | B100: 40810337 | C100: 39520630 | D100: 37170306 | E100: 37389585 | F100: 36702201 | G100: 33563278 | H100: 33400478 | I100: 32642156 | J100: 31881700 | K100: 31091490
A102: Fast ejendom udenfor landbrug | B102: 1690029 | C102: 1765466 | D102: 1663196 | E102: 1714580 | F102: 1707400 | G102: 1718543 | H102: 0 | I102: 0 | J102: 0 | K102: 0
A103: Private aktiver | B103: 434110 | C103: 427488 | D103: 422251 | E103: 399700 | F103: 387377 | G103: 229254 | H103: 219307 | I103: 158151 | J103: 156252 | K103: 157859
A104: Øvrige aktiver udenfor landbrug | B104: 299951 | C104: 237412 | D104: 255761 | E104: 259352 | F104: 254926 | G104: 323383 | H104: 328521 | I104: 0 | J104: 0 | K104: 0
A105: Værdipapirer og indlån | B105: 1533422 | C105: 1333766 | D105: 1223092 | E105: 1342615 | F105: 1222399 | G105: 1126427 | H105: 1269600 | I105: 0 | J105: 0 | K105: 0
A106: Hensættelser (positive) | B106: 77725 | C106: 81525 | D106: 102852 | E106: 105585 | F106: 142498 | G106: 159400 | H106: 163927 | I106: 156528 | J106: 176609 | K106: 168290
A108: Aktiver i alt | B108: 44845574 | C108: 43366287 | D108: 40837457 | E108: 41211418 | F108: 40416801 | G108: 37120286 | H108: 36933915 | I108: 35968962 | J108: 35194705 | K108: 34366423
A110: Ansvarlig lånekapital | B110: -86955 | C110: -95274 | D110: -80058 | E110: -87733 | F110: 0 | G110: 0 | H110: 0 | I110: 0 | J110: 0 | K110: 0
A111: Realkreditinstitutter | B111: -21467379 | C111: -20870240 | D111: -19883005 | E111: -20044715 | F111: -20021409 | G111: -18054002 | H111: -17914774 | I111: -17490581 | J111: -17286195 | K111: -16801551
A112: Pengeinstitutter | B112: -2863433 | C112: -3127183 | D112: -3360858 | E112: -3511398 | F112: -3991943 | G112: -3533138 | H112: -3435823 | I112: -3574994 | J112: -3438114 | K112: -3282979
A113: Pante- og gældsbreve | B113: -226734 | C113: -197539 | D113: -204910 | E113: -193132 | F113: -177213 | G113: -165437 | H113: -154067 | I113: -141611 | J113: -118227 | K113: -122758
A114: Anden langfristet gæld | B114: -435485 | C114: -378862 | D114: -309520 | E114: -363489 | F114: -404219 | G114: 0 | H114: 0 | I114: 0 | J114: 0 | K114: 0
A115: Anden gæld | B115: -2714430 | C115: -2447685 | D115: -2251268 | E115: -2361641 | F115: -2147430 | G115: -2103797 | H115: -2202608 | I115: -1944063 | J115: -1982848 | K115: -1829634
A116: Kassekredit | B116: -1194373 | C116: -1240238 | D116: -1571769 | E116: -1417551 | F116: -1711847 | G116: -1625855 | H116: -1504090 | I116: -1499209 | J116: -1510123 | K116: -1406258
A117: Gæld i alt | B117: -28988789 | C117: -28357032 | D117: -27661388 | E117: -27979660 | F117: -28454060 | G117: -25529067 | H117: -25241300 | I117: -24673945 | J117: -24350608 | K117: -23452854
A119: Hensættelser (negative) | B119: -4441634 | C119: -4456112 | D119: -3917099 | E119: -3915151 | F119: -3605075 | G119: -3131738 | H119: -3094673 | I119: -2906435 | J119: -2682882 | K119: -2729969
A121: Egenkapital | B121: 11415151 | C121: 10553143 | D121: 9258970 | E121: 9316608 | F121: 8357666 | G121: 8459481 | H121: 8597942 | I121: 8388583 | J121: 8161216 | K121: 8183600
A123: EGENKAPITALFORKLARING
A125: Resultat efter finansiering | B125: 1517709 | C125: 1652495 | D125: 360834 | E125: 1135234 | F125: 399224 | G125: 114378 | H125: 392073 | I125: 486299 | J125: 564731 | K125: 279906
A126: Private indtægter | B126: 258476 | C126: 256883 | D126: 253374 | E126: 236271 | F126: 227209 | G126: 236742 | H126: 230580 | I126: 228736 | J126: 228963 | K126: 215096
A127: Resultat før regulering og skat | B127: 1776185 | C127: 1909377 | D127: 614209 | E127: 1371504 | F127: 626433 | G127: 351120 | H127: 622653 | I127: 715035 | J127: 793694 | K127: 495002
A129: Privat | B129: -267493 | C129: -256128 | D129: -249381 | E129: -245986 | F129: -252610 | G129: -256239 | H129: -266458 | I129: 0 | J129: 0
A130: Formueindtægter/-udgifter | B130: -26966 | C130: -23736 | D130: -22877 | E130: -21570 | F130: -17568 | G130: -38760 | H130: -32773 | I130: -31909 | J130: -19082
A131: Privat udtræk | B131: -294459 | C131: -279864 | D131: -272257 | E131: -267556 | F131: -270178 | G131: -294999 | H131: -299230 | I131: -301792 | J131: -275145
A133: Ud- og indbetaling interessenter | B133: -69158 | C133: -82016 | D133: -33181 | E133: -75135 | F133: -41079 | G133: -24134 | H133: -40932 | I133: -46684 | J133: -31270
A134: Betalt skat | B134: -367953 | C134: -339813 | D134: -178566 | E134: -239424 | F134: -144627 | G134: -131954 | H134: -142707 | I134: -141149 | J134: -107569
A135: Ændring i udskudt skat | B135: -303876 | C135: -411932 | D135: -85181 | E135: -254615 | F135: -154276 | G135: -49982 | H135: -57273 | I135: -106548 | J135: -29000
A136: Skat af årets resultat | B136: -671829 | C136: -751745 | D136: -263746 | E136: -494039 | F136: -298902 | G136: -181936 | H136: -199979 | I136: -247697 | J136: -136569
A138: Ændring af egenkapital fra drift, privat og skat | B138: 740738 | C138: 795752 | D138: 45024 | E138: 534773 | F138: 16274 | G138: -149949 | H138: 82511 | I138: 0 | J138: 0
A139: Regulering ialt fra resultat | B139: 98133 | C139: 115401 | D139: -33543 | E139: 142460 | F139: 65687 | G139: 114741 | H139: -165470 | I139: -50174 | J139: -152300
A140: Værdireguleringer | B140: 176267 | C140: 140875 | D140: 77086 | E140: 200470 | F140: 34294 | G140: 133243 | H140: 357110 | I140: 254026 | J140: 118642
A141: Pensionsindbetaling | B141: -90656 | C141: -90377 | D141: -50079 | E141: -57945 | F141: -39381 | G141: -36511 | H141: -64339 | I141: -65852 | J141: -49637
A142: Øvrige egenkapitalbevægelser | B142: -357 | C142: 0 | D142: 0 | E142: 965 | F142: 0 | G142: 0 | H142: 0 | I142: 0 | J142: 0
A144: Ændring af egenkapital | B144: 924840 | C144: 961680 | D144: 37827 | E144: 819952 | F144: 79008 | G144: 8007 | H144: 139797 | I144: 0 | J144: 0
A146: Egenkapital primo | B146: 10491597 | C146: 9595439 | D146: 9211541 | E146: 8494010 | F146: 8281388 | G146: 8454259 | H146: 8457792 | I146: 8220551 | J146: 7981372
A148: Egenkapital ultimo | B148: 11415151 | C148: 10553143 | D148: 9258970 | E148: 9316608 | F148: 8357666 | G148: 8459481 | H148: 8597942 | I148: 8388583 | J148: 8161216 | K148: 8183600
A150: PENGEBINDING
A152: Årets resultat før skat | B152: 1874538 | C152: 2024778 | D152: 580193 | E152: 1513193 | F152: 694254 | G152: 465861 | H152: 457183 | I152: 664861 | J152: 641394 | K152: 106595
A154: Værdiændring besætning/beholdning | B154: 240532 | C154: -269849 | D154: -7519 | E154: 41214 | F154: -150364 | G154: -31738 | H154: 0 | I154: 0 | J154: 0
A155: Afskrivninger m.v., landbrug | B155: 791932 | C155: 749324 | D155: 714881 | E155: 721890 | F155: 702587 | G155: 645254 | H155: 799631 | I155: 724221 | J155: 663320
A156: Afskrivninger andre erhverv | B156: 24054 | C156: 20135 | D156: 25275 | E156: 28143 | F156: 35888 | G156: 0 | H156: 0 | I156: 0 | J156: 0
A157: Regulering I/S | B157: -27306 | C157: -23685 | D157: -2141 | E157: -16109 | F157: -9181 | G157: 0 | H157: 0 | I157: 0 | J157: 0
A158: Gevinst/tab finansaktiver | B158: -4084 | C158: -6162 | D158: -5687 | E158: -6257 | F158: -5308 | G158: -5391 | H158: -1623 | I158: -633 | J158: -4292
A159: Urealiseret regulering finansaktiver | B159: -95396 | C159: -113998 | D159: 32851 | E159: -121574 | F159: -53726 | G159: -71056 | H159: -38717 | I159: -76939 | J159: -43204
A160: Gevinst/tab gæld | B160: -609 | C160: 22710 | D160: 12794 | E160: 10937 | F160: 1330 | G160: 22884 | H160: 11425 | I160: -5665 | J160: 10652
A161: Urealiseret regulering gæld | B161: -5171 | C161: 9515 | D161: 9140 | E161: -5557 | F161: -5189 | G161: -37890 | H161: 21661 | I161: -19901 | J161: 84916
A162: Øvrige tilbageførsler | B162: -52019 | C162: -37730 | D162: -4969 | E162: -12352 | F162: -13315 | G162: 262 | H162: 1023 | I162: 484 | J162: 571
A163: Tilbageførsel i alt | B163: 871869 | C163: 350261 | D163: 774626 | E163: 640336 | F163: 502722 | G163: 579876 | H163: 814658 | I163: 641452 | J163: 731214 | K163: 955040
A165: Betalt skat | B165: -362211 | C165: -339632 | D165: -178430 | E165: -235441 | F165: -144389 | G165: -133317 | H165: -141815 | I165: -142549 | J165: -106806 | K165: -94517
A166: Privat | B166: -268532 | C166: -259347 | D166: -249381 | E166: -245986 | F166: -252610 | G166: -256239 | H166: -266458 | I166: -269883 | J166: -256403 | K166: -249578
A167: Afskrivninger privat tlbf. | B167: 21571 | C167: 20788 | D167: 20877 | E167: 22332 | F167: 20936 | G167: 22023 | H167: 23378 | I167: 18964 | J167: 19774 | K167: 24366
A168: Formueindtægter/-udgifter | B168: -26966 | C168: -23736 | D168: -22877 | E168: -21570 | F168: -17568 | G168: -38760 | H168: -32773 | I168: -31909 | J168: -19122 | K168: -29866
A169: Pensionsindbetaling | B169: -91468 | C169: -91486 | D169: -50342 | E169: -59140 | F169: -38735 | G169: -38633 | H169: 0 | I169: 0 | J169: 0 | K169: 0
A170: Privat udtræk, skat og pension i alt | B170: -727606 | C170: -693413 | D170: -480152 | E170: -539806 | F170: -432365 | G170: -444926 | H170: -487219 | I170: -490778 | J170: -415292 | K170: -397318
A172: Indskud/udlodning mv interessentskaber/selskaber | B172: -45793 | C172: -66748 | D172: -26970 | E172: -66621 | F172: -53741 | G172: -27842 | H172: -42146 | I172: 0 | J172: 0 | K172: 0
A174: Til invest og afdrag | B174: 1973074 | C174: 1614879 | D174: 847697 | E174: 1547103 | F174: 710870 | G174: 565244 | H174: 732933 | I174: 771892 | J174: 926065 | K174: 636468
A176: Besætning (realforskydning) | B176: -96580 | C176: -18311 | D176: -26340 | E176: -47873 | F176: -33862 | G176: -23627 | H176: 135480 | I176: -23449 | J176: -124404 | K176: -144455
A177: Beholdninger (realforskydninger) | B177: -95814 | C177: -214368 | D177: 151385 | E177: -98357 | F177: 9229 | G177: -43154 | H177: -7622 | I177: 5950 | J177: -169777 | K177: -12010
A178: Flerårige afgrøder | B178: -23 | C178: 26 | D178: -153 | E178: 81 | F178: 39 | G178: 0 | H178: -18 | I178: -36 | J178: -9 | K178: 0
A180: Likviditet før anlægsinvesteringer | B180: 1780657 | C180: 1382226 | D180: 972589 | E180: 1400953 | F180: 686276 | G180: 0 | I180: 0 | J180: 0 | K180: 0
A182: Investeringer
A183: Jord | B183: -588045 | C183: -570355 | D183: -512313 | E183: -533385 | F183: -613133 | G183: -467455 | H183: -401936 | I183: -415234 | J183: -324357 | K183: -356190
A184: Immaterielle aktiver | B184: -5001 | C184: -5028 | D184: -3832 | E184: -3586 | F184: -4558 | G184: 108 | H184: -11109 | I184: -12514 | J184: -11550 | K184: -24262
A185: Grundforbedring | B185: -15884 | C185: -12221 | D185: -13208 | E185: -10608 | F185: -12601 | G185: -11443 | H185: -10234 | I185: -11257 | J185: -11049 | K185: -7130
A186: Stamplanter | B186: -467 | C186: -207 | D186: -117 | E186: -270 | F186: -185 | G186: 0 | H186: 0 | I186: 0 | J186: 0 | K186: 0
A187: Driftsbygninger | B187: -308444 | C187: -217662 | D187: -243034 | E187: -275573 | F187: -311222 | G187: -267488 | H187: -260853 | I187: -239181 | J187: -242965 | K187: -230503
A188: Inventar markbrug | B188: -381177 | C188: -292067 | D188: -221924 | E188: -280369 | F188: -227329 | G188: -219852 | H188: -246103 | I188: -286979 | J188: -219306 | K188: -214698
A189: Inventar husdyrbrug | B189: -190207 | C189: -168670 | D189: -155290 | E189: -159550 | F189: -134675 | G189: -132038 | H189: -115202 | I189: -132398 | J189: -121728 | K189: -94498
A190: Inventar andet | B190: -11572 | C190: -9019 | D190: -6459 | E190: -16826 | F190: -9359 | G190: -12031 | H190: -8687 | I190: 527 | J190: -17037 | K190: -4025
A191: Beboelse, landbrug | B191: -84770 | C191: -71528 | D191: -63864 | E191: -56117 | F191: -71041 | G191: -63334 | H191: -76753 | I191: -89166 | J191: -66957 | K191: -74255
A192: Private aktiver | B192: -66328 | C192: -51474 | D192: -50870 | E192: -49632 | F192: -32683 | G192: -24508 | H192: -32512 | I192: -31081 | J192: -29051 | K192: -26992
A193: Aktiver udenfor landbrug | B193: -43896 | C193: -46285 | D193: -33487 | E193: -42576 | F193: -47515 | G193: -50002 | H193: -49164 | I193: -63371 | J193: -42655 | K193: -36185
A194: Investeringer ialt | B194: -1695792 | C194: -1444518 | D194: -1304399 | E194: -1428492 | F194: -1464301 | G194: -1248044 | H194: -1212552 | I194: -1280655 | J194: -1086654 | K194: -1068739
A196: Likviditetsoverskud/-behov | B196: 84865 | C196: -62292 | D196: -331810 | E196: -27539 | F196: -778026 | G196: -749581 | H196: -351779 | I196: -526298 | J196: -454780 | K196: -588735
A198: Ændring finansaktiver og gæld
A199: Tilgodehav. og værdipapirer | B199: -146681 | C199: -169596 | D199: 12290 | E199: -229912 | F199: -57593 | G199: 106204 | H199: -169889 | I199: 50605 | J199: -133055 | K199: -62109
A200: Realkreditinstitutter | B200: 271447 | C200: 304200 | D200: 197575 | E200: 379674 | F200: 508157 | G200: 405726 | H200: 337808 | I200: 266113 | J200: 351679 | K200: 306704
A201: Pengeinstitutter lån, netto | B201: -288980 | C201: -159121 | D201: -16414 | E201: -50070 | F201: 146151 | G201: 112331 | H201: 49203 | I201: 170680 | J201: 107547 | K201: 121840
A202: Anden gæld | B202: 164526 | C202: 402580 | D202: -55956 | E202: 145796 | F202: 106029 | G202: -40847 | H202: 102182 | I202: 0 | J202: 0 | K202: 0
A203: Kassekredit, ændring | B203: -62662 | C203: -295268 | D203: 204878 | E203: -202381 | F203: 62461 | G203: 159603 | H203: 36661 | I203: 65213 | J203: 64037 | K203: 153388
A204: Ændring hensættelser | B204: -2016 | C204: 279 | D204: -273 | E204: -410 | F204: -63 | G204: 2689 | H204: 4584 | I204: 49 | J204: 790 | K204: -51
A206: Likviditetsanvendelse/fremskaffelse | B206: -64366 | C206: 83074 | D206: 342101 | E206: 42697 | F206: 765142 | G206: 701522 | H206: 341057 | I206: 525320 | J206: 459526 | K206: 600017
A208: Konsolideringsanalyse
A209: Resultat efter finansiering | B209: 1517711 | C209: 1652496 | D209: 360836 | E209: 1135235 | F209: 399233 | J209: 0 | K209: 0
A210: Private indtægter/omkostninger | B210: 258476 | C210: 256883 | D210: 253374 | E210: 236271 | F210: 227209 | J210: 0 | K210: 0
A211: tilbf. værdiændr. stambesætning mm | B211: -19884 | C211: -67196 | D211: -34603 | E211: -24700 | F211: -88958 | J211: 0 | K211: 0
A212: Beregnet skat | B212: -656188 | C212: -715255 | D212: -249283 | E212: -458508 | F212: -222411 | J212: 0 | K212: 0
A213: Privat udtræk | B213: -295498 | C213: -283083 | D213: -272257 | E213: -267556 | F213: -270148 | J213: 0 | K213: 0
A214: Pensionsindbetaling | B214: -91468 | C214: -91486 | D214: -50342 | E214: -59140 | F214: -38730 | J214: 0 | K214: 0
A215: Konsolidering | B215: 713149 | C215: 752360 | D215: 7725 | E215: 561601 | F215: 6078 | G215: -192031 | J215: 0 | K215: 0
A217: Nøgletal - konsolidering
A218: Ændring i resultat - nulkonsolidering | B218: -1223426 | C218: -1335678 | D218: -138565 | E218: -895876 | F218: -104044 | I218: 0 | J218: 0 | K218: 0
A219: nulpunktsrente pct | J219: 0 | K219: 0
A220: nulpunktsmælkepris kr/kg EKM | J220: 0 | K220: 0
A221: Nulpunktspris fravænnede grise | J221: 0 | K221: 0
A222: Nulpunktspris smågrise | J222: 0 | K222: 0
A223: Nulpunktspris slagtesvin kg | J223: 0 | K223: 0
A224: Nulpunktspris minkskind | J224: 0 | K224: 0
A226: Øknomiske nøgletal
A227: Virksomhedens afkast, pct. | B227: 3.5 | C227: 3.8 | D227: 0.9 | E227: 3.2 | F227: 1.3 | G227: 0.7 | H227: 3.4 | I227: 3.4 | J227: 4 | K227: 3.5
A228: Virksomhedens overskudsmargin, pct | B228: 13.9 | C228: 15 | D228: 3.7 | E228: 11.8 | F228: 2.7 | G228: 5.2 | H228: 0 | I228: 0 | J228: 0 | K228: 0
A229: Dækningsgrad, pct | B229: 56.5 | C229: 56.6 | D229: 51.4 | E229: 56.3 | F229: 50 | G229: 50 | H229: 52.5 | I229: 51.1 | J229: 53.4 | K229: 53.4
A230: Virksomhedens afkast til egenkapital, pct | B230: =(B209+B67)*100/B148 -> 9.560337835 | C230: =(C209+C67)*100/C148 -> 11.4285384 | D230: -0.9263881404 | E230: 7.380261142 | F230: 0.2650261449 | G230: -4.226193073 | H230: -4.272185135 | I230: -4.555250869 | J230: -4.575972502 | K230: 0
A231: Soliditetsgrad, pct | B231: 26.8 | C231: 25.4 | D231: 23.8 | E231: 23.7 | F231: 22.3 | G231: 24.1 | H231: 24.5 | I231: 25.2 | J231: 25.8 | K231: 26.4
A232: Rentedækningsgrad | B232: 9.4 | C232: 12.8 | D232: 9.4 | J232: 0 | K232: 0
A234: Bilag 1: Produktionstekniske oplysninger, planteavl
A236: Gruppering | B236: Alle | C236: Alle | D236: Alle | E236: Alle | F236: Alle | G236: Alle | H236: Alle | I236: Alle | J236: Alle | K236: Alle
A237: År | B237: 2020 | C237: 2019 | D237: 2018 | E237: 2017 | F237: 2016 | G237: 2015 | H237: 2014 | I237: 2013 | J237: 2012 | K237: 2011
A239: Afgrødefordeling, ha
A240: Vårbyg, ha | B240: 53.9 | C240: 39.8 | D240: 55.6 | E240: 41.4 | F240: 42.5 | G240: 35.2 | H240: 32.5 | I240: 36.5 | J240: 38 | K240: 28.6
A241: Vinterbyg, ha | B241: 8.4 | C241: 8.4 | D241: 6.6 | E241: 9.7 | F241: 7.5 | G241: 7.4 | H241: 7.8 | I241: 6.8 | J241: 6.2 | K241: 7.9
A242: Vårhvede | B242: 1.4 | C242: 1.1 | D242: 2.5 | E242: 1.1 | F242: 1 | G242: 1.2 | H242: 1.4 | I242: 2.4 | J242: 2 | K242: 1.4
A243: Vinterhvede, ha | B243: 46.6 | C243: 48.1 | D243: 30 | E243: 46.1 | F243: 40.2 | G243: 42.8 | H243: 45.2 | I243: 36.1 | J243: 35.5 | K243: 44.6
A244: Triticale, ha | B244: 0.5 | C244: 0.7 | D244: 0.5 | E244: 0.6 | F244: 0.6 | G244: 1 | H244: 1.4 | I244: 1.1 | J244: 1.6 | K244: 1.9
A245: Rug, ha | B245: 9.9 | C245: 11.1 | D245: 6.5 | E245: 8.4 | F245: 6.9 | G245: 7.8 | H245: 6.8 | I245: 5.4 | J245: 3.7 | K245: 3.2
A246: Havre, ha | B246: 6.8 | C246: 3.4 | D246: 4.9 | E246: 3.9 | F246: 3.2 | G246: 2.2 | H246: 2.2 | I246: 3.4 | J246: 3.3 | K246: 2.5
A247: Kernemajs/majs til modenhed, ha | B247: 0.9 | C247: 0.8 | D247: 0.4 | E247: 0.5 | F247: 0.4 | G247: 0.4 | H247: 0.7 | I247: 0.8 | J247: 0.9 | K247: 0.9
A248: Blandsæd | B248: 0.4 | C248: 0.3 | D248: 0.4 | E248: 0.5 | F248: 0.7 | G248: 0.3 | H248: 0.5 | I248: 0.8 | J248: 1.2 | K248: 1
A249: Korn areal, ha | B249: 128.8 | C249: 113.8 | D249: 107.4 | E249: 112.2 | F249: 103.1 | G249: 98.3 | H249: 98.4 | I249: 93.4 | J249: 92.3 | K249: 92
A252: Græsfrø, ha | B252: 0.9 | C252: 0.6 | D252: 0.7 | E252: 0.7 | F252: 0.8 | G252: 0.8 | H252: 1 | I252: 1 | J252: 0.9 | K252: 1.4
A253: Almindelig rajgræs, ha | B253: 4.6 | C253: 3.6 | D253: 2.8 | E253: 2.1 | F253: 1.8 | G253: 1.9 | H253: 2.5 | I253: 2.6 | J253: 2 | K253: 1.4
A254: Italiensk rajgræs, ha | B254: 0.2 | C254: 0.2 | D254: 0 | E254: 0.1 | F254: 0 | G254: 0.1 | H254: 0.1 | I254: 0.1 | J254: 0.1 | K254: 0.1
... 510 more rows

Sheet 1.5 Heltid konv
A1: Udtrukket: 09-10-2020 08:45:26 af LFjubp
A2: Denne udskrift kan indeholde fortrolige data og skal derfor behandles med særlig omhu og i forhold til gældende regler omkring datasikkerhed. Distribution til tredje part er ikke tilladt uden samtykke fra SEGES. Sker dette alligevel, kan SEGES ikke holdes ansvarlig
A3: Udvælgelse: (([norm_t_ejendom] >= 1665 AND [norm_t_ejendom] <= 99999999999999999)) AND (([006410] IN (0,1,3))) AND Godkendt = Ja AND Tilladelse IN (ØDB statistik) AND Opstilling = Statistik
A4: Gruppering: Afkastningsgrad
A6: Gruppering | B6: Alle | C6: Alle | D6: Alle | E6: Alle | F6: Alle | G6: Alle | H6: Alle | I6: Alle | J6: Alle | K6: Alle
A7: År | B7: 2020 | C7: 2019 | D7: 2018 | E7: 2017 | F7: 2016 | G7: 2015 | H7: 2014 | I7: 2013 | J7: 2012 | K7: 2011
A8: Antal | B8: 3383 | C8: 3807 | D8: 4205 | E8: 4711 | F8: 4825 | G8: 4920 | H8: 5113 | I8: 5407 | J8: 5488 | K8: 5477
A9: Antal vejet | B9: 7716.11 | C9: 8068.76 | D9: 8926.18 | E9: 9165.37 | F9: 9217.03 | G9: 10157.89 | H9: 10551.32 | I9: 10511.38 | J9: 10961.65 | K9: 11026.52
A10: Kredsnummer | B10: 255 | C10: 261 | D10: 271 | E10: 273 | F10: 271 | G10: 271 | H10: 270 | I10: 276 | J10: 270 | K10: 268
A11: Ejendomsnummer | B11: 3894 | C11: 3974 | D11: 3983 | E11: 3926 | F11: 3971 | G11: 3971 | H11: 3869 | I11: 3836 | J11: 3788 | K11: 3762
A12: Landbrugsareal, ha | B12: 217 | C12: 194 | D12: 179 | E12: 182 | F12: 169 | G12: 162 | H12: 164 | I12: 158 | J12: 150 | K12: 150
A13: Årskøer | B13: 63 | C13: 61 | D13: 57 | E13: 56 | F13: 56 | G13: 50 | H13: 48 | I13: 49 | J13: 48 | K13: 46
A14: Årssøer | B14: 133 | C14: 122 | D14: 115 | E14: 110 | F14: 108 | G14: 101 | H14: 97 | I14: 91 | J14: 90 | K14: 95
A15: Antal slagtesvin produceret | B15: 2304 | C15: 1995 | D15: 2050 | E15: 1888 | F15: 2014 | G15: 1842 | H15: 1821 | I15: 1748 | J15: 1757 | K15: 1962
A16: Antal minktæver | B16: 199 | C16: 315 | D16: 359 | E16: 328 | F16: 337 | G16: 324 | H16: 317 | I16: 284 | J16: 259 | K16: 217
A17: Dyreenheder | B17: 234 | C17: 218 | D17: 214 | E17: 204 | F17: 210 | G17: 193 | H17: 186 | I17: 183 | J17: 177 | K17: 179
A18: Beregnet antal normtimer | B18: 6312 | C18: 6126 | D18: 5975 | E18: 5814 | F18: 5731 | G18: 5431 | H18: 5375 | I18: 5185 | J18: 5044 | K18: 5069
A20: Bruttoudbytte Planteavl inkl. IO | B20: 2410313 | C20: 2197933 | D20: 1788271 | E20: 1858847 | F20: 1537409 | G20: 1616961 | H20: 1715523 | I20: 1664539 | J20: 1722144 | K20: 1449620
A21: Bruttoudbytte Kvæg | B21: 2071148 | C21: 1975041 | D21: 1881827 | E21: 1876789 | F21: 1469266 | G21: 1397383 | H21: 1528362 | I21: 1509620 | J21: 1348331 | K21: 1278805
A22: Bruttoudbytte Svin | B22: 3453110 | C22: 3316466 | D22: 2201515 | E22: 2564336 | F22: 2489800 | G22: 1892287 | H22: 1973307 | I22: 2124724 | J22: 2098252 | K22: 2030680
A23: Bruttoudbytte andre husdyr | B23: 591782 | C23: 570393 | D23: 656681 | E23: 716150 | F23: 690292 | G23: 902960 | H23: 789047 | I23: 1100704 | J23: 921445 | K23: 654765
A24: Skovindtægter | B24: 9209 | C24: 11323 | D24: 11784 | E24: 9915 | F24: 7775 | G24: 9228 | H24: 0
A25: Maskinstationsindtægter | B25: 146324 | C25: 152167 | D25: 160048 | E25: 182211 | F25: 166928 | G25: 158361 | H25: 144706 | I25: 116017 | J25: 117799 | K25: 139029
A26: Andre landbrugsindtægter | B26: 268053 | C26: 183805 | D26: 185434 | E26: 240140 | F26: 172612 | G26: 140931 | H26: 165777 | I26: 154247 | J26: 135728 | K26: 150217
A27: Bruttoudbytte ialt | B27: 8949940 | C27: 8407128 | D27: 6885559 | E27: 7448387 | F27: 6534083 | G27: 6118112 | H27: 6316723 | I27: 6669850 | J27: 6343699 | K27: 5703116
A29: Stykomkostninger Mark | B29: -693606 | C29: -629488 | D29: -546338 | E29: -571656 | F29: -542127 | G29: -494447 | H29: -491937 | I29: -470276 | J29: -428166 | K29: -395452
A30: Korn inkl. IO | B30: -639485 | C30: -618258 | D30: -568873 | E30: -504103 | F30: -498461 | G30: -475903 | H30: -482633 | I30: -2566996 | J30: -2306493 | K30: -2120557
A31: Færdigblanding mv. | B31: -2024737 | C31: -1878906 | D31: -1861722 | E31: -1735838 | F31: -1739321 | G31: -1657574 | H31: -1638884
A32: Eget grovfoder inkl. IO | B32: -375304 | C32: -354483 | D32: -338742 | E32: -333665 | F32: -313545 | G32: -298612 | H32: -290235
A33: Øvrige stykomkostninger husdyr | B33: -462910 | C33: -431706 | D33: -406971 | E33: -380648 | F33: -373281 | G33: -345843 | H33: -325274 | I33: -305893 | J33: -287609 | K33: -272574
A34: Skovomkostninger | B34: -6273 | C34: -5881 | D34: -4638 | E34: -4962 | F34: -7655 | G34: -3464 | H34: 0
A35: Stykomkostninger i alt | B35: -4202314 | C35: -3918721 | D35: -3727285 | E35: -3530872 | F35: -3474390 | G35: -3275843 | H35: -3228964 | I35: -3343165 | J35: -3022269 | K35: -2788583
A37: Dækningsbidrag | B37: 4747625 | C37: 4488406 | D37: 3158274 | E37: 3917515 | F37: 3059693 | G37: 2842269 | H37: 3087759 | I37: 3326686 | J37: 3321430 | K37: 2914533
A39: Energi og brændstof | B39: -243616 | C39: -243074 | D39: -260082 | E39: -235176 | F39: -227996 | G39: -219874 | H39: -251063 | I39: -253570 | J39: -247977 | K39: -241945
A40: Maskinstation | B40: -340810 | C40: -317446 | D40: -284109 | E40: -277234 | F40: -258147 | G40: -241293 | H40: -243611 | I40: -233316 | J40: -230132 | K40: -210683
A41: Vedligeholdelse | B41: -476342 | C41: -400889 | D41: -375015 | E41: -372127 | F41: -340055 | G41: -319030 | H41: -324041 | I41: -320524 | J41: -292162 | K41: -275907
A42: Investeringer over driften | B42: -27707 | C42: -24824 | D42: -21610 | E42: -24558 | F42: -20214 | G42: -21718 | H42: -24089 | I42: -23919 | J42: -22501 | K42: -20966
A43: Lønomkostninger | B43: -778733 | C43: -715503 | D43: -682746 | E43: -639641 | F43: -592044 | G43: -553217 | H43: -531662 | I43: -473522 | J43: -413420 | K43: -391321
A44: Ejendomsskat og forsikringer | B44: -154879 | C44: -143705 | D44: -136111 | E44: -131832 | F44: -126002 | G44: -116604 | H44: -113903 | I44: -105904 | J44: -97302 | K44: -94366
A45: Diverse omkostninger | B45: -222076 | C45: -209910 | D45: -203116 | E45: -195361 | F45: -187841 | G45: -179922 | H45: -179432 | I45: -175144 | J45: -167807 | K45: -162225
A46: Kontante kapacitetsomkostninger | B46: -2244162 | C46: -2055352 | D46: -1962790 | E46: -1875929 | F46: -1752298 | G46: -1651658 | H46: -1667800 | I46: -1585899 | J46: -1471301 | K46: -1397412
A48: Afskrivninger | B48: -774874 | C48: -736764 | D48: -709703 | E48: -706838 | F48: -696654 | G48: -640179 | H48: -628621 | I48: -588351 | J48: -551098 | K48: -535413
A49: Nedskrivninger | B49: -18321 | C49: -14789 | D49: -21399 | E49: -26387 | F49: -20871 | G49: -21740 | H49: -13536 | I49: -23398 | J49: -10923 | K49: -8233
A50: Tab/gevinst | B50: 24017 | C50: 8753 | D50: 19528 | E50: 10776 | F50: 18961 | G50: 21354 | H50: 24987 | I50: 40606 | J50: 21976 | K50: 16706
A51: Kapacitetsomkostninger i alt | B51: -3013341 | C51: -2798152 | D51: -2674364 | E51: -2598378 | F51: -2450862 | G51: -2292223 | H51: -2284970 | I51: -2157042 | J51: -2011347 | K51: -1924353
A53: Resultat af primær drift | B53: 1734285 | C53: 1690255 | D53: 483910 | E53: 1319138 | F53: 608831 | G53: 550046 | H53: 802789 | I53: 1169644 | J53: 1310083 | K53: 990180
A56: Afkoblet EU-støtte mv. | B56: 486223 | C56: 450240 | D56: 435273 | E56: 437458 | F56: 418250 | G56: 413835 | H56: 423993 | I56: 413679 | J56: 405745 | K56: 384674
A58: Forpagtningsindtægt | B58: 81089 | C58: 88484 | D58: 82845 | E58: 70758 | F58: 64456 | G58: 47973 | H58: 46127 | I58: 36206 | J58: 37142 | K58: 30682
A59: Forpagtningsafgift | B59: -416619 | C59: -350479 | D59: -327620 | E59: -331977 | F59: -293697 | G59: -292858 | H59: -293153 | I59: -272356 | J59: -251251 | K59: -240066
A60: Renteindt, landbrug og fin.tilskud | B60: 27402 | C60: 22653 | D60: 22162 | E60: 23299 | F60: 20226 | G60: 22891 | H60: 25317 | I60: 24805 | J60: 22956 | K60: 23479
A61: Realiseret gevinst/tab finansaktiver | B61: -24559 | C61: -21680 | D61: -34043 | E61: -40058 | F61: -51584 | G61: -43678 | H61: -53484 | I61: -60879 | J61: -57059 | K61: -99850
A62: Renteudgifter, landbrug | B62: -465908 | C62: -509388 | D62: -512764 | E62: -544795 | F62: -562413 | G62: -547522 | H62: -574085 | I62: -552459 | J62: -638152 | K62: -640078
A63: Finansomkostninger ialt, landbrug | B63: -798596 | C63: -770410 | D63: -769420 | E63: -822772 | F63: -823012 | G63: -813195 | H63: -849279 | I63: -824684 | J63: -886365 | K63: -925833
A65: Driftsresultat | B65: 1421912 | C65: 1370084 | D65: 149763 | E65: 933824 | F65: 204069 | G65: 150687 | H65: 377504 | I65: 758680 | J65: 829358 | K65: 449176
A67: Ejerløn | B67: -425651 | C67: -446986 | D67: -450124 | E67: -447724 | F67: -367724 | G67: -347890 | H67: -355076 | I67: -369176 | J67: -364037 | K67: 0
A68: Korr. værdiændring stambes/foderbeh. | B68: 32361 | C68: -30888 | D68: -28499 | E68: -6715 | F68: -62713 | G68: -5041 | H68: -531
A69: Driftsresultat efter ejerløn mv. | B69: 1028622 | C69: 892210 | D69: -328860 | E69: 479385 | F69: -226369 | G69: -202245 | H69: 21897
A71: Afskrivning immaterielle aktiver | B71: -9225 | C71: -9894 | D71: -10259 | E71: -7780 | F71: -8124 | G71: -1614 | H71: -3225 | I71: -2039 | J71: -1657 | K71: -1494
A72: Nedskrivning immaterielle aktiver | B72: -3749 | C72: 260 | D72: -4219 | E72: -2562 | F72: -1937 | G72: -12449 | H72: -168128 | I72: -134143 | J72: -100642 | K72: -245271
A73: Gevinst/tab immaterielle aktiver | B73: 11210 | C73: 21792 | D73: 23837 | E73: 23791 | F73: 20598 | G73: 18093 | H73: 12464 | I73: 7155 | J73: 6465 | K73: 454
A74: Anden virksomhed og engangsposter | B74: 165292 | C74: 134755 | D74: 81613 | E74: 104385 | F74: 89885 | G74: 80736 | H74: 76893 | I74: 86498 | J74: 81207 | K74: 69050
A75: Renteindtægter, privat | B75: 10767 | C75: 12964 | D75: 12969 | E75: 12631 | F75: 10093 | G75: 15482 | H75: 8000 | I75: 7764 | J75: 8355 | K75: 7782
A76: Renteudgifter, privat | B76: -31190 | C76: -33357 | D76: -34628 | E76: -38373 | F76: -40289 | G76: -49155 | H76: -52534 | I76: -47989 | J76: -56411 | K76: -58452
A77: Urealiseret regulering værdipapirer | B77: 108126 | C77: 119398 | D77: -26008 | E77: 114094 | F77: 77504 | G77: 69136 | H77: 35769 | I77: 123504 | J77: 44633 | K77: -39566
A78: Urealiseret regulering gæld | B78: 4833 | C78: -9116 | D78: -6723 | E78: 4990 | F78: 2412 | G78: 33592 | H78: -18702 | I78: 18845 | J78: -78763 | K78: -64822
A79: Værdiændring inv. ejendomme og tilknyttede virks. | B79: 224 | C79: 0 | D79: -454 | F79: 2219 | G79: 0 | H79: 0
A81: Resultat før personlig indtjening | B81: 1677695 | C81: 1606859 | D81: 186072 | E81: 1144750 | F81: 356430 | G81: 304383 | H81: 267968 | I81: 818284 | J81: 732544 | K81: 116939
A83: Private indtægter/omkostninger | B83: 259492 | C83: 253526 | D83: 250021 | E83: 231403 | F83: 224917 | G83: 233253 | H83: 230160 | I83: 228998 | J83: 229203 | K83: 215037
A85: Årets resultat før skat | B85: 1937187 | C85: 1860385 | D85: 436093 | E85: 1376153 | F85: 581347 | G85: 537637 | H85: 498127 | I85: 1047281 | J85: 961747 | K85: 331976
A87: Skat af årets resultat | B87: -711760 | C87: -683632 | D87: -185903 | E87: -440898 | F87: -240749 | G87: -211051 | H87: -214164 | I87: -406000 | J87: -271181 | K87: -126730
A89: BALANCE
A91: Fast ejendom | B91: 30054993 | C91: 28945563 | D91: 27403785 | E91: 27311126 | F91: 26639514 | G91: 24451365 | H91: 0 | I91: 23806615 | J91: 23013120 | K91: 22959699
A92: Stamplanter | B92: 2203 | C92: 1562 | D92: 1558 | E92: 1190 | F92: 1328 | G92: 0 | H92: 0
A93: Betalingsrettigheder EU | B93: 25069 | C93: 30551 | D93: 33887 | E93: 38506 | F93: 45137 | G93: 58155 | H93: 70984 | I93: 88988 | J93: 89063 | K93: 85464
A94: Mælkekvoter og andre leveringsrettigheder | B94: 23984 | C94: 23353 | D94: 16571 | E94: 13374 | F94: 15522 | G94: 22590 | H94: 24057 | I94: 181341 | J94: 304884 | K94: 401105
A95: Inventar og maskiner | B95: 3236481 | C95: 2932601 | D95: 2795667 | E95: 2880902 | F95: 2807650 | G95: 2723616 | H95: 2746528 | I95: 2643084 | J95: 2459767 | K95: 2461984
A96: Besætning | B96: 2330878 | C96: 2393209 | D96: 2076404 | E96: 2071023 | F96: 2133375 | G96: 1833113 | H96: 1816856 | I96: 1892613 | J96: 1824499 | K96: 1631671
A97: Beholdning | B97: 1519242 | C97: 1308475 | D97: 1158113 | E97: 1224374 | F97: 1072107 | G97: 1103259 | H97: 1091224 | I97: 1066398 | J97: 1034009 | K97: 877634
A98: Tilgodehavende | B98: 1537224 | C98: 1502019 | D98: 1528006 | E98: 1541489 | F98: 1403263 | G98: 1284719 | H98: 1336679 | I98: 1264472 | J98: 1197690 | K98: 1009184
A99: Andelskapital og financielle kontrakter | B99: 1117942 | C99: 1022741 | D99: 854211 | E99: 823846 | F99: 760067 | G99: 641660 | H99: 582153 | I99: 501472 | J99: 443584 | K99: 431986
A100: Landbrugsaktiver i alt | B100: 39848017 | C100: 38160075 | D100: 35868203 | E100: 35905830 | F100: 34877964 | G100: 32118477 | H100: 32174014 | I100: 31444983 | J100: 30366616 | K100: 29858727
A102: Fast ejendom udenfor landbrug | B102: 1644913 | C102: 1748999 | D102: 1672757 | E102: 1712741 | F102: 1704607 | G102: 1717328 | H102: 0 | I102: 559198 | J102: 566639 | K102: 537896
A103: Private aktiver | B103: 417903 | C103: 437118 | D103: 440369 | E103: 422542 | F103: 411344 | G103: 237687 | H103: 228118 | I103: 1235778 | J103: 1219417 | K103: 1194819
A104: Øvrige aktiver udenfor landbrug | B104: 278811 | C104: 229369 | D104: 250794 | E104: 239451 | F104: 246981 | G104: 296136 | H104: 305469 | I104: 321200 | J104: 266785 | K104: 261213
A105: Værdipapirer og indlån | B105: 1943175 | C105: 1343953 | D105: 1185291 | E105: 1308219 | F105: 1157543 | G105: 1114700 | H105: 1223437 | I105: 1226154 | J105: 1130005 | K105: 1100922
A106: Hensættelser (positive) | B106: 75909 | C106: 82400 | D106: 98315 | E106: 98295 | F106: 131632 | G106: 144308 | H106: 147827
A108: Aktiver i alt | B108: 44208728 | C108: 42001915 | D108: 39515728 | E108: 39687077 | F108: 38530070 | G108: 35628636 | H108: 35641568 | I108: 34787313 | J108: 33549462 | K108: 32953577
A110: Ansvarlig lånekapital | B110: -82735 | C110: -89345 | D110: -74204
A111: Realkreditinstitutter | B111: -20445565 | C111: -19715715 | D111: -18638579 | E111: -18762009 | F111: -18514481 | G111: -16713615 | H111: -16674694 | I111: -16275822 | J111: -16022774 | K111: -15850704
A112: Pengeinstitutter | B112: -2695413 | C112: -2929960 | D112: -3142112 | E112: -3273089 | F112: -3597570 | G112: -3259275 | H112: -3201673 | I112: -3339515 | J112: -3169564 | K112: -3066255
A113: Pante- og gældsbreve | B113: -236571 | C113: -202401 | D113: -202934 | E113: -187584 | F113: -173238 | G113: -159287 | H113: -153637
A114: Anden langfristet gæld | B114: -404987 | C114: -340357 | D114: -275290 | E114: -334690 | F114: -372457 | G114: -38428 | H114: -27391
A115: Anden gæld | B115: -2669858 | C115: -2435028 | D115: -2322943 | E115: -2423273 | F115: -2183314 | G115: -2124775 | H115: -2236354 | I115: -2167812 | J115: -2144287 | K115: -1947651
A116: Kassekredit | B116: -1128812 | C116: -1257822 | D116: -1617717 | E116: -1427370 | F116: -1693245 | G116: -1583495 | H116: -1519408 | I116: -1444487 | J116: -1435261 | K116: -1367380
A117: Gæld i alt | B117: -27663940 | C117: -26970627 | D117: -26273780 | E117: -26493738 | F117: -26534304 | G117: -23878875 | H117: -23813159 | I117: -23227636 | J117: -22771886 | K117: -22231989
A119: Hensættelser (negative) | B119: -4830723 | C119: -4464813 | D119: -3975010 | E119: -3951234 | F119: -3712683 | G119: -3240040 | H119: -3212394 | I119: -3086684 | J119: -2769400 | K119: -2776037
A121: Egenkapital | B121: 11714065 | C121: 10566474 | D121: 9266938 | E121: 9242106 | F121: 8283084 | G121: 8509721 | H121: 8616016 | I121: 8472993 | J121: 8008176 | K121: 7945552
A123: EGENKAPITALFORKLARING
A125: Resultat efter finansiering | B125: 1566780 | C125: 1484447 | D125: 209717 | E125: 1012467 | F125: 263758 | G125: 197624 | H125: 409790 | I125: 804961 | J125: 862614 | K125: 467483
A126: Private indtægter | B126: 259492 | C126: 253526 | D126: 250021 | E126: 231403 | F126: 224917 | G126: 233253 | H126: 230160 | I126: 228998 | J126: 229203 | K126: 215037
A127: Resultat før regulering og skat | B127: 1826272 | C127: 1737973 | D127: 459738 | E127: 1243869 | F127: 488675 | G127: 430877 | H127: 639950 | I127: 1033958 | J127: 1091817 | K127: 682521
A129: Privat | B129: -268130 | C129: -246053 | D129: -246776 | E129: -246648 | F129: -254564 | G129: -256936 | H129: -262633 | I129: -298693 | J129: -282924 | K129: -276952
A130: Formueindtægter/-udgifter | B130: -26658 | C130: -21391 | D130: -23165 | E130: -19770 | F130: -18063 | G130: -39800 | H130: -32541 | I130: -32531 | J130: -20563 | K130: -28971
A131: Privat udtræk | B131: -294788 | C131: -267444 | D131: -269941 | E131: -266418 | F131: -272627 | G131: -296736 | H131: -295175 | I131: -311482 | J131: -282362 | K131: -281572
A133: Ud- og indbetaling interessenter | B133: -68329 | C133: -75677 | D133: -31661 | F133: -39287 | G133: -41147 | H133: -47205 | I133: -60117 | J133: -37742 | K133: -36042
A134: Betalt skat | B134: -359748 | C134: -319119 | D134: -157301 | E134: -222412 | F134: -127649 | G134: -158804 | H134: -168751 | I134: -220361 | J134: -169648 | K134: -128868
A135: Ændring i udskudt skat | B135: -352012 | C135: -364512 | D135: -28602 | E135: -218486 | F135: -113091 | G135: -52247 | H135: -45413 | I135: -185639 | J135: -101532 | K135: 2138
A136: Skat af årets resultat | B136: -711760 | C136: -683632 | D136: -185903 | E136: -440898 | F136: -240749 | G136: -211051 | H136: -214164 | I136: -406000 | J136: -271181 | K136: -126730
A138: Ændring af egenkapital fra drift, privat og skat | B138: 751395 | C138: 711220 | D138: -27767 | E138: 459059 | F138: -63989 | G138: -118057 | H138: 83406 | I138: 255578 | J138: 502204 | K138: 274219
A139: Regulering ialt fra resultat | B139: 110691 | C139: 122412 | D139: -23191 | E139: 133016 | F139: 90453 | G139: 106760 | H139: -141823 | I139: 13323 | J139: -129964 | K139: -350699
A140: Værdireguleringer | B140: 163774 | C140: 131290 | D140: 74846 | E140: 194526 | F140: 35949 | G140: 69097 | H140: 268211 | I140: 155831 | J140: 31767 | K140: -698243
A141: Pensionsindbetaling | B141: -86655 | C141: -85698 | D141: -46643 | E141: -53922 | F141: -36766 | G141: -38260 | H141: -69737 | I141: -103859 | J141: -80766 | K141: -62693
A142: Øvrige egenkapitalbevægelser | B142: -368 | C142: 0 | D142: 0 | E142: 917 | F142: 0 | G142: 0 | H142: 0 | I142: 0 | J142: 0 | K142: 0
A144: Ændring af egenkapital | B144: 939563 | C144: 879252 | D144: -23390 | E144: 732864 | F144: 27866 | G144: 19541 | H144: 140057 | I144: 327002 | J144: 323760 | K144: -931581
A146: Egenkapital primo | B146: 10775720 | C146: 9689839 | D146: 9280639 | E146: 8506726 | F146: 8258858 | G146: 8492837 | H146: 8475625 | I146: 8150310 | J146: 7685888 | K146: 8877640
A148: Egenkapital ultimo | B148: 11714065 | C148: 10566474 | D148: 9266938 | E148: 9242106 | F148: 8283084 | G148: 8509721 | H148: 8616016 | I148: 8477311 | J148: 8009648 | K148: 7946059
A150: PENGEBINDING
A152: Årets resultat før skat | B152: 1937187 | C152: 1860385 | D152: 436093 | E152: 1376153 | F152: 581347 | G152: 537637 | H152: 498127 | I152: 1047281 | J152: 961747 | K152: 331976
A154: Værdiændring besætning/beholdning | B154: 236095 | C154: -266689 | D154: -8655 | E154: 41477 | F154: -139814 | G154: -33416 | H154: 0
A155: Afskrivninger m.v., landbrug | B155: 770942 | C155: 730642 | D155: 702216 | E155: 709001 | F155: 688026 | G155: 636534 | H155: 776058 | I155: 700169 | J155: 635986 | K155: 773097
A156: Afskrivninger andre erhverv | B156: 21982 | C156: 18173 | D156: 22247 | E156: 25582 | F156: 28956 | G156: 23744 | H156: 20284 | I156: 18625 | J156: 15586 | K156: 13432
A157: Regulering I/S | B157: -27056 | C157: -22584 | D157: -3793 | E157: -14872 | F157: -8343 | G157: 0 | H157: 0 | I157: 403 | J157: 562 | K157: 1081
A158: Gevinst/tab finansaktiver | B158: -3642 | C158: -5979 | D158: -5916 | E158: -12283 | F158: -8330 | G158: -7230 | H158: -3663 | I158: -2592 | J158: -5223 | K158: -2406
A159: Urealiseret regulering finansaktiver | B159: -107622 | C159: -119370 | D159: 25827 | E159: -114578 | F159: -77504 | G159: -69136 | H159: -35769 | I159: -123504 | J159: -44633 | K159: 39566
A160: Gevinst/tab gæld | B160: -890 | C160: 21299 | D160: 11251 | E160: 10817 | F160: 1419 | G160: 20746 | H160: 11031 | I160: -5063 | J160: 10256 | K160: 7611
A161: Urealiseret regulering gæld | B161: -4833 | C161: 9116 | D161: 6723 | E161: 4990 | F161: -2412 | G161: -33592 | H161: 18702 | I161: -18845 | J161: -78763 | K161: -64822
A162: Øvrige tilbageførsler | B162: -52677 | C162: -34258 | D162: -4413 | E162: -11721 | F162: -12952 | G162: 303 | H162: 933
A163: Tilbageførsel i alt | B163: 832234 | C163: 330351 | D163: 745487 | E163: 628434 | F163: 469045 | G163: 571368 | H163: 787577 | I163: 569192 | J163: 691297 | K163: 897202
A165: Betalt skat | B165: -353984 | C165: -318918 | D165: -157161 | E165: -222412 | F165: -127392 | G165: -159892 | H165: -167349 | I165: -220361 | J165: -169648 | K165: -128868
A166: Privat | B166: -269184 | C166: -247919 | D166: -246776 | E166: -246648 | F166: -254564 | G166: -256936 | H166: -262633 | I166: -298693 | J166: -282924 | K166: -276952
A167: Afskrivninger privat tlbf. | B167: 21481 | C167: 20704 | D167: 19969 | E167: 22513 | F167: 21341 | G167: 22117 | H167: 23559 | I167: 18998 | J167: 19851 | K167: 24234
A168: Formueindtægter/-udgifter | B168: -26658 | C168: -21391 | D168: -23165 | E168: -19770 | F168: -18063 | G168: -39800 | H168: -32541 | I168: -32531 | J168: -20563 | K168: -28971
A169: Pensionsindbetaling | B169: -87496 | C169: -86763 | D169: -46887 | E169: -53922 | F169: -36158 | G169: -40438 | H169: -74681 | I169: -103859 | J169: -80766 | K169: -62693
A170: Privat udtræk, skat og pension i alt | B170: -715842 | C170: -654287 | D170: -454021 | E170: -517578 | F170: -414838 | G170: -474949 | H170: -513646 | I170: -679170 | J170: -550814 | K170: -481557
A172: Indskud/udlodning mv interessentskaber/selskaber | B172: -44689 | C172: -59731 | D172: -25847 | E172: -68533 | F172: -52076 | G172: -44805 | H172: -49114 | I172: -60117 | J172: -37742 | K172: -36042
A174: Til invest og afdrag | B174: 2008956 | C174: 1476717 | D174: 701712 | E174: 1418476 | F174: 583478 | G174: 576467 | H174: 720615
A176: Besætning (realforskydning) | B176: -219786 | C176: 20235 | D176: -11534 | E176: -71258 | F176: -32052 | G176: 323 | H176: 79713 | I176: -41383 | J176: -186804 | K176: -200282
A177: Beholdninger (realforskydninger) | B177: -88886 | C177: -197514 | D177: 140628 | E177: -87324 | F177: 18422 | G177: -43083 | H177: 3168 | I177: 1898 | J177: -161629 | K177: -8346
A178: Flerårige afgrøder | B178: -24 | C178: 26 | D178: -147 | E178: 77 | F178: 37 | G178: 0 | H178: -17 | I178: -34 | J178: -47 | K178: 0
A180: Likviditet før anlægsinvesteringer | B180: 1700260 | C180: 1299464 | D180: 830659 | E180: 1259971 | F180: 569885 | G180: 533706 | H180: 803479 | I180: 910499 | J180: 753749 | K180: 538994
A182: Investeringer
A183: Jord | B183: -553533 | C183: -526669 | D183: -471032 | E183: -471548 | F183: -500965 | G183: -452368 | H183: -391484 | I183: -432156 | J183: -311657 | K183: -330502
A184: Immaterielle aktiver | B184: -4733 | C184: -4997 | D184: -3664 | E184: -3306 | F184: -3839 | G184: -211 | H184: -10109 | I184: -12044 | J184: -10065 | K184: -18855
A185: Grundforbedring | B185: -15061 | C185: -11330 | D185: -11853 | E185: -9432 | F185: -11483 | G185: -13702 | H185: -9977 | I185: -11010 | J185: -11376 | K185: -8086
A186: Stamplanter | B186: -173 | C186: -199 | D186: -106 | E186: 1190 | F186: -200 | G186: 0 | H186: 0
A187: Driftsbygninger | B187: -294536 | C187: -199105 | D187: -226903 | E187: -258878 | F187: -261669 | G187: -263492 | H187: -266911 | I187: -280371 | J187: -261970 | K187: -240379
A188: Inventar markbrug | B188: -367580 | C188: -272556 | D188: -201673 | E188: -257523 | F188: -201422 | G188: -207170 | H188: -228831 | I188: -277695 | J188: -214717 | K188: -207785
A189: Inventar husdyrbrug | B189: -176665 | C189: -156491 | D189: -142766 | E189: -152665 | F189: -116747 | G189: -134637 | H189: -129023 | I189: -167288 | J189: -147528 | K189: -115177
A190: Inventar andet | B190: -11110 | C190: -8417 | D190: -5898 | E190: -15990 | F190: -8576 | G190: -10691 | H190: -9310 | I190: -2291 | J190: -17043 | K190: -4905
A191: Beboelse, landbrug | B191: -83452 | C191: -67624 | D191: -65537 | E191: -51288 | F191: -67550 | G191: -70390 | H191: -82160 | I191: -107523 | J191: -78483 | K191: -82627
A192: Private aktiver | B192: -73034 | C192: -47967 | D192: -45768 | E192: 422542 | F192: -28175 | G192: -27460 | H192: -32156 | I192: -36621 | J192: -34204 | K192: -28533
A193: Aktiver udenfor landbrug | B193: -36945 | C193: -38154 | D193: -26356 | E193: -37864 | F193: -41881 | G193: -46135 | H193: -51267 | I193: -73993 | J193: -45490 | K193: -33334
A194: Investeringer ialt | B194: -1616824 | C194: -1333510 | D194: -1201555 | E194: -1306045 | F194: -1242507 | G194: -1226256 | H194: -1211228 | I194: -1400992 | J194: -1132534 | K194: -1070184
A196: Likviditetsoverskud/-behov | B196: 83436 | C196: -34046 | D196: -370896 | E196: -46074 | F196: -672622 | G196: -692550 | H196: -407749 | I196: -490493 | J196: -378785 | K196: -531189
A198: Ændring finansaktiver og gæld
A199: Tilgodehav. og værdipapirer | B199: -130042 | C199: -171919 | D199: 37497 | E199: -191692 | F199: -48555 | G199: 98282 | H199: -152149 | I199: -27038 | J199: -183284 | K199: -64224
A200: Realkreditinstitutter | B200: 231446 | C200: 282789 | D200: 174690 | E200: -18762009 | F200: 401426 | G200: 382268 | H200: 351114 | I200: -16275822 | J200: -16022774 | K200: -15850704
A201: Pengeinstitutter lån, netto | B201: -284710 | C201: -147994 | D201: -3771 | E201: -44283 | F201: 139798 | G201: 96732 | H201: 46045 | I201: 154500 | J201: 85091 | K201: 114104
A202: Anden gæld | B202: 174257 | C202: 377604 | D202: -53235 | E202: -2423273 | F202: 87053 | G202: -41646 | H202: 98889 | I202: -2167812 | J202: -2144287 | K202: -1947651
A203: Kassekredit, ændring | B203: -51628 | C203: -285767 | D203: 224942 | E203: -179813 | F203: 80764 | G203: 145350 | H203: 82575 | I203: 93567 | J203: 41682 | K203: 137138
A204: Ændring hensættelser | B204: -2046 | C204: 265 | D204: -282 | E204: -375 | F204: -55 | G204: 2518 | H204: 4297 | I204: 46 | J204: 771 | K204: -49
A206: Likviditetsanvendelse/fremskaffelse | B206: -62723 | C206: 54977 | D206: 379842 | E206: 60076 | F206: 660431 | G206: 647951 | H206: 404064 | I206: 499612 | J206: 383259 | K206: 541493
A208: Konsolideringsanalyse
A209: Resultat efter finansiering | B209: 1566782 | C209: 1484449 | D209: 209719 | E209: 1012467 | F209: 263766 | G209: 0 | H209: 0
A210: Private indtægter/omkostninger | B210: 259492 | C210: 253526 | D210: 250021 | E210: 231403 | F210: 224917 | G210: 0 | H210: 0
A211: tilbf. værdiændr. stambesætning mm | B211: -32836 | C211: -64153 | D211: -36150 | E211: -21351 | F211: -82134 | G211: 0 | H211: 0
A212: Beregnet skat | B212: -668984 | C212: -669675 | D212: -224795 | E212: -417534 | F212: -192223 | G212: 0 | H212: 0
A213: Privat udtræk | B213: -295842 | C213: -269310 | D213: -269941 | E213: -266418 | F213: -272600 | G213: 0 | H213: 0
A214: Pensionsindbetaling | B214: -87496 | C214: -86763 | D214: -46887 | E214: -53922 | F214: -36154 | G214: 0 | H214: 0
A215: Konsolidering | B215: 741116 | C215: 648074 | D215: -118034 | E215: 483597 | F215: -94536 | G215: -145304 | H215: 0
A217: Nøgletal - konsolidering | E217: 0
A218: Ændring i resultat - nulkonsolidering | B218: -1264869 | C218: -1193909 | D218: 10597 | E218: -776582 | F218: 28873 | G218: 0 | H218: 0
A219: nulpunktsrente pct
A220: nulpunktsmælkepris kr/kg EKM
A221: Nulpunktspris fravænnede grise
A222: Nulpunktspris smågrise
A223: Nulpunktspris slagtesvin kg
A224: Nulpunktspris minkskind
A226: Øknomiske nøgletal
A227: Virksomhedens afkast, pct. | B227: 3.6 | C227: 2.9 | D227: =(D53+D74+D56+D67+D58+D59)*100/(D108-D103-D105) -> 0.8073276617 | E227: =(E53+E74+E56+E67+E58+E59)*100/(E108-E103-E105) -> 3.035168113 | F227: 1.406884082 | G227: 1.318236427 | H227: 2.051982256 | I227: 3.293062501 | J227: 3.906690504 | K227: 4.02676823
A228: Virksomhedens overskudsmargin, pct | B228: 14.3 | C228: 10.4 | D228: =(D53+D74+D56+D67+D58+D59)*100/D27 -> 4.442587741 | E228: =(E53+E74+E56+E67+E58+E59)*100/E27 -> 15.46694606 | F228: 7.958285807 | G228: 7.385317562 | H228: 11.10659752 | I228: 15.95980419 | J228: 19.21416826 | K228: 21.64641224
A229: Dækningsgrad, pct | B229: 56.1 | C229: 53.5 | D229: =D37*100/D27 -> 45.8680842 | E229: =E37*100/E27 -> 52.59548141 | F229: 46.82666259 | G229: 46.45663564 | H229: 48.88229229 | I229: 49.87647398 | J229: 52.35793817 | K229: 51.10422092
A230: Virksomhedens afkast til egenkapital, pct | B230: =(B209+B67)*100/B148 -> 9.74154574 | C230: =(C209+C67)*100/C148 -> 9.818440854 | D230: -2.594222601 | E230: 6.110544501 | F230: -1.255063935 | G230: -4.088148131 | H230: -4.121115838 | I230: -4.354871492 | J230: -4.544981253 | K230: 0
A231: Soliditetsgrad, pct | B231: 28.2 | C231: 26.6 | D231: =D148*100/D108 -> 23.45126477 | E231: =E148*100/E108 -> 23.28744442 | F231: 21.49771334 | G231: 23.88449841 | H231: 24.17406552 | I231: 24.36897325 | J231: 23.87414737 | K231: 24.11288765
A232: Rentedækningsgrad | B232: 10.3 | C232: 10.2
A234: Bilag 1: Produktionstekniske oplysninger, planteavl | K234: 0
A236: Gruppering | B236: Alle | C236: Alle | D236: Alle | E236: Alle | F236: Alle | G236: Alle | H236: Alle | I236: Alle | J236: Alle | K236: Alle
A237: År | B237: 2020 | C237: 2019 | D237: 2018 | E237: 2017 | F237: 2016 | G237: 2015 | H237: 2014 | I237: 2013 | J237: 2012 | K237: 2011
A239: Afgrødefordeling, ha
A240: Vårbyg, ha | B240: 52.7 | C240: 38.8 | D240: 53.4 | E240: 39.5 | F240: 40.3 | G240: 33.4 | H240: 31 | I240: 35.2 | J240: 36.5 | K240: 27.8
A241: Vinterbyg, ha | B241: 8.6 | C241: 8.4 | D241: 6.5 | E241: 9.5 | F241: 7.2 | G241: 7.1 | H241: 7.5 | I241: 6.6 | J241: 5.9 | K241: 7.8
A242: Vårhvede | B242: 1.2 | C242: 0.8 | D242: 2.3 | E242: 0.9 | F242: 0.8 | G242: 0.8 | H242: 1.2 | I242: 2 | J242: 1.6 | K242: 1
A243: Vinterhvede, ha | B243: 47.2 | C243: 48.2 | D243: 29.3 | E243: 44.6 | F243: 38.6 | G243: 41.1 | H243: 43.7 | I243: 34.8 | J243: 34.2 | K243: 43.7
A244: Triticale, ha | B244: 0.4 | C244: 0.6 | D244: 0.4 | E244: 0.5 | F244: 0.5 | G244: 0.7 | H244: 1 | I244: 0.9 | J244: 1.4 | K244: 1.7
A245: Rug, ha | B245: 8.6 | C245: 9 | D245: 5.5 | E245: 7.3 | F245: 6.2 | G245: 7.1 | H245: 6.1 | I245: 4.9 | J245: 3.4 | K245: 2.9
A246: Havre, ha | B246: 4.7 | C246: 2.4 | D246: 3.7 | E246: 2.8 | F246: 2.5 | G246: 1.6 | H246: 1.7 | I246: 2.6 | J246: 2.6 | K246: 1.9
A247: Kernemajs/majs til modenhed, ha | B247: 0.8 | C247: 0.8 | D247: 0.4 | E247: 0.4 | F247: 0.4 | G247: 0.4 | H247: 0.6 | I247: 0.8 | J247: 0.8 | K247: 0.9
A248: Blandsæd | B248: 0.3 | C248: 0.2 | D248: 0.3 | E248: 0.2 | F248: 0.5 | G248: 0.2 | H248: 0.2 | I248: 0.5 | J248: 0.8 | K248: 0.8
A249: Korn areal, ha | B249: 124.5 | C249: 109.3 | D249: 101.8 | E249: 105.8 | F249: 96.9 | G249: 92.4 | H249: 93 | I249: 88.5 | J249: 87.2 | K249: 88.5
A252: Græsfrø, ha | B252: 0.6 | C252: 0.6 | D252: 0.7 | E252: 0.6 | F252: 0.7 | G252: 0.7 | H252: 0.9 | I252: 0.9 | J252: 0.9 | K252: 1.3
... 513 more rows

Sheet 1.6 Heltid øko
A1: Udtrukket: 09-10-2020 08:48:10 af LFjubp
A2: Denne udskrift kan indeholde fortrolige data og skal derfor behandles med særlig omhu og i forhold til gældende regler omkring datasikkerhed. Distribution til tredje part er ikke tilladt uden samtykke fra SEGES. Sker dette alligevel, kan SEGES ikke holdes ansvarlig
A3: Udvælgelse: (([norm_t_ejendom] >= 1665 AND [norm_t_ejendom] <= 99999999999999999)) AND (([006410]=2)) AND Godkendt = Ja AND Tilladelse IN (ØDB statistik) AND Opstilling = Statistik
A4: Gruppering: Afkastningsgrad
A6: Gruppering | B6: Alle | C6: Alle | D6: Alle | E6: Alle | F6: Alle | G6: Alle | H6: Alle | I6: Alle | J6: Alle | K6: Alle
A7: År | B7: 2020 | C7: 2019 | D7: 2018 | E7: 2017 | F7: 2016 | G7: 2015 | H7: 2014 | I7: 2013 | J7: 2012 | K7: 2011
A8: Antal | B8: 367 | C8: 392 | D8: 382 | E8: 409 | F8: 337 | G8: 327 | H8: 339 | I8: 362 | J8: 388 | K8: 391
A9: Antal vejet | B9: 740 | C9: 704.05 | D9: 633.34 | E9: 600.23 | F9: 571.75 | G9: 613 | H9: 618.58 | I9: 616.09 | J9: 629.59 | K9: 643.67
A10: Kredsnummer | B10: 274 | C10: 264 | D10: 298 | E10: 276 | F10: 250 | G10: 271 | H10: 273 | I10: 263 | J10: 261 | K10: 245
A11: Ejendomsnummer | B11: 4048 | C11: 3922 | D11: 4131 | E11: 4052 | F11: 4282 | G11: 4140 | H11: 4297 | I11: 4034 | J11: 3976 | K11: 3871
A12: Landbrugsareal, ha | B12: 236 | C12: 224 | D12: 202 | E12: 201 | F12: 191 | G12: 173 | H12: 183 | I12: 175 | J12: 175 | K12: 172
A13: Årskøer | B13: 99 | C13: 100 | D13: 97 | E13: 95 | F13: 96 | G13: 82 | H13: 90 | I13: 95 | J13: 96 | K13: 89
A14: Årssøer | B14: 17 | C14: 17 | D14: 17 | E14: 12 | F14: 11 | G14: 10 | H14: 9 | I14: 8 | J14: 12 | K14: 7
A15: Antal slagtesvin produceret | B15: 235 | C15: 220 | D15: 280 | E15: 229 | F15: 208 | G15: 208 | H15: 188 | I15: 183 | J15: 160 | K15: 166
A16: Antal minktæver | B16: 0 | C16: 27 | D16: 32 | E16: 46 | F16: 15 | G16: 0 | H16: 7 | I16: 19 | J16: 9 | K16: 16
A17: Dyreenheder | B17: 201 | C17: 199 | D17: 197 | E17: 188 | F17: 171 | G17: 153 | H17: 166 | I17: 164 | J17: 166 | K17: 155
A18: Beregnet antal normtimer | B18: 5829 | C18: 5734 | D18: 5505 | E18: 5365 | F18: 5427 | G18: 4790 | H18: 5059 | I18: 5066 | J18: 5051 | K18: 4634
A20: Bruttoudbytte Planteavl inkl. IO | B20: 1808093 | C20: 1949144 | D20: 1569240 | E20: 1755813 | F20: 1911100 | G20: 1336526 | H20: 1460232 | I20: 1441093 | J20: 1391756 | K20: 1296661
A21: Bruttoudbytte Kvæg | B21: 3661990 | C21: 3747943 | D21: 3603796 | E21: 3595131 | F21: 3338362 | G21: 2709678 | H21: 3017077 | I21: 2901721 | J21: 2737442 | K21: 2585480
A22: Bruttoudbytte Svin | B22: 544926 | C22: 516785 | D22: 462899 | E22: 496287 | F22: 537745 | G22: 436581 | H22: 315329 | I22: 289061 | J22: 340244 | K22: 255345
A23: Bruttoudbytte andre husdyr | B23: 504089 | C23: 580850 | D23: 500710 | E23: 771483 | F23: 741468 | G23: 700495 | H23: 521457 | I23: 497454 | J23: 362793 | K23: 306701
A24: Skovindtægter | B24: 6041 | C24: 4948 | D24: 9592 | E24: 2794 | F24: 2290 | G24: 2353 | H24: 0
A25: Maskinstationsindtægter | B25: 125294 | C25: 124436 | D25: 92699 | E25: 94334 | F25: 105866 | G25: 102926 | H25: 77250 | I25: 66676 | J25: 63136 | K25: 69021
A26: Andre landbrugsindtægter | B26: 406224 | C26: 393206 | D26: 368234 | E26: 412567 | F26: 324203 | G26: 241578 | H26: 208608 | I26: 198429 | J26: 200296 | K26: 251240
A27: Bruttoudbytte ialt | B27: 7056657 | C27: 7317311 | D27: 6607170 | E27: 7128410 | F27: 6961034 | G27: 5530137 | H27: 5599952 | I27: 5394434 | J27: 5095667 | K27: 4764449
A29: Stykomkostninger Mark | B29: -263775 | C29: -273632 | D29: -254602 | E29: -248275 | F29: -300730 | G29: -205672 | H29: -202777 | I29: -211818 | J29: -191044 | K29: -186172
A30: Korn inkl. IO | B30: -363044 | C30: -417609 | D30: -407645 | E30: -374912 | F30: -376753 | G30: -316173 | H30: -366441 | I30: -2196110 | J30: -1980562 | K30: -1652973
A31: Færdigblanding mv. | B31: -1386077 | C31: -1495189 | D31: -1443575 | E31: -1389617 | F31: -1271646 | G31: -1025202 | H31: -1009812
A32: Eget grovfoder inkl. IO | B32: -809533 | C32: -793363 | D32: -787228 | E32: -752890 | F32: -755587 | G32: -664074 | H32: -706064
A33: Øvrige stykomkostninger husdyr | B33: -316712 | C33: -324586 | D33: -304779 | E33: -278454 | F33: -277171 | G33: -235495 | H33: -252987 | I33: -244496 | J33: -244468 | K33: -231549
A34: Skovomkostninger | B34: -4811 | C34: -2632 | D34: -4614 | E34: -18398 | F34: -8160 | G34: -5224 | H34: 0
A35: Stykomkostninger i alt | B35: -3143952 | C35: -3307011 | D35: -3202443 | E35: -3062546 | F35: -2990047 | G35: -2451840 | H35: -2538080 | I35: -2652424 | J35: -2416074 | K35: -2070694
A37: Dækningsbidrag | B37: 3912705 | C37: 4010300 | D37: 3404727 | E37: 4065864 | F37: 3970987 | G37: 3078298 | H37: 3061872 | I37: 2742010 | J37: 2679593 | K37: 2693755
A39: Energi og brændstof | B39: -175791 | C39: -201350 | D39: -227534 | E39: -185034 | F39: -187711 | G39: -161607 | H39: -209064 | I39: -211575 | J39: -199980 | K39: -191584
A40: Maskinstation | B40: -489078 | C40: -474062 | D40: -431835 | E40: -407150 | F40: -521485 | G40: -330531 | H40: -344512 | I40: -334341 | J40: -344883 | K40: -330766
A41: Vedligeholdelse | B41: -416506 | C41: -397390 | D41: -397716 | E41: -379497 | F41: -389017 | G41: -307602 | H41: -323679 | I41: -296567 | J41: -287440 | K41: -276396
A42: Investeringer over driften | B42: -23333 | C42: -23116 | D42: -28455 | E42: -30740 | F42: -33596 | G42: -22440 | H42: -26514 | I42: -20777 | J42: -21038 | K42: -21249
A43: Lønomkostninger | B43: -633847 | C43: -670148 | D43: -618007 | E43: -559399 | F43: -532191 | G43: -412244 | H43: -410578 | I43: -398965 | J43: -352672 | K43: -327403
A44: Ejendomsskat og forsikringer | B44: -130655 | C44: -130742 | D44: -119798 | E44: -111045 | F44: -115963 | G44: -94282 | H44: -95350 | I44: -90604 | J44: -84264 | K44: -81738
A45: Diverse omkostninger | B45: -189452 | C45: -198667 | D45: -182146 | E45: -178889 | F45: -181299 | G45: -161560 | H45: -158869 | I45: -159479 | J45: -156775 | K45: -155858
A46: Kontante kapacitetsomkostninger | B46: -2058661 | C46: -2095475 | D46: -2005491 | E46: -1851754 | F46: -1961263 | G46: -1490266 | H46: -1568565 | I46: -1512307 | J46: -1447051 | K46: -1384993
A48: Afskrivninger | B48: -685854 | C48: -688720 | D48: -665496 | E48: -683379 | F48: -702552 | G48: -590185 | H48: -584266 | I48: -551861 | J48: -546705 | K48: -522588
A49: Nedskrivninger | B49: -12880 | C49: -8650 | D49: -10262 | E49: -5222 | F49: -14469 | G49: 731 | H49: -1531 | I49: -6772 | J49: -4989 | K49: -11401
A50: Tab/gevinst | B50: 25731 | C50: 13481 | D50: 18894 | E50: 10402 | F50: 20936 | G50: 12557 | H50: 25929 | I50: 25085 | J50: 11095 | K50: -5259
A51: Kapacitetsomkostninger i alt | B51: -2731664 | C51: -2779364 | D51: -2662355 | E51: -2529952 | F51: -2657348 | G51: -2067163 | H51: -2128434 | I51: -2045855 | J51: -1987650 | K51: -1924240
A53: Resultat af primær drift | B53: 1181041 | C53: 1230936 | D53: 742372 | E53: 1535912 | F53: 1313639 | G53: 1011134 | H53: 933439 | I53: 696155 | J53: 691943 | K53: 769515
A56: Afkoblet EU-støtte mv. | B56: 535707 | C56: 531894 | D56: 509346 | E56: 490921 | F56: 482856 | G56: 457004 | H56: 529229 | I56: 494832 | J56: 502081 | K56: 478514
A58: Forpagtningsindtægt | B58: 69462 | C58: 73510 | D58: 90300 | E58: 58351 | F58: 100962 | G58: 44400 | H58: 23559 | I58: 22571 | J58: 24653 | K58: 25106
A59: Forpagtningsafgift | B59: -493865 | C59: -440349 | D59: -382955 | E59: -386812 | F59: -337505 | G59: -285744 | H59: -300244 | I59: -289971 | J59: -283207 | K59: -256934
A60: Renteindt, landbrug og fin.tilskud | B60: 20637 | C60: 31685 | D60: 29014 | E60: 32122 | F60: 39894 | G60: 30087 | H60: 33235 | I60: 29142 | J60: 28943 | K60: 33112
A61: Realiseret gevinst/tab finansaktiver | B61: -29371 | C61: 12914 | D61: -33309 | E61: -43001 | F61: -37067 | G61: -14120 | H61: -50729 | I61: -37879 | J61: -51969 | K61: -158110
A62: Renteudgifter, landbrug | B62: -464032 | C62: -528512 | D62: -563762 | E62: -560463 | F62: -592364 | G62: -536210 | H62: -547546 | I62: -572507 | J62: -634282 | K62: -668578
A63: Finansomkostninger ialt, landbrug | B63: -897169 | C63: -850753 | D63: -860712 | E63: -899803 | F63: -826079 | G63: -761588 | H63: -841724 | I63: -848643 | J63: -915862 | K63: -1025404
A65: Driftsresultat | B65: 819579 | C65: 912077 | D65: 391006 | E65: 1127030 | F65: 970416 | G65: 706551 | H65: 620944 | I65: 342603 | J65: 278218 | K65: 222625
A67: Ejerløn | B67: -434814 | C67: -446353 | D67: -441642 | E67: -456512 | F67: -330955 | G67: -325520 | H67: -363613 | I67: -380313 | J67: -365539 | K67: 0
A68: Korr. værdiændring stambes/foderbeh. | B68: 50274 | C68: 7408 | D68: 1300 | E68: -24131 | F68: -8497 | G68: 42135 | H68: 1860
A69: Driftsresultat efter ejerløn mv. | B69: 435040 | C69: 473133 | D69: -49336 | E69: 646387 | F69: 630964 | G69: 423166 | H69: 259191
A71: Afskrivning immaterielle aktiver | B71: -9992 | C71: -11343 | D71: -10975 | E71: -10069 | F71: -15091 | G71: -1580 | H71: -2548 | I71: -1151 | J71: -794 | K71: -894
A72: Nedskrivning immaterielle aktiver | B72: -1322 | C72: -21091 | D72: -3093 | E72: -10039 | F72: -12461 | G72: -10671 | H72: -255588 | I72: -219211 | J72: -170930 | K72: -384628
A73: Gevinst/tab immaterielle aktiver | B73: 3933 | C73: 17958 | D73: 2862 | E73: 48599 | F73: -21702 | G73: 13854 | H73: 3701 | I73: -731 | J73: 2955 | K73: 52721
A74: Anden virksomhed og engangsposter | B74: 78427 | C74: 119682 | D74: 126531 | E74: 66389 | F74: 56495 | G74: 76642 | H74: 73594 | I74: 89883 | J74: 104084 | K74: 91316
A75: Renteindtægter, privat | B75: 4486 | C75: 7030 | D75: 22316 | E75: 9339 | F75: 44522 | G75: 9647 | H75: 6425 | I75: 7917 | J75: 17835 | K75: 26574
A76: Renteudgifter, privat | B76: -33934 | C76: -35116 | D76: -39698 | E76: -40132 | F76: -53151 | G76: -50019 | H76: -51422 | I76: -55406 | J76: -78989 | K76: -147988
A77: Urealiseret regulering værdipapirer | B77: 71992 | C77: -5521 | D77: -127421 | E77: 53709 | F77: -334641 | G77: 39670 | H77: 44115 | I77: 67975 | J77: 154023 | K77: -92346
A78: Urealiseret regulering gæld | B78: 4382 | C78: -6477 | D78: -26661 | E78: 3164 | F78: 31340 | G78: 51689 | H78: -36345 | I78: 22729 | J78: -80657 | K78: -55162
A79: Værdiændring inv. ejendomme og tilknyttede virks. | B79: 0 | C79: 0 | D79: 0 | F79: -3461 | G79: 0 | H79: 0
A81: Resultat før personlig indtjening | B81: 937552 | C81: 977199 | D81: 334868 | E81: 1247989 | F81: 662266 | G81: 835786 | H81: 402930 | I81: 254608 | J81: 225745 | K81: -287782
A83: Private indtægter/omkostninger | B83: 275260 | C83: 277383 | D83: 268751 | E83: 255775 | F83: 254435 | G83: 277080 | H83: 250230 | I83: 261044 | J83: 264763 | K83: 248354
A85: Årets resultat før skat | B85: 1212812 | C85: 1254581 | D85: 603618 | E85: 1503764 | F85: 916700 | G85: 1112867 | H85: 653160 | I85: 515652 | J85: 490508 | K85: -39428
A87: Skat af årets resultat | B87: -395276 | C87: -420814 | D87: -346220 | E87: -525066 | F87: -522648 | G87: -359485 | H87: -259898 | I87: -219013 | J87: -37284 | K87: -63627
A89: BALANCE
A91: Fast ejendom | B91: 24667689 | C91: 25932655 | D91: 24866946 | E91: 23375081 | F91: 25765095 | G91: 21466519 | H91: 0 | I91: 21688345 | J91: 21617673 | K91: 22034665
A92: Stamplanter | B92: 13642 | C92: 5544 | D92: 282 | E92: 431 | F92: 48 | G92: 0 | H92: 0
A93: Betalingsrettigheder EU | B93: 32307 | C93: 32144 | D93: 38637 | E93: 44122 | F93: 59309 | G93: 73702 | H93: 99607 | I93: 120611 | J93: 130484 | K93: 136454
A94: Mælkekvoter og andre leveringsrettigheder | B94: 3523 | C94: 4590 | D94: 4306 | E94: 6057 | F94: 7222 | G94: 7412 | H94: 10335 | I94: 264461 | J94: 523895 | K94: 684820
A95: Inventar og maskiner | B95: 2806256 | C95: 2842094 | D95: 2610000 | E95: 2627849 | F95: 2847068 | G95: 2390771 | H95: 2373758 | I95: 2285276 | J95: 2178234 | K95: 2221971
A96: Besætning | B96: 1492224 | C96: 1503942 | D96: 1482534 | E96: 1436254 | F96: 1400902 | G96: 1198894 | H96: 1217999 | I96: 1263718 | J96: 1303158 | K96: 1164693
A97: Beholdning | B97: 1049126 | C97: 1068266 | D97: 905052 | E97: 1024216 | F97: 1040551 | G97: 819451 | H97: 873499 | I97: 773834 | J97: 852141 | K97: 822294
A98: Tilgodehavende | B98: 1456576 | C98: 1483098 | D98: 2086647 | E98: 1621723 | F98: 3205920 | G98: 1346270 | H98: 857513 | I98: 1068214 | J98: 1313914 | K98: 1946483
A99: Andelskapital og financielle kontrakter | B99: 551127 | C99: 540738 | D99: 531127 | E99: 546412 | F99: 475913 | G99: 455365 | H99: 396416 | I99: 304871 | J99: 301632 | K99: 301211
A100: Landbrugsaktiver i alt | B100: 32072470 | C100: 33413069 | D100: 32525529 | E100: 30682146 | F100: 34802028 | G100: 27758384 | H100: 27840883 | I100: 27769330 | J100: 28221131 | K100: 29312592
A102: Fast ejendom udenfor landbrug | B102: 1575032 | C102: 1497310 | D102: 1397727 | E102: 1373956 | F102: 1481657 | G102: 1464745 | H102: 0 | I102: 430993 | J102: 407457 | K102: 479754
A103: Private aktiver | B103: 442792 | C103: 382407 | D103: 347030 | E103: 360987 | F103: 407713 | G103: 206336 | H103: 204483 | I103: 1181080 | J103: 1158653 | K103: 1168750
A104: Øvrige aktiver udenfor landbrug | B104: 266309 | C104: 231412 | D104: 193563 | E104: 295940 | F104: 169429 | G104: 324079 | H104: 354984 | I104: 378093 | J104: 267620 | K104: 348714
A105: Værdipapirer og indlån | B105: 851901 | C105: 679423 | D105: 1140042 | E105: 830066 | F105: 1650453 | G105: 797490 | H105: 817220 | I105: 1019372 | J105: 2022842 | K105: 2885109
A106: Hensættelser (positive) | B106: 30801 | C106: 27603 | D106: 44411 | E106: 65890 | F106: 88313 | G106: 93128 | H106: 122208
A108: Aktiver i alt | B108: 35239305 | C108: 36231223 | D108: 35648304 | E108: 33608984 | F108: 38599594 | G108: 30644162 | H108: 30699990 | I108: 30778868 | J108: 32077703 | K108: 34194919
A110: Ansvarlig lånekapital | B110: -57275 | C110: -56702 | D110: -36722
A111: Realkreditinstitutter | B111: -17262410 | C111: -18152494 | D111: -17783875 | E111: -16404877 | F111: -18642177 | G111: -15081021 | H111: -15912802 | I111: -15723260 | J111: -15821176 | K111: -15634064
A112: Pengeinstitutter | B112: -2623839 | C112: -3073983 | D112: -3390442 | E112: -3357125 | F112: -4980160 | G112: -2992634 | H112: -2906675 | I112: -2999644 | J112: -3703781 | K112: -4309407
A113: Pante- og gældsbreve | B113: -144871 | C113: -103575 | D113: -106261 | E113: -94320 | F113: -63068 | G113: -61079 | H113: -56911
A114: Anden langfristet gæld | B114: -387970 | C114: -432640 | D114: -366862 | E114: -265085 | F114: -338347 | G114: -88847 | H114: -13698
A115: Anden gæld | B115: -2053905 | C115: -2023433 | D115: -1796237 | E115: -2064058 | F115: -1884469 | G115: -1686331 | H115: -1653976 | I115: -1607384 | J115: -1471014 | K115: -1991190
A116: Kassekredit | B116: -1177473 | C116: -1266581 | D116: -1419479 | E116: -1322906 | F116: -1399244 | G116: -1099197 | H116: -1134728 | I116: -1460547 | J116: -1396173 | K116: -1247344
A117: Gæld i alt | B117: -23707743 | C117: -25109408 | D117: -24899878 | E117: -23514269 | F117: -27307464 | G117: -21009109 | H117: -21678791 | I117: -21790835 | J117: -22392144 | K117: -23182005
A119: Hensættelser (negative) | B119: -3311801 | C119: -3438826 | D119: -3147750 | E119: -3290658 | F119: -3257159 | G119: -3174442 | H119: -3199815 | I119: -2617267 | J119: -2330183 | K119: -2413624
A121: Egenkapital | B121: 8219761 | C121: 7682989 | D121: 7600675 | E121: 6804057 | F121: 8034971 | G121: 6460610 | H121: 5821384 | I121: 6370766 | J121: 7355376 | K121: 8599290
A123: EGENKAPITALFORKLARING
A125: Resultat efter finansiering | B125: 868558 | C125: 1003673 | D125: 500155 | E125: 1162627 | F125: 1018282 | G125: 742824 | H125: 649594 | I125: 384997 | J125: 321091 | K125: 192528
A126: Private indtægter | B126: 275260 | C126: 277383 | D126: 268751 | E126: 255775 | F126: 254435 | G126: 277080 | H126: 250230 | I126: 261044 | J126: 264763 | K126: 248354
A127: Resultat før regulering og skat | B127: 1143818 | C127: 1281056 | D127: 768906 | E127: 1418401 | F127: 1272716 | G127: 1019904 | H127: 899824 | I127: 646041 | J127: 585855 | K127: 440881
A129: Privat | B129: -262736 | C129: -296341 | D129: -260707 | E129: -269856 | F129: -276547 | G129: -287241 | H129: -296765 | I129: -310177 | J129: -307950 | K129: -309264
A130: Formueindtægter/-udgifter | B130: -22308 | C130: -31864 | D130: -20336 | E130: -30402 | F130: -18340 | G130: -34800 | H130: -36077 | I130: -45881 | J130: -22828 | K130: -36921
A131: Privat udtræk | B131: -285044 | C131: -328204 | D131: -281043 | E131: -300258 | F131: -294887 | G131: -322041 | H131: -332842 | I131: -340661 | J131: -319850 | K131: -330724
A133: Ud- og indbetaling interessenter | B133: -19210 | C133: -59033 | D133: -24517 | F133: -74766 | G133: -32210 | H133: -23713 | I133: -44990 | J133: -18667 | K133: 30240
A134: Betalt skat | B134: -275773 | C134: -242218 | D134: -224141 | E134: -274178 | F134: -216700 | G134: -187741 | H134: -160676 | I134: -139368 | J134: -95551 | K134: -114655
A135: Ændring i udskudt skat | B135: -119503 | C135: -178596 | D135: -122079 | E135: -250888 | F135: -305948 | G135: -171744 | H135: -99223 | I135: -79645 | J135: 58266 | K135: 51027
A136: Skat af årets resultat | B136: -395276 | C136: -420814 | D136: -346220 | E136: -525066 | F136: -522648 | G136: -359485 | H136: -259898 | I136: -219013 | J136: -37284 | K136: -63627
A138: Ændring af egenkapital fra drift, privat og skat | B138: 444289 | C138: 473004 | D138: 117126 | E138: 533651 | F138: 380415 | G138: 306169 | H138: 283370 | I138: 40773 | J138: 205917 | K138: 46530
A139: Regulering ialt fra resultat | B139: 68993 | C139: -26475 | D139: -165288 | E139: 85363 | F139: -352555 | G139: 92962 | H139: -246664 | I139: -130389 | J139: -95402 | K139: -480310
A140: Værdireguleringer | B140: 181321 | C140: 142231 | D140: 55129 | E140: 144248 | F140: -29269 | G140: 127895 | H140: -36720 | I140: 86494 | J140: -96536 | K140: -736402
A141: Pensionsindbetaling | B141: -70202 | C141: -72868 | D141: -60884 | E141: -64640 | F141: -53950 | G141: -46256 | H141: -82174 | I141: -54596 | J141: -52636 | K141: -54740
A142: Øvrige egenkapitalbevægelser | B142: 58 | C142: 0 | D142: 0 | E142: 0 | F142: 0 | G142: 0 | H142: 0 | I142: 0 | J142: 0 | K142: 0
A144: Ændring af egenkapital | B144: 624460 | C144: 515893 | D144: -53916 | E144: 698622 | F144: -58820 | G144: 480770 | H144: -82187 | I144: -56184 | J144: -36931 | K144: -1252110
A146: Egenkapital primo | B146: 7596202 | C146: 7182223 | D146: 7698944 | E146: 6105438 | F146: 8103818 | G146: 5981679 | H146: 5903570 | I146: 6428483 | J146: 7393976 | K146: 9852438
A148: Egenkapital ultimo | B148: 8219761 | C148: 7682989 | D148: 7600675 | E148: 6804057 | F148: 8034971 | G148: 6460610 | H148: 5821384 | I148: 6372299 | J148: 7357045 | K148: 8600328
A150: PENGEBINDING
A152: Årets resultat før skat | B152: 1212812 | C152: 1254581 | D152: 603618 | E152: 1503764 | F152: 916700 | G152: 1112867 | H152: 653160 | I152: 515652 | J152: 490508 | K152: -39428
A154: Værdiændring besætning/beholdning | B154: 82792 | C154: 12962 | D154: 32822 | E154: -25792 | F154: -14105 | G154: 62187 | H154: 0
A155: Afskrivninger m.v., landbrug | B155: 680383 | C155: 698366 | D155: 668070 | E155: 649708 | F155: 745338 | G155: 575294 | H155: 814303 | I155: 754641 | J155: 709311 | K155: 872048
A156: Afskrivninger andre erhverv | B156: 25418 | C156: 31879 | D156: 49392 | E156: 40474 | F156: 112308 | G156: 34244 | H156: 22518 | I156: 22938 | J156: 53195 | K156: 73498
A157: Regulering I/S | B157: -6772 | C157: -12197 | D157: 2264 | E157: -5800 | F157: -3366 | G157: 0 | H157: 0 | I157: 498 | J157: -260 | K157: -1009
A158: Gevinst/tab finansaktiver | B158: 1870 | C158: -2110 | D158: -2231 | E158: -3090 | F158: -2063 | G158: -1490 | H158: -1501 | I158: -790 | J158: -1429 | K158: -2193
A159: Urealiseret regulering finansaktiver | B159: -71992 | C159: 5521 | D159: 127421 | E159: -53709 | F159: 334641 | G159: -39670 | H159: -44115 | I159: -67975 | J159: -154023 | K159: 92346
A160: Gevinst/tab gæld | B160: 6865 | C160: 22615 | D160: 21581 | E160: 10583 | F160: 985 | G160: 30142 | H160: 5165 | I160: 8913 | J160: 3260 | K160: 80599
A161: Urealiseret regulering gæld | B161: -4382 | C161: 6477 | D161: 26661 | E161: 3164 | F161: -31340 | G161: -51689 | H161: 36345 | I161: -22729 | J161: -80657 | K161: -55162
A162: Øvrige tilbageførsler | B162: -1083 | C162: -35364 | D162: -30454 | E162: 31 | F162: 7528 | G162: -480 | H162: 632
A163: Tilbageførsel i alt | B163: 713099 | C163: 728149 | D163: 895527 | E163: 609240 | F163: 1149925 | G163: 546350 | H163: 833345 | I163: 695497 | J163: 690711 | K163: 1170452
A165: Betalt skat | B165: -275116 | C165: -242474 | D165: -224280 | E165: -274178 | F165: -216700 | G165: -188719 | H165: -158038 | I165: -139368 | J165: -95551 | K165: -114655
A166: Privat | B166: -262736 | C166: -311469 | D166: -260707 | E166: -269856 | F166: -276547 | G166: -287241 | H166: -296765 | I166: -310177 | J166: -307950 | K166: -309264
A167: Afskrivninger privat tlbf. | B167: 21363 | C167: 21751 | D167: 24134 | E167: 23324 | F167: 14054 | G167: 20806 | H167: 24125 | I167: 28620 | J167: 24706 | K167: 20164
A168: Formueindtægter/-udgifter | B168: -22308 | C168: -31864 | D168: -20336 | E168: -30402 | F168: -18340 | G168: -34800 | H168: -36077 | I168: -45881 | J168: -22828 | K168: -36921
A169: Pensionsindbetaling | B169: -70023 | C169: -73239 | D169: -61001 | E169: -64640 | F169: -53950 | G169: -46256 | H169: -81861 | I169: -54596 | J169: -52636 | K169: -54740
A170: Privat udtræk, skat og pension i alt | B170: -608819 | C170: -637294 | D170: -542190 | E170: -617416 | F170: -551483 | G170: -536210 | H170: -548616 | I170: -552122 | J170: -464200 | K170: -450584
A172: Indskud/udlodning mv interessentskaber/selskaber | B172: -18504 | C172: -58186 | D172: -13716 | E172: -58492 | F172: -67853 | G172: -31231 | H172: -26351 | I172: -44990 | J172: -18667 | K172: 30240
A174: Til invest og afdrag | B174: 1298587 | C174: 1287249 | D174: 943240 | E174: 1437097 | F174: 1447290 | G174: 979935 | H174: 915725
A176: Besætning (realforskydning) | B176: -62868 | C176: -5270 | D176: -51092 | E176: -31995 | F176: -78271 | G176: -100421 | H176: 34983 | I176: 6373 | J176: -78956 | K176: -63805
A177: Beholdninger (realforskydninger) | B177: -97815 | C177: -209775 | D177: 118138 | E177: -100307 | F177: -103212 | G177: -25503 | H177: -97221 | I177: 54039 | J177: -35130 | K177: -34846
A178: Flerårige afgrøder | B178: 0 | C178: 0 | D178: 0 | E178: 0 | F178: 0 | G178: 0 | H178: 0 | I178: 0 | J178: 0 | K178: 0
A180: Likviditet før anlægsinvesteringer | B180: 1137904 | C180: 1072204 | D180: 1010285 | E180: 1304796 | F180: 1265806 | G180: 854011 | H180: 853488 | I180: 712511 | J180: 602933 | K180: 581789
A182: Investeringer
A183: Jord | B183: -548751 | C183: -604281 | D183: -492318 | E183: -677684 | F183: -1706282 | G183: -226579 | H183: -287117 | I183: -163372 | J183: -309873 | K183: -431111
A184: Immaterielle aktiver | B184: -3714 | C184: -6131 | D184: -1301 | E184: -2412 | F184: -9292 | G184: 3404 | H184: -10135 | I184: -4884 | J184: -16747 | K184: -81866
A185: Grundforbedring | B185: -11005 | C185: -10398 | D185: -15388 | E185: -11955 | F185: -15461 | G185: -7402 | H185: -7973 | I185: -14089 | J185: -6830 | K185: -7273
A186: Stamplanter | B186: -3135 | C186: -66 | D186: -101 | E186: 431 | F186: -60 | G186: 0 | H186: 0
A187: Driftsbygninger | B187: -200535 | C187: -202428 | D187: -233010 | E187: -275279 | F187: -733549 | G187: -287231 | H187: -167036 | I187: -145254 | J187: -181408 | K187: -350958
A188: Inventar markbrug | B188: -228605 | C188: -205131 | D188: -205655 | E188: -262832 | F188: -279258 | G188: -198601 | H188: -239911 | I188: -248570 | J188: -154494 | K188: -156746
A189: Inventar husdyrbrug | B189: -163468 | C189: -162657 | D189: -216020 | E189: -194294 | F189: -310254 | G189: -216504 | H189: -100198 | I189: -137923 | J189: -94759 | K189: -177596
A190: Inventar andet | B190: -6582 | C190: -10376 | D190: -5027 | E190: -20948 | F190: -20259 | G190: -5154 | H190: 2365 | I190: -8089 | J190: 931 | K190: -1890
A191: Beboelse, landbrug | B191: -50873 | C191: -67394 | D191: -43410 | E191: -77489 | F191: -120486 | G191: -41018 | H191: -66721 | I191: -29319 | J191: -57634 | K191: -44410
A192: Private aktiver | B192: -64857 | C192: -50666 | D192: -36500 | E192: 360987 | F192: -54585 | G192: -35321 | H192: -32079 | I192: -32556 | J192: -33702 | K192: -37009
A193: Aktiver udenfor landbrug | B193: -79186 | C193: -49410 | D193: -49936 | E193: -39313 | F193: -108682 | G193: -101360 | H193: -59340 | I193: -87430 | J193: -50965 | K193: -100342
A194: Investeringer ialt | B194: -1360711 | C194: -1368938 | D194: -1298666 | E194: -1601840 | F194: -3358169 | G194: -1115767 | H194: -968147 | I194: -871486 | J194: -905480 | K194: -1389202
A196: Likviditetsoverskud/-behov | B196: -222806 | C196: -296734 | D196: -288380 | E196: -297044 | F196: -2092363 | G196: -261756 | H196: -114659 | I196: -158975 | J196: -302547 | K196: -807413
A198: Ændring finansaktiver og gæld
A199: Tilgodehav. og værdipapirer | B199: -190108 | C199: 18591 | D199: 83603 | E199: -326728 | F199: 302 | G199: -373096 | H199: -11340 | I199: 100614 | J199: 107352 | K199: -313677
A200: Realkreditinstitutter | B200: 347725 | C200: 291795 | D200: 201378 | E200: -16404877 | F200: 1667419 | G200: 167749 | H200: 218089 | I200: -15723260 | J200: -15821176 | K200: -15634064
A201: Pengeinstitutter lån, netto | B201: 5042 | C201: -203407 | D201: -152797 | E201: 23156 | F201: 107005 | G201: 279963 | H201: 38951 | I201: 32891 | J201: -198868 | K201: -2962
A202: Anden gæld | B202: 131804 | C202: 184186 | D202: -17746 | E202: -2064058 | F202: 197317 | G202: 112367 | H202: 37316 | I202: -1607384 | J202: -1471014 | K202: -1991190
A203: Kassekredit, ændring | B203: -70757 | C203: 779 | D203: 224169 | E203: -43519 | F203: 120642 | G203: -31873 | H203: -167323 | I203: -12929 | J203: 179950 | K203: 156061
A204: Ændring hensættelser | B204: 0 | C204: 129 | D204: -10 | E204: 51 | F204: -60 | G204: 0 | H204: 0 | I204: 0 | J204: -5 | K204: 0
A206: Likviditetsanvendelse/fremskaffelse | B206: 223707 | C206: 292071 | D206: 338597 | E206: 303259 | F206: 2092624 | G206: 54021 | H206: 115568 | I206: 152045 | J206: 301653 | K206: 820707
A208: Konsolideringsanalyse
A209: Resultat efter finansiering | B209: 868560 | C209: 1003675 | D209: 500157 | E209: 1162627 | F209: 1018283 | G209: 0 | H209: 0
A210: Private indtægter/omkostninger | B210: 275260 | C210: 277383 | D210: 268751 | E210: 255775 | F210: 254435 | G210: 0 | H210: 0
A211: tilbf. værdiændr. stambesætning mm | B211: 50580 | C211: -25118 | D211: -24598 | E211: -25598 | F211: -9959 | G211: 0 | H211: 0
A212: Beregnet skat | B212: -433934 | C212: -471505 | D212: -270946 | E212: -495251 | F212: -420448 | G212: 0 | H212: 0
A213: Privat udtræk | B213: -285044 | C213: -343333 | D213: -281043 | E213: -300258 | F213: -294887 | G213: 0 | H213: 0
A214: Pensionsindbetaling | B214: -70023 | C214: -73239 | D214: -61001 | E214: -64640 | F214: -53950 | G214: 0 | H214: 0
A215: Konsolidering | B215: 405400 | C215: 367863 | D215: 131321 | E215: 531328 | F215: 493474 | G215: 245198 | H215: 0
A217: Nøgletal - konsolidering | E217: 0
A218: Ændring i resultat - nulkonsolidering | B218: -703247 | C218: -680384 | D218: -276112 | E218: -881643 | F218: -779635 | G218: 0 | H218: 0
A219: nulpunktsrente pct
A220: nulpunktsmælkepris kr/kg EKM
A221: Nulpunktspris fravænnede grise
A222: Nulpunktspris smågrise
A223: Nulpunktspris slagtesvin kg
A224: Nulpunktspris minkskind
A226: Øknomiske nøgletal
A227: Virksomhedens afkast, pct. | B227: 2.5 | C227: 2.5 | D227: =(D53+D74+D56+D67+D58+D59)*100/(D108-D103-D105) -> 1.885037401 | E227: =(E53+E74+E56+E67+E58+E59)*100/(E108-E103-E105) -> 4.035572165 | F227: 3.517903022 | G227: 3.29927434 | H227: 3.01892087 | I227: 2.215507675 | J227: 2.332537889 | K227: 3.674446088
A228: Virksomhedens overskudsmargin, pct | B228: 10.9 | C228: 11.8 | D228: =(D53+D74+D56+D67+D58+D59)*100/D27 -> 9.746260502 | E228: =(E53+E74+E56+E67+E58+E59)*100/E27 -> 18.35260598 | F228: 18.46696913 | G228: 17.68339555 | H228: 15.99949428 | I228: 11.73722767 | J228: 13.22721834 | K228: 23.2454372
A229: Dækningsgrad, pct | B229: 60.8 | C229: 57.8 | D229: =D37*100/D27 -> 51.53079155 | E229: =E37*100/E27 -> 57.03745997 | F229: 57.04593599 | G229: 55.66404594 | H229: 54.67675437 | I229: 50.83035588 | J229: 52.58571645 | K229: 56.53864697
A230: Virksomhedens afkast til egenkapital, pct | B230: =(B209+B67)*100/B148 -> 5.276868756 | C230: =(C209+C67)*100/C148 -> 7.253973681 | D230: 0.7698658343 | E230: 10.37785251 | F230: 8.554206356 | G230: -5.038533513 | H230: -6.246160707 | I230: -5.968222772 | J230: -4.968557349 | K230: 0
A231: Soliditetsgrad, pct | B231: 24.6 | C231: 21.5 | D231: =D148*100/D108 -> 21.32128081 | E231: =E148*100/E108 -> 20.24475658 | F231: 20.81620599 | G231: 21.082678 | H231: 18.96216904 | I231: 20.70348721 | J231: 22.93507425 | K231: 25.15089449
A232: Rentedækningsgrad | B232: 6.3 | C232: 5.4
A234: Bilag 1: Produktionstekniske oplysninger, planteavl | K234: 0
A236: Gruppering | B236: Alle | C236: Alle | D236: Alle | E236: Alle | F236: Alle | G236: Alle | H236: Alle | I236: Alle | J236: Alle | K236: Alle
A237: År | B237: 2020 | C237: 2019 | D237: 2018 | E237: 2017 | F237: 2016 | G237: 2015 | H237: 2014 | I237: 2013 | J237: 2012 | K237: 2011
A239: Afgrødefordeling, ha
A240: Vårbyg, ha | B240: 25.4 | C240: 20.8 | D240: 21.3 | E240: 18.1 | F240: 19.2 | G240: 15.1 | H240: 16.8 | I240: 14.8 | J240: 15.7 | K240: 13.9
A241: Vinterbyg, ha | B241: 2.1 | C241: 2.4 | D241: 0.9 | E241: 2.3 | F241: 0.8 | G241: 0.9 | H241: 1.3 | I241: 0.7 | J241: 0.8 | K241: 0.9
A242: Vårhvede | B242: 3.3 | C242: 4 | D242: 3 | E242: 3.3 | F242: 3.5 | G242: 5.1 | H242: 3.7 | I242: 5.6 | J242: 6.5 | K242: 6
A243: Vinterhvede, ha | B243: 7.4 | C243: 6.5 | D243: 3.4 | E243: 6.6 | F243: 5.2 | G243: 4.1 | H243: 4.7 | I243: 2 | J243: 2.6 | K243: 6
A244: Triticale, ha | B244: 0.7 | C244: 1 | D244: 0.6 | E244: 1.4 | F244: 2.5 | G244: 4.1 | H244: 5.3 | I244: 3.3 | J244: 4.1 | K244: 4
A245: Rug, ha | B245: 16.9 | C245: 27.4 | D245: 14.4 | E245: 16.6 | F245: 11.7 | G245: 11 | H245: 10.4 | I245: 7 | J245: 3.8 | K245: 4.4
A246: Havre, ha | B246: 22.8 | C246: 12.6 | D246: 17.9 | E246: 15.9 | F246: 11.8 | G246: 8.8 | H246: 6.8 | I246: 12.4 | J246: 11.5 | K246: 10.2
A247: Kernemajs/majs til modenhed, ha | B247: 0.4 | C247: 0.3 | D247: 0 | E247: 0 | F247: 0 | G247: 0 | H247: 0.1 | I247: 0.1 | J247: 0 | K247: 0
A248: Blandsæd | B248: 2.1 | C248: 2.3 | D248: 1.9 | E248: 3.9 | F248: 3.6 | G248: 2.9 | H248: 4.6 | I248: 4.5 | J248: 5.2 | K248: 4.8
A249: Korn areal, ha | B249: 81.1 | C249: 77.3 | D249: 63.4 | E249: 68.3 | F249: 58.5 | G249: 52 | H249: 53.7 | I249: 50.4 | J249: 50.4 | K249: 50.3
A252: Græsfrø, ha | B252: 2.8 | C252: 0.8 | D252: 0.7 | E252: 0.7 | F252: 0.6 | G252: 1 | H252: 0.9 | I252: 0.7 | J252: 0.7 | K252: 0.7
... 513 more rows

Sheet 1.7 Deltid alle
A1: Udtrukket: 09-10-2020 08:51:21 af LFjubp
A2: Denne udskrift kan indeholde fortrolige data og skal derfor behandles med særlig omhu og i forhold til gældende regler omkring datasikkerhed. Distribution til tredje part er ikke tilladt uden samtykke fra SEGES. Sker dette alligevel, kan SEGES ikke holdes ansvarlig
A3: Udvælgelse: (([norm_t_ejendom] >= 0 AND [norm_t_ejendom] <= 1664)) AND Godkendt = Ja AND Tilladelse IN (ØDB statistik) AND Opstilling = Statistik
A4: Gruppering: Afkastningsgrad
A6: Gruppering | B6: Alle | C6: Alle | D6: Alle | E6: Alle | F6: Alle | G6: Alle | H6: Alle | I6: Alle | J6: Alle | K6: Alle
A7: År | B7: 2020 | C7: 2019 | D7: 2018 | E7: 2017 | F7: 2016 | G7: 2015 | H7: 2014 | I7: 2013 | J7: 2012 | K7: 2011
A8: Antal | B8: 815 | C8: 1109 | D8: 1290 | E8: 1530 | F8: 1482 | G8: 1759 | H8: 1762 | I8: 1673 | J8: 1668 | K8: 1847
A9: Antal vejet | B9: 9351 | C9: 16394.2 | D9: 16464.5 | E9: 17090.93 | F9: 18388.8 | G9: 18411.94 | H9: 18617.52 | I9: 18972.25 | J9: 19701.64 | K9: 19524.07
A10: Kredsnummer | B10: 311 | C10: 326 | D10: 330 | E10: 331 | F10: 328 | G10: 341 | H10: 338 | I10: 358 | J10: 344 | K10: 318
A11: Ejendomsnummer | B11: 3949 | C11: 3855 | D11: 3979 | E11: 3868 | F11: 3883 | G11: 3842 | H11: 3868 | I11: 3819 | J11: 3533 | K11: 3731
A12: Landbrugsareal, ha | B12: 62 | C12: 50 | D12: 50 | E12: 45 | F12: 48 | G12: 44 | H12: 39 | I12: 40 | J12: 41 | K12: 41
A13: Årskøer | B13: 1 | C13: 0 | D13: 0 | E13: 0 | F13: 0 | G13: 0 | H13: 0 | I13: 0 | J13: 0 | K13: 0
A14: Årssøer | B14: 0 | C14: 0 | D14: 0 | E14: 0 | F14: 0 | G14: 0 | H14: 0 | I14: 0 | J14: 1 | K14: 0
A15: Antal slagtesvin produceret | B15: 82 | C15: 51 | D15: 53 | E15: 43 | F15: 37 | G15: 38 | H15: 46 | I15: 60 | J15: 54 | K15: 82
A16: Antal minktæver | B16: 7 | C16: 7 | D16: 9 | E16: 10 | F16: 6 | G16: 4 | H16: 5 | I16: 6 | J16: 4 | K16: 8
A17: Dyreenheder | B17: 8 | C17: 6 | D17: 7 | E17: 6 | F17: 7 | G17: 6 | H17: 11 | I17: 14 | J17: 12 | K17: 12
A18: Beregnet antal normtimer | B18: 1157 | C18: 1003 | D18: 1013 | E18: 970 | F18: 1026 | G18: 961 | H18: 959 | I18: 1003 | J18: 981 | K18: 964
A20: Bruttoudbytte Planteavl inkl. IO | B20: 552870 | C20: 402978 | D20: 355900 | E20: 334961 | F20: 294359 | G20: 341826 | H20: 278665 | I20: 318733 | J20: 372227 | K20: 298972
A21: Bruttoudbytte Kvæg | B21: 95857 | C21: 67345 | D21: 81986 | E21: 73328 | F21: 80923 | G21: 70352 | H21: 58580 | I21: 66491 | J21: 70793 | K21: 76313
A22: Bruttoudbytte Svin | B22: 71238 | C22: 43602 | D22: 41813 | E22: 30970 | F22: 26198 | G22: 22585 | H22: 23936 | I22: 35364 | J22: 37738 | K22: 50858
A23: Bruttoudbytte andre husdyr | B23: 34349 | C23: 15518 | D23: 19227 | E23: 38786 | F23: 45252 | G23: 28225 | H23: 214901 | I23: 306591 | J23: 239616 | K23: 178236
A24: Skovindtægter | B24: 4349 | C24: 2944 | D24: 3022 | E24: 2571 | F24: 1602 | G24: 2713 | H24: 0
A25: Maskinstationsindtægter | B25: 29750 | C25: 23735 | D25: 23356 | E25: 33023 | F25: 38167 | G25: 37907 | H25: 27485 | I25: 21501 | J25: 21593 | K25: 37911
A26: Andre landbrugsindtægter | B26: 71783 | C26: 36505 | D26: 41226 | E26: 53346 | F26: 37479 | G26: 49857 | H26: 49055 | I26: 30797 | J26: 36824 | K26: 53610
A27: Bruttoudbytte ialt | B27: 860195 | C27: 592626 | D27: 566530 | E27: 566985 | F27: 523980 | G27: 553464 | H27: 652621 | I27: 779477 | J27: 778791 | K27: 695900
A29: Stykomkostninger Mark | B29: -184716 | C29: -148670 | D29: -135458 | E29: -133051 | F29: -147663 | G29: -129286 | H29: -102873 | I29: -114347 | J29: -111540 | K29: -103451
A30: Korn inkl. IO | B30: -27304 | C30: -20385 | D30: -24755 | E30: -15284 | F30: 1444 | G30: -20287 | H30: -22833 | I30: -300684 | J30: -261507 | K30: -186722
A31: Færdigblanding mv. | B31: -92159 | C31: -58727 | D31: -69122 | E31: -59199 | F31: -68945 | G31: -47379 | H31: -156878
A32: Eget grovfoder inkl. IO | B32: -16139 | C32: -6747 | D32: -5801 | E32: -10975 | F32: -8126 | G32: -7345 | H32: -8599
A33: Øvrige stykomkostninger husdyr | B33: -14635 | C33: -12345 | D33: -13742 | E33: -16353 | F33: -13998 | G33: -13758 | H33: -22999 | I33: -20647 | J33: -18063 | K33: -18980
A34: Skovomkostninger | B34: -1445 | C34: -1390 | D34: -1483 | E34: -962 | F34: -442 | G34: -878 | H34: 0
A35: Stykomkostninger i alt | B35: -336398 | C35: -248262 | D35: -250361 | E35: -235823 | F35: -237730 | G35: -218934 | H35: -314182 | I35: -435678 | J35: -391110 | K35: -309153
A37: Dækningsbidrag | B37: 523798 | C37: 344363 | D37: 316169 | E37: 331162 | F37: 286250 | G37: 334530 | H37: 338439 | I37: 343798 | J37: 387680 | K37: 386747
A39: Energi og brændstof | B39: -33931 | C39: -32044 | D39: -34869 | E39: -29481 | F39: -29517 | G39: -27492 | H39: -36862 | I39: -40232 | J39: -45495 | K39: -39882
A40: Maskinstation | B40: -71732 | C40: -51382 | D40: -53132 | E40: -47266 | F40: -47007 | G40: -43926 | H40: -43885 | I40: -42749 | J40: -44822 | K40: -39364
A41: Vedligeholdelse | B41: -85546 | C41: -64380 | D41: -65367 | E41: -58587 | F41: -63838 | G41: -58492 | H41: -59086 | I41: -59227 | J41: -57308 | K41: -58605
A42: Investeringer over driften | B42: -5749 | C42: -6368 | D42: -5119 | E42: -5538 | F42: -4851 | G42: -5787 | H42: -5537 | I42: -15695 | J42: -6403 | K42: -6192
A43: Lønomkostninger | B43: -16099 | C43: -10704 | D43: -7933 | E43: -12051 | F43: -9931 | G43: -11127 | H43: -22835 | I43: -18914 | J43: -9594 | K43: -17446
A44: Ejendomsskat og forsikringer | B44: -47480 | C44: -39481 | D44: -39191 | E44: -37050 | F44: -38550 | G44: -35815 | H44: -34571 | I44: -33579 | J44: -31601 | K44: -31470
A45: Diverse omkostninger | B45: -63737 | C45: -56300 | D45: -55331 | E45: -56444 | F45: -56212 | G45: -66159 | H45: -62108 | I45: -59211 | J45: -54216 | K45: -57034
A46: Kontante kapacitetsomkostninger | B46: -324275 | C46: -260659 | D46: -260943 | E46: -246416 | F46: -249906 | G46: -248797 | H46: -264885 | I46: -269607 | J46: -249438 | K46: -249993
A48: Afskrivninger | B48: -151920 | C48: -120112 | D48: -123736 | E48: -118776 | F48: -121132 | G48: -110308 | H48: -111388 | I48: -109678 | J48: -100507 | K48: -101113
A49: Nedskrivninger | B49: -5921 | C49: -6131 | D49: -5508 | E49: -3096 | F49: 1361 | G49: -2011 | H49: -8997 | I49: -1006 | J49: -22993 | K49: -1059
A50: Tab/gevinst | B50: 20177 | C50: 3807 | D50: 9359 | E50: 4487 | F50: 4197 | G50: 4912 | H50: 2611 | I50: -2165 | J50: 1636 | K50: 2779
A51: Kapacitetsomkostninger i alt | B51: -461940 | C51: -383095 | D51: -380828 | E51: -363800 | F51: -365479 | G51: -356205 | H51: -382659 | I51: -382457 | J51: -371302 | K51: -349387
A53: Resultat af primær drift | B53: 61858 | C53: -38731 | D53: -64659 | E53: -32638 | F53: -79230 | G53: -21675 | H53: -44220 | I53: -38658 | J53: 16378 | K53: 37360
A56: Afkoblet EU-støtte mv. | B56: 144711 | C56: 116093 | D56: 118383 | E56: 104397 | F56: 115149 | G56: 108584 | H56: 99984 | I56: 101377 | J56: 106848 | K56: 102771
A58: Forpagtningsindtægt | B58: 35618 | C58: 21548 | D58: 25176 | E58: 22433 | F58: 18472 | G58: 19200 | H58: 20926 | I58: 18143 | J58: 11819 | K58: 15270
A59: Forpagtningsafgift | B59: -47897 | C59: -38175 | D59: -38022 | E59: -35643 | F59: -33463 | G59: -29751 | H59: -30492 | I59: -27166 | J59: -25346 | K59: -25795
A60: Renteindt, landbrug og fin.tilskud | B60: 5997 | C60: 3882 | D60: 6772 | E60: 5087 | F60: 6331 | G60: 6501 | H60: 9723 | I60: 6636 | J60: 6068 | K60: 6926
A61: Realiseret gevinst/tab finansaktiver | B61: 3335 | C61: 3552 | D61: 1690 | E61: 1845 | F61: 16322 | G61: -9677 | H61: -1675 | I61: -34 | J61: -2742 | K61: -3246
A62: Renteudgifter, landbrug | B62: -91470 | C62: -83531 | D62: -77037 | E62: -80533 | F62: -84590 | G62: -88177 | H62: -98742 | I62: -88006 | J62: -104317 | K62: -104111
A63: Finansomkostninger ialt, landbrug | B63: -94417 | C63: -92723 | D63: -81421 | E63: -86811 | F63: -76928 | G63: -101904 | H63: -100260 | I63: -90426 | J63: -114518 | K63: -110955
A65: Driftsresultat | B65: 112153 | C65: -15361 | D65: -27696 | E65: -15052 | F65: -41008 | G65: -14995 | H65: -44495 | I65: -27695 | J65: 8710 | K65: 29176
A67: Ejerløn | B67: -343857 | C67: -358607 | D67: -363943 | E67: -366034 | F67: -137080 | G67: -127251 | H67: -121805 | I67: -127148 | J67: -128594 | K67: 0
A68: Korr. værdiændring stambes/foderbeh. | B68: 2932 | C68: 1408 | D68: -1000 | E68: -1458 | F68: 1322 | G68: 304 | H68: -4581
A69: Driftsresultat efter ejerløn mv. | B69: -228773 | C69: -372559 | D69: -392639 | E69: -382544 | F69: -176766 | G69: -141943 | H69: -170882
A71: Afskrivning immaterielle aktiver | B71: -1979 | C71: -1913 | D71: -1947 | E71: -1827 | F71: -1982 | G71: -192 | H71: -191 | I71: -103 | J71: -122 | K71: -261
A72: Nedskrivning immaterielle aktiver | B72: -67 | C72: -267 | D72: -396 | E72: -139 | F72: -1267 | G72: -1836 | H72: -5386 | I72: -3995 | J72: -1842 | K72: -4916
A73: Gevinst/tab immaterielle aktiver | B73: -7173 | C73: 4826 | D73: 12094 | E73: 4796 | F73: 10603 | G73: 9047 | H73: 33971 | I73: 31517 | J73: 307 | K73: 13339
A74: Anden virksomhed og engangsposter | B74: 58009 | C74: 55201 | D74: 46411 | E74: 56678 | F74: 47522 | G74: 49654 | H74: 43292 | I74: 47434 | J74: 39484 | K74: 36569
A75: Renteindtægter, privat | B75: 6374 | C75: 7201 | D75: 8594 | E75: 6910 | F75: 7018 | G75: 6175 | H75: 4218 | I75: 3558 | J75: 3513 | K75: 4333
A76: Renteudgifter, privat | B76: -12919 | C76: -12984 | D76: -12780 | E76: -13906 | F76: -13999 | G76: -21011 | H76: -23534 | I76: -20801 | J76: -24132 | K76: -23827
A77: Urealiseret regulering værdipapirer | B77: 33944 | C77: 60894 | D77: -36177 | E77: 18573 | F77: 9914 | G77: 22776 | H77: 25950 | I77: 25859 | J77: 14972 | K77: -23499
A78: Urealiseret regulering gæld | B78: 2223 | C78: -57 | D78: -1350 | E78: 223 | F78: -1409 | G78: 15309 | H78: 776 | I78: 7272 | J78: -6229 | K78: -9883
A79: Værdiændring inv. ejendomme og tilknyttede virks. | B79: 0 | C79: -9 | D79: 0 | F79: -300 | G79: 0 | H79: 0
A81: Resultat før personlig indtjening | B81: 190565 | C81: 97533 | D81: -13248 | E81: 55947 | F81: 15091 | G81: 64835 | H81: 34598 | I81: 62997 | J81: 34648 | K81: 21034
A83: Private indtægter/omkostninger | B83: 438755 | C83: 481344 | D83: 458504 | E83: 454376 | F83: 422200 | G83: 449885 | H83: 436328 | I83: 430105 | J83: 420209 | K83: 410223
A85: Årets resultat før skat | B85: 629320 | C85: 578877 | D85: 445256 | E85: 510322 | F85: 437292 | G85: 514720 | H85: 470926 | I85: 493102 | J85: 454857 | K85: 431257
A87: Skat af årets resultat | B87: -221032 | C87: -199996 | D87: -169882 | E87: -179687 | F87: -140383 | G87: -148963 | H87: -155012 | I87: -147595 | J87: -148951 | K87: -150783
A89: BALANCE
A91: Fast ejendom | B91: 10255968 | C91: 8115703 | D91: 8187242 | E91: 7433361 | F91: 7883513 | G91: 7598335 | H91: 0 | I91: 6968383 | J91: 6784841 | K91: 7059366
A92: Stamplanter | B92: 231 | C92: 243 | D92: 96 | E92: 62 | F92: 92 | G92: 0 | H92: 0
A93: Betalingsrettigheder EU | B93: 6430 | C93: 6880 | D93: 8439 | E93: 8078 | F93: 10961 | G93: 19933 | H93: 18977 | I93: 21911 | J93: 20589 | K93: 22513
A94: Mælkekvoter og andre leveringsrettigheder | B94: 919 | C94: 733 | D94: 497 | E94: 3101 | F94: 2028 | G94: 3882 | H94: 2872 | I94: 11326 | J94: 4948 | K94: 6972
A95: Inventar og maskiner | B95: 528371 | C95: 405461 | D95: 385921 | E95: 385602 | F95: 399624 | G95: 379422 | H95: 366878 | I95: 366727 | J95: 343488 | K95: 372190
A96: Besætning | B96: 128648 | C96: 110083 | D96: 121978 | E96: 126524 | F96: 117824 | G96: 105131 | H96: 122205 | I96: 124645 | J96: 124645 | K96: 136320
A97: Beholdning | B97: 277283 | C97: 203200 | D97: 182139 | E97: 169339 | F97: 180540 | G97: 189570 | H97: 148989 | I97: 167417 | J97: 168566 | K97: 163022
A98: Tilgodehavende | B98: 472715 | C98: 374529 | D98: 384966 | E98: 328206 | F98: 353253 | G98: 318778 | H98: 285577 | I98: 301126 | J98: 287004 | K98: 259293
A99: Andelskapital og financielle kontrakter | B99: 272042 | C99: 203337 | D99: 200549 | E99: 168714 | F99: 182935 | G99: 172677 | H99: 150289 | I99: 147794 | J99: 136595 | K99: 139345
A100: Landbrugsaktiver i alt | B100: 11942606 | C100: 9420169 | D100: 9471826 | E100: 8622987 | F100: 9130771 | G100: 8787726 | H100: 8144244 | I100: 8109329 | J100: 7870676 | K100: 8159021
A102: Fast ejendom udenfor landbrug | B102: 1316961 | C102: 1210665 | D102: 1231099 | E102: 1216413 | F102: 1266140 | G102: 1287323 | H102: 0 | I102: 209239 | J102: 210324 | K102: 217133
A103: Private aktiver | B103: 376364 | C103: 301364 | D103: 294120 | E103: 304591 | F103: 308481 | G103: 140313 | H103: 131601 | I103: 1082026 | J103: 1095818 | K103: 1077098
A104: Øvrige aktiver udenfor landbrug | B104: 112298 | C104: 87735 | D104: 106406 | E104: 102369 | F104: 95035 | G104: 117367 | H104: 122776 | I104: 106790 | J104: 98755 | K104: 128499
A105: Værdipapirer og indlån | B105: 786386 | C105: 780431 | D105: 723516 | E105: 699441 | F105: 635566 | G105: 654610 | H105: 532628 | I105: 450880 | J105: 439013 | K105: 472506
A106: Hensættelser (positive) | B106: 2388 | C106: 3226 | D106: 4259 | E106: 4498 | F106: 3158 | G106: 3243 | H106: 4201
A108: Aktiver i alt | B108: 14537003 | C108: 11803590 | D108: 11831225 | E108: 10950299 | F108: 11439151 | G108: 10990582 | H108: 10208296 | I108: 9958264 | J108: 9714586 | K108: 10054257
A110: Ansvarlig lånekapital | B110: 0 | C110: 0 | D110: 0
A111: Realkreditinstitutter | B111: -5111279 | C111: -3635345 | D111: -3568096 | E111: -3236812 | F111: -3402174 | G111: -3146930 | H111: -3105966 | I111: -2897120 | J111: -2869649 | K111: -2845432
A112: Pengeinstitutter | B112: -282553 | C112: -263066 | D112: -235846 | E112: -251806 | F112: -260177 | G112: -248455 | H112: -300003 | I112: -225996 | J112: -224313 | K112: -239394
A113: Pante- og gældsbreve | B113: -61344 | C113: -36125 | D113: -38199 | E113: -36082 | F113: -37118 | G113: -32729 | H113: -25574
A114: Anden langfristet gæld | B114: -31853 | C114: -26551 | D114: -24231 | E114: -25338 | F114: -28378 | G114: -635 | H114: -3093
A115: Anden gæld | B115: -478558 | C115: -284843 | D115: -303046 | E115: -291387 | F115: -287958 | G115: -282967 | H115: -309101 | I115: -285605 | J115: -297385 | K115: -296859
A116: Kassekredit | B116: -170199 | C116: -157028 | D116: -158583 | E116: -171289 | F116: -171988 | G116: -158913 | H116: -185466 | I116: -188419 | J116: -200022 | K116: -174588
A117: Gæld i alt | B117: -6135786 | C117: -4402958 | D117: -4328001 | E117: -4012715 | F117: -4187794 | G117: -3870629 | H117: -3929202 | I117: -3597140 | J117: -3591370 | K117: -3556274
A119: Hensættelser (negative) | B119: -2098720 | C119: -1758546 | D119: -1780817 | E119: -1690108 | F119: -1819365 | G119: -1668084 | H119: -1461667 | I119: -1483827 | J119: -1368283 | K119: -1451423
A121: Egenkapital | B121: 6302498 | C121: 5642086 | D121: 5722408 | E121: 5247476 | F121: 5431992 | G121: 5451869 | H121: 4817427 | I121: 4877298 | J121: 4754933 | K121: 5046560
A123: EGENKAPITALFORKLARING
A125: Resultat efter finansiering | B125: 163617 | C125: 34058 | D125: 14529 | E125: 34631 | F125: -467 | G125: 19732 | H125: -20521 | I125: 2447 | J125: 27561 | K125: 46254
A126: Private indtægter | B126: 438755 | C126: 481344 | D126: 458504 | E126: 454376 | F126: 422200 | G126: 449885 | H126: 436328 | I126: 430105 | J126: 420209 | K126: 410223
A127: Resultat før regulering og skat | B127: 602372 | C127: 515401 | D127: 473033 | E127: 489006 | F127: 421734 | G127: 469616 | H127: 415807 | I127: 432552 | J127: 447770 | K127: 456477
A129: Privat | B129: -229648 | C129: -257942 | D129: -235458 | E129: -251180 | F129: -244271 | G129: -246535 | H129: -244226 | I129: -256602 | J129: -249559 | K129: -254669
A130: Formueindtægter/-udgifter | B130: -9447 | C130: -9673 | D130: -8373 | E130: -7531 | F130: -17176 | G130: -29180 | H130: -27648 | I130: -27620 | J130: -27237 | K130: -28346
A131: Privat udtræk | B131: -239096 | C131: -267615 | D131: -243831 | E131: -258711 | F131: -261447 | G131: -275716 | H131: -271873 | I131: -274624 | J131: -272997 | K131: -268988
A133: Ud- og indbetaling interessenter | B133: 108295 | C133: 975 | D133: -1923 | F133: 294 | G133: -2083 | H133: -648 | I133: -2363 | J133: -1339 | K133: -2640
A134: Betalt skat | B134: -209655 | C134: -192447 | D134: -180496 | E134: -179594 | F134: -155682 | G134: -164750 | H134: -154568 | I134: -153106 | J134: -138425 | K134: -146286
A135: Ændring i udskudt skat | B135: -11378 | C135: -7549 | D135: 10614 | E135: -93 | F135: 15299 | G135: 15787 | H135: -444 | I135: 5511 | J135: -10526 | K135: -4497
A136: Skat af årets resultat | B136: -221032 | C136: -199996 | D136: -169882 | E136: -179687 | F136: -140383 | G136: -148963 | H136: -155012 | I136: -147595 | J136: -148951 | K136: -150783
A138: Ændring af egenkapital fra drift, privat og skat | B138: 250539 | C138: 48765 | D138: 57396 | E138: 50110 | F138: 20198 | G138: 42855 | H138: -11726 | I138: 7970 | J138: 24232 | K138: 36706
A139: Regulering ialt fra resultat | B139: 26948 | C139: 63485 | D139: -27777 | E139: 21626 | F139: 15858 | G139: 45104 | H139: 55119 | I139: 60550 | J139: 7085 | K139: -25220
A140: Værdireguleringer | B140: 48057 | C140: 14577 | D140: 30940 | E140: 33690 | F140: -58735 | G140: 22722 | H140: 53864 | I140: 8324 | J140: 25477 | K140: -202020
A141: Pensionsindbetaling | B141: -26163 | C141: -20262 | D141: -18571 | E141: -19473 | F141: -19205 | G141: -22697 | H141: -15007 | I141: -27046 | J141: -17217 | K141: -20899
A142: Øvrige egenkapitalbevægelser | B142: 0 | C142: 0 | D142: 0 | E142: 0 | F142: 0 | G142: 0 | H142: 0 | I142: 0 | J142: 0 | K142: 0
A144: Ændring af egenkapital | B144: 299381 | C144: 106556 | D144: 41989 | E144: 85643 | F144: -42184 | G144: 87983 | H144: 82250 | I144: 52448 | J144: 39479 | K144: -210847
A146: Egenkapital primo | B146: 6003115 | C146: 5536291 | D146: 5679956 | E146: 5163119 | F146: 5472157 | G146: 5365017 | H146: 4734522 | I146: 4825884 | J146: 4715730 | K146: 5257550
A148: Egenkapital ultimo | B148: 6302498 | C148: 5642086 | D148: 5722408 | E148: 5247476 | F148: 5431992 | G148: 5451869 | H148: 4817427 | I148: 4878332 | J148: 4755209 | K148: 5046703
A150: PENGEBINDING
A152: Årets resultat før skat | B152: 629320 | C152: 578877 | D152: 445256 | E152: 510322 | F152: 437292 | G152: 514720 | H152: 470926 | I152: 493102 | J152: 454857 | K152: 431257
A154: Værdiændring besætning/beholdning | B154: 4339 | C154: 12929 | D154: -16379 | E154: -3941 | F154: 6392 | G154: -1518 | H154: 0
A155: Afskrivninger m.v., landbrug | B155: 146883 | C155: 119789 | D155: 110134 | E155: 114554 | F155: 108220 | G155: 100388 | H155: 89381 | I155: 85431 | J155: 123521 | K155: 91232
A156: Afskrivninger andre erhverv | B156: 3045 | C156: 6794 | D156: 10592 | E156: 8279 | F156: 7455 | G156: 7305 | H156: 5810 | I156: 4583 | J156: 5976 | K156: 5703
A157: Regulering I/S | B157: -6678 | C157: -8811 | D157: -2199 | E157: -3714 | F157: -2121 | G157: 0 | H157: 0 | I157: 9965 | J157: 451 | K157: 159
A158: Gevinst/tab finansaktiver | B158: -1203 | C158: -626 | D158: -995 | E158: -327 | F158: -1133 | G158: 1485 | H158: -708 | I158: -941 | J158: -551 | K158: -317
A159: Urealiseret regulering finansaktiver | B159: -33944 | C159: -60894 | D159: 36177 | E159: -18573 | F159: -9914 | G159: -22776 | H159: -25950 | I159: -25859 | J159: -14972 | K159: 23499
A160: Gevinst/tab gæld | B160: 2186 | C160: 6906 | D160: 4130 | E160: 3208 | F160: 1220 | G160: 7313 | H160: 3882 | I160: 6286 | J160: 4727 | K160: 2663
A161: Urealiseret regulering gæld | B161: -2223 | C161: 57 | D161: 1350 | E161: 223 | F161: 1409 | G161: -15309 | H161: -776 | I161: -7272 | J161: -6229 | K161: -9883
A162: Øvrige tilbageførsler | B162: 2603 | C162: -192 | D162: -181 | E162: 294 | F162: 136 | G162: 285 | H162: 157
A163: Tilbageførsel i alt | B163: 115008 | C163: 75951 | D163: 142630 | E163: 99556 | F163: 111663 | G163: 78692 | H163: 71796 | I163: 72191 | J163: 125381 | K163: 132823
A165: Betalt skat | B165: -209458 | C165: -192447 | D165: -180496 | E165: -179594 | F165: -155604 | G165: -164727 | H165: -153236 | I165: -153106 | J165: -138425 | K165: -146286
A166: Privat | B166: -229648 | C166: -258704 | D166: -235458 | E166: -251180 | F166: -244271 | G166: -246535 | H166: -244226 | I166: -256602 | J166: -249559 | K166: -254669
A167: Afskrivninger privat tlbf. | B167: 29781 | C167: 20183 | D167: 20853 | E167: 20825 | F167: 18768 | G167: 19346 | H167: 18981 | I167: 19888 | J167: 16862 | K167: 17700
A168: Formueindtægter/-udgifter | B168: -9447 | C168: -9673 | D168: -8373 | E168: -7531 | F168: -17176 | G168: -29180 | H168: -27648 | I168: -27620 | J168: -27237 | K168: -28346
A169: Pensionsindbetaling | B169: -26433 | C169: -20704 | D169: -18129 | E169: -19473 | F169: -17656 | G169: -23153 | H169: -16080 | I169: -27046 | J169: -17217 | K169: -20899
A170: Privat udtræk, skat og pension i alt | B170: -445205 | C170: -461346 | D170: -421603 | E170: -437087 | F170: -415940 | G170: -444250 | H170: -422208 | I170: -439323 | J170: -415447 | K170: -421027
A172: Indskud/udlodning mv interessentskaber/selskaber | B172: 103611 | C172: 4906 | D172: -290 | E172: 2957 | F172: 1032 | G172: -2074 | H172: -1941 | I172: -2363 | J172: -1339 | K172: -2640
A174: Til invest og afdrag | B174: 402734 | C174: 198388 | D174: 165992 | E174: 175749 | F174: 134048 | G174: 147160 | H174: 122723
A176: Besætning (realforskydning) | B176: 19366 | C176: 14883 | D176: 11953 | E176: 2417 | F176: 2879 | G176: 1719 | H176: 22431 | I176: 11840 | J176: -418 | K176: -7205
A177: Beholdninger (realforskydninger) | B177: 11826 | C177: -31033 | D177: 38240 | E177: -4583 | F177: 32133 | G177: -14899 | H177: 19618 | I177: 12434 | J177: -12723 | K177: 1052
A178: Flerårige afgrøder | B178: 0 | C178: 0 | D178: 0 | E178: 0 | F178: 5 | G178: 0 | H178: 0 | I178: -2 | J178: 0 | K178: 0
A180: Likviditet før anlægsinvesteringer | B180: 433927 | C180: 182238 | D180: 216185 | E180: 173582 | F180: 169064 | G180: 133981 | H180: 164773 | I180: 149375 | J180: 151650 | K180: 136901
A182: Investeringer
A183: Jord | B183: 184884 | C183: -26223 | D183: -19440 | E183: -13418 | F183: -2321 | G183: -15515 | H183: 30583 | I183: -5827 | J183: -6359 | K183: -8959
A184: Immaterielle aktiver | B184: -118 | C184: -488 | D184: -395 | E184: -63 | F184: -401 | G184: 154 | H184: 1870 | I184: -4484 | J184: 1425 | K184: 3567
A185: Grundforbedring | B185: -3461 | C185: -736 | D185: -1540 | E185: -1019 | F185: -1307 | G185: -2000 | H185: -3517 | I185: -1230 | J185: -654 | K185: -1015
A186: Stamplanter | B186: 0 | C186: -61 | D186: 0 | E186: 62 | F186: -69 | G186: 0 | H186: 0
A187: Driftsbygninger | B187: 18991 | C187: -7836 | D187: -19036 | E187: -17346 | F187: -21298 | G187: -18007 | H187: -65887 | I187: -19604 | J187: -37535 | K187: -24820
A188: Inventar markbrug | B188: -49481 | C188: -38865 | D188: -31039 | E188: -37031 | F188: -30844 | G188: -38305 | H188: -23308 | I188: -47255 | J188: -35292 | K188: -34018
A189: Inventar husdyrbrug | B189: 7291 | C189: -915 | D189: -2646 | E189: -4916 | F189: -3968 | G189: -1657 | H189: -15936 | I189: -4153 | J189: -6524 | K189: -7193
A190: Inventar andet | B190: -912 | C190: -727 | D190: 129 | E190: -1164 | F190: -83 | G190: -1987 | H190: -823 | I190: 924 | J190: -607 | K190: -1387
A191: Beboelse, landbrug | B191: -9876 | C191: -11445 | D191: -18876 | E191: -21704 | F191: -19906 | G191: -27817 | H191: -10957 | I191: -36374 | J191: -19950 | K191: -36954
A192: Private aktiver | B192: -38512 | C192: -38839 | D192: -32777 | E192: 304591 | F192: -29491 | G192: -23241 | H192: -22293 | I192: -28424 | J192: -25512 | K192: -19425
A193: Aktiver udenfor landbrug | B193: 4251 | C193: 16419 | D193: 3548 | E193: -9565 | F193: -19680 | G193: -11461 | H193: -20463 | I193: -20655 | J193: -10819 | K193: -23646
A194: Investeringer ialt | B194: 113058 | C194: -109716 | D194: -122073 | E194: -137304 | F194: -129370 | G194: -139836 | H194: -130731 | I194: -167081 | J194: -141826 | K194: -153850
A196: Likviditetsoverskud/-behov | B196: 546985 | C196: 72522 | D196: 94112 | E196: 36278 | F196: 39695 | G196: -5855 | H196: 34042 | I196: -17706 | J196: 9824 | K196: -16949
A198: Ændring finansaktiver og gæld
A199: Tilgodehav. og værdipapirer | B199: -34187 | C199: -14092 | D199: -47903 | E199: -6907 | F199: -975 | G199: 39488 | H199: -20034 | I199: -24172 | J199: -39191 | K199: -10253
A200: Realkreditinstitutter | B200: -252112 | C200: -19284 | D200: -23486 | E200: -3236812 | F200: -4559 | G200: 14864 | H200: -25852 | I200: -2897120 | J200: -2869649 | K200: -2845432
A201: Pengeinstitutter lån, netto | B201: -226440 | C201: -13640 | D201: 57 | E201: -3742 | F201: -20896 | G201: -22753 | H201: 33131 | I201: 32475 | J201: -3223 | K201: -6617
A202: Anden gæld | B202: 17581 | C202: -3035 | D202: -18851 | E202: -291387 | F202: -21210 | G202: -17354 | H202: 21451 | I202: -285605 | J202: -297385 | K202: -296859
A203: Kassekredit, ændring | B203: -43559 | C203: -20535 | D203: -6314 | E203: -6836 | F203: 5565 | G203: -7307 | H203: -33491 | I203: 14865 | J203: 6374 | K203: 1737
A204: Ændring hensættelser | B204: 19 | C204: 21 | D204: 20 | E204: -12 | F204: -1 | G204: 11 | H204: -3 | I204: 6 | J204: 20 | K204: 3
A206: Likviditetsanvendelse/fremskaffelse | B206: -538698 | C206: -70565 | D206: -96476 | E206: -36536 | F206: -42076 | G206: 3491 | H206: -30391 | I206: 24987 | J206: -9810 | K206: 17101
A208: Konsolideringsanalyse
A209: Resultat efter finansiering | B209: 163618 | C209: 34059 | D209: 14530 | E209: 34631 | F209: -466 | G209: 0 | H209: 0
A210: Private indtægter/omkostninger | B210: 438755 | C210: 481344 | D210: 458504 | E210: 454376 | F210: 422200 | G210: 0 | H210: 0
A211: tilbf. værdiændr. stambesætning mm | B211: 3219 | C211: 1167 | D211: -1659 | E211: -2091 | F211: 1079 | G211: 0 | H211: 0
A212: Beregnet skat | B212: -196194 | C212: -170321 | D212: -150031 | E212: -153599 | F212: -131618 | G212: 0 | H212: 0
A213: Privat udtræk | B213: -239096 | C213: -268377 | D213: -243831 | E213: -258711 | F213: -261447 | G213: 0 | H213: 0
A214: Pensionsindbetaling | B214: -26433 | C214: -20704 | D214: -18129 | E214: -19473 | F214: -17656 | G214: 0 | H214: 0
A215: Konsolidering | B215: 143869 | C215: 57167 | D215: 59383 | E215: 54995 | F215: 12086 | G215: 2731 | H215: 0
A217: Nøgletal - konsolidering | E217: 0
A218: Ændring i resultat - nulkonsolidering | B218: -239160 | C218: -107041 | D218: -108367 | E218: -93385 | F218: -25213 | G218: 0 | H218: 0
A219: nulpunktsrente pct
A220: nulpunktsmælkepris kr/kg EKM
A221: Nulpunktspris fravænnede grise
A222: Nulpunktspris smågrise
A223: Nulpunktspris slagtesvin kg
A224: Nulpunktspris minkskind
A226: Øknomiske nøgletal
A227: Virksomhedens afkast, pct. | B227: -1.9 | C227: -5.4 | D227: =(D53+D74+D56+D67+D58+D59)*100/(D108-D103-D105) -> -2.558392038 | E227: =(E53+E74+E56+E67+E58+E59)*100/(E108-E103-E105) -> -2.521619418 | F227: -0.653923963 | G227: -0.01215223067 | H227: -0.3385873129 | I227: -0.3088058691 | J227: 0.2517068054 | K227: 1.953930396
A228: Virksomhedens overskudsmargin, pct | B228: -43.9 | C228: -103.9 | D228: =(D53+D74+D56+D67+D58+D59)*100/D27 -> -48.83307151 | E228: =(E53+E74+E56+E67+E58+E59)*100/E27 -> -44.23520904 | F228: -13.09782816 | G228: -0.2238627987 | H228: -4.951572199 | I228: -3.337879116 | J228: 2.64371314 | K228: 23.8791493
A229: Dækningsgrad, pct | B229: 60.3 | C229: 54.4 | D229: =D37*100/D27 -> 55.80798899 | E229: =E37*100/E27 -> 58.40754165 | F229: 54.62994771 | G229: 60.44295564 | H229: 51.85842932 | I229: 44.10624047 | J229: 49.77972267 | K229: 55.57508263
A230: Virksomhedens afkast til egenkapital, pct | B230: =(B209+B67)*100/B148 -> -2.859802574 | C230: =(C209+C67)*100/C148 -> -5.752269639 | D230: -6.106048363 | E230: -6.315474335 | F230: -2.532146586 | G230: -2.334080294 | H230: -2.528424406 | I230: -2.606382673 | J230: -2.70427651 | K230: 0
A231: Soliditetsgrad, pct | B231: 43.9 | C231: 46.3 | D231: =D148*100/D108 -> 48.36699496 | E231: =E148*100/E108 -> 47.92084673 | F231: 47.48597164 | G231: 49.60491628 | H231: 47.19129422 | I231: 48.98777538 | J231: 48.94916778 | K231: 50.19468868
A232: Rentedækningsgrad
A234: Bilag 1: Produktionstekniske oplysninger, planteavl | K234: 0
A236: Gruppering | B236: Alle | C236: Alle | D236: Alle | E236: Alle | F236: Alle | G236: Alle | H236: Alle | I236: Alle | J236: Alle | K236: Alle
A237: År | B237: 2020 | C237: 2019 | D237: 2018 | E237: 2017 | F237: 2016 | G237: 2015 | H237: 2014 | I237: 2013 | J237: 2012 | K237: 2011
A239: Afgrødefordeling, ha
A240: Vårbyg, ha | B240: 18.7 | C240: 14.2 | D240: 17.9 | E240: 13.5 | F240: 15.1 | G240: 12.3 | H240: 10.4 | I240: 13.2 | J240: 13.5 | K240: 11.2
A241: Vinterbyg, ha | B241: 2.7 | C241: 2.3 | D241: 1.8 | E241: 2.3 | F241: 2.3 | G241: 2.2 | H241: 1.9 | I241: 1.6 | J241: 1.8 | K241: 2
A242: Vårhvede | B242: 0.4 | C242: 0.3 | D242: 0.5 | E242: 0.4 | F242: 0.4 | G242: 0.4 | H242: 0.3 | I242: 0.6 | J242: 0.4 | K242: 0.4
A243: Vinterhvede, ha | B243: 14.6 | C243: 13.2 | D243: 9.9 | E243: 11.1 | F243: 12 | G243: 11.5 | H243: 10.1 | I243: 8.5 | J243: 9.4 | K243: 11.6
A244: Triticale, ha | B244: 0.1 | C244: 0.1 | D244: 0.1 | E244: 0.1 | F244: 0.2 | G244: 0.2 | H244: 0.2 | I244: 0.2 | J244: 0.3 | K244: 0.5
A245: Rug, ha | B245: 2.5 | C245: 2.6 | D245: 1.5 | E245: 1.6 | F245: 1.6 | G245: 1.9 | H245: 1.4 | I245: 1.2 | J245: 0.9 | K245: 0.7
A246: Havre, ha | B246: 2.1 | C246: 1.2 | D246: 1.9 | E246: 1.2 | F246: 1.1 | G246: 0.6 | H246: 0.7 | I246: 1 | J246: 1.2 | K246: 0.8
A247: Kernemajs/majs til modenhed, ha | B247: 0.1 | C247: 0 | D247: 0.1 | E247: 0 | F247: 0.1 | G247: 0 | H247: 0.1 | I247: 0.1 | J247: 0.1 | K247: 0.1
A248: Blandsæd | B248: 0.1 | C248: 0.1 | D248: 0.1 | E248: 0.1 | F248: 0.1 | G248: 0.1 | H248: 0.1 | I248: 0.1 | J248: 0.3 | K248: 0.2
A249: Korn areal, ha | B249: 41.3 | C249: 34 | D249: 33.7 | E249: 30.3 | F249: 33 | G249: 29.2 | H249: 25.2 | I249: 26.6 | J249: 27.9 | K249: 27.4
A252: Græsfrø, ha | B252: 0.2 | C252: 0.2 | D252: 0.2 | E252: 0.1 | F252: 0.2 | G252: 0.2 | H252: 0.2 | I252: 0.2 | J252: 0.2 | K252: 0.4
... 513 more rows

Sheet 1.8 Deltid konv
A1: Udtrukket: 09-10-2020 08:52:59 af LFjubp
A2: Denne udskrift kan indeholde fortrolige data og skal derfor behandles med særlig omhu og i forhold til gældende regler omkring datasikkerhed. Distribution til tredje part er ikke tilladt uden samtykke fra SEGES. Sker dette alligevel, kan SEGES ikke holdes ansvarlig
A3: Udvælgelse: (([norm_t_ejendom] >= 0 AND [norm_t_ejendom] <= 1664)) AND (([006410] IN (0,1,3))) AND Godkendt = Ja AND Tilladelse IN (ØDB statistik) AND Opstilling = Statistik
A4: Gruppering: Afkastningsgrad
A6: Gruppering | B6: Alle | C6: Alle | D6: Alle | E6: Alle | F6: Alle | G6: Alle | H6: Alle | I6: Alle | J6: Alle | K6: Alle
A7: År | B7: 2020 | C7: 2019 | D7: 2018 | E7: 2017 | F7: 2016 | G7: 2015 | H7: 2014 | I7: 2013 | J7: 2012 | K7: 2011
A8: Antal | B8: 759 | C8: 1029 | D8: 1232 | E8: 1451 | F8: 1414 | G8: 1673 | H8: 1665 | I8: 1581 | J8: 1578 | K8: 1724
A9: Antal vejet | B9: 8736 | C9: 15305.2 | D9: 15443.53 | E9: 16271.93 | F9: 17529.8 | G9: 17637.94 | H9: 17781.52 | I9: 18119.31 | J9: 18795.64 | K9: 18635.07
A10: Kredsnummer | J10: 344 | K10: 315
A11: Ejendomsnummer | J11: 3519 | K11: 3716
A12: Landbrugsareal, ha | B12: 63 | C12: 50 | D12: 51 | E12: 45 | F12: 48 | G12: 44 | H12: 39 | I12: 40 | J12: 41 | K12: 41
A13: Årskøer | B13: 0 | C13: 0 | D13: 0 | E13: 0 | F13: 0 | G13: 0 | H13: 0 | I13: 0 | J13: 0 | K13: 0
A14: Årssøer | B14: 0 | C14: 0 | D14: 0 | E14: 0 | F14: 0 | G14: 0 | H14: 0 | I14: 0 | J14: 1 | K14: 0
A15: Antal slagtesvin produceret | B15: 65 | C15: 38 | D15: 43 | E15: 40 | F15: 35 | G15: 34 | H15: 45 | I15: 61 | J15: 56 | K15: 84
A16: Antal minktæver | B16: 8 | C16: 7 | D16: 10 | E16: 10 | F16: 6 | G16: 4 | H16: 5 | I16: 6 | J16: 4 | K16: 9
A17: Dyreenheder | B17: 7 | C17: 5 | D17: 6 | E17: 6 | F17: 7 | G17: 5 | H17: 11 | I17: 15 | J17: 12 | K17: 11
A18: Beregnet antal normtimer | B18: 1156 | C18: 1002 | D18: 1013 | E18: 973 | F18: 1032 | G18: 963 | H18: 959 | I18: 1005 | J18: 983 | K18: 966
A20: Bruttoudbytte Planteavl inkl. IO | B20: 560649 | C20: 407542 | D20: 361981 | E20: 338680 | F20: 300190 | G20: 347561 | H20: 279408 | I20: 320041 | J20: 378547 | K20: 303000
A21: Bruttoudbytte Kvæg | B21: 88612 | C21: 67741 | D21: 82795 | E21: 74034 | F21: 81402 | G21: 70388 | H21: 59193 | I21: 67405 | J21: 70669 | K21: 75426
A22: Bruttoudbytte Svin | B22: 46184 | C22: 27139 | D22: 24404 | E22: 22082 | F22: 22023 | G22: 19148 | H22: 23610 | I22: 36222 | J22: 39467 | K22: 52063
A23: Bruttoudbytte andre husdyr | B23: 31430 | C23: 14609 | D23: 18139 | E23: 30076 | F23: 37606 | G23: 21816 | H23: 205872 | I23: 302437 | J23: 233283 | K23: 172108
A24: Skovindtægter | B24: 4345 | C24: 2964 | D24: 3148 | E24: 2639 | F24: 1566 | G24: 2677 | H24: 0
A25: Maskinstationsindtægter | B25: 30257 | C25: 24519 | D25: 24348 | E25: 33465 | F25: 38995 | G25: 38254 | H25: 27730 | I25: 21789 | J25: 22040 | K25: 38800
A26: Andre landbrugsindtægter | B26: 68679 | C26: 32328 | D26: 38116 | E26: 51983 | F26: 34657 | G26: 48830 | H26: 48328 | I26: 30014 | J26: 35704 | K26: 52433
A27: Bruttoudbytte ialt | B27: 830156 | C27: 576842 | D27: 552931 | E27: 552958 | F27: 516438 | G27: 548674 | H27: 644141 | I27: 777907 | J27: 779710 | K27: 693829
A29: Stykomkostninger Mark | B29: -191228 | C29: -153844 | D29: -140096 | E29: -137188 | F29: -153017 | G29: -132844 | H29: -105111 | I29: -116198 | J29: -114057 | K29: -106517
A30: Korn inkl. IO | B30: -26360 | C30: -19234 | D30: -24021 | E30: -15148 | F30: 1698 | G30: -20337 | H30: -22177 | I30: -300404 | J30: -261307 | K30: -183916
A31: Færdigblanding mv. | B31: -74639 | C31: -47326 | D31: -58803 | E31: -50579 | F31: -63633 | G31: -42657 | H31: -152977
A32: Eget grovfoder inkl. IO | B32: -7862 | C32: -4794 | D32: -2165 | E32: -10522 | F32: -7828 | G32: -7089 | H32: -8374
A33: Øvrige stykomkostninger husdyr | B33: -12669 | C33: -12089 | D33: -13009 | E33: -15946 | F33: -13491 | G33: -13703 | H33: -23037 | I33: -20622 | J33: -17870 | K33: -18735
A34: Skovomkostninger | B34: -1498 | C34: -1358 | D34: -1552 | E34: -953 | F34: -446 | G34: -813 | H34: 0
A35: Stykomkostninger i alt | B35: -314255 | C35: -238645 | D35: -239646 | E35: -230336 | F35: -236717 | G35: -217443 | H35: -311677 | I35: -437224 | J35: -393234 | K35: -309168
A37: Dækningsbidrag | B37: 515900 | C37: 338197 | D37: 313285 | E37: 322622 | F37: 279721 | G37: 331231 | H37: 332464 | I37: 340683 | J37: 386476 | K37: 384661
A39: Energi og brændstof | B39: -33606 | C39: -32277 | D39: -34806 | E39: -29536 | F39: -29868 | G39: -27664 | H39: -36667 | I39: -40323 | J39: -45958 | K39: -40109
A40: Maskinstation | B40: -69871 | C40: -49211 | D40: -51852 | E40: -46404 | F40: -46310 | G40: -43505 | H40: -43226 | I40: -41990 | J40: -44359 | K40: -38560
A41: Vedligeholdelse | B41: -84156 | C41: -64567 | D41: -65489 | E41: -58600 | F41: -64051 | G41: -58618 | H41: -58993 | I41: -59210 | J41: -57673 | K41: -58894
A42: Investeringer over driften | B42: -5838 | C42: -6199 | D42: -4876 | E42: -5382 | F42: -4831 | G42: -5654 | H42: -5541 | I42: -16125 | J42: -6417 | K42: -6165
A43: Lønomkostninger | B43: -14040 | C43: -9867 | D43: -7213 | E43: -11462 | F43: -9901 | G43: -10940 | H43: -22362 | I43: -18522 | J43: -9258 | K43: -17675
A44: Ejendomsskat og forsikringer | B44: -47356 | C44: -40030 | D44: -39816 | E44: -37486 | F44: -39036 | G44: -36110 | H44: -34749 | I44: -33797 | J44: -31734 | K44: -31629
A45: Diverse omkostninger | B45: -62501 | C45: -56293 | D45: -55263 | E45: -56319 | F45: -56142 | G45: -66362 | H45: -61049 | I45: -59107 | J45: -54167 | K45: -56762
A46: Kontante kapacitetsomkostninger | B46: -317368 | C46: -258444 | D46: -259317 | E46: -245189 | F46: -250140 | G46: -248853 | H46: -262588 | I46: -269074 | J46: -249566 | K46: -249794
A48: Afskrivninger | B48: -152289 | C48: -121292 | D48: -124794 | E48: -119413 | F48: -121506 | G48: -110515 | H48: -110764 | I48: -109900 | J48: -100491 | K48: -100536
A49: Nedskrivninger | B49: -6338 | C49: -6568 | D49: -5873 | E49: -3251 | F49: 1476 | G49: -2075 | H49: -9303 | I49: -861 | J49: -24101 | K49: -1080
A50: Tab/gevinst | B50: 9834 | C50: 3369 | D50: 9840 | E50: 4710 | F50: 4244 | G50: 5015 | H50: 2475 | I50: -2417 | J50: 1757 | K50: 2708
A51: Kapacitetsomkostninger i alt | B51: -466162 | C51: -382935 | D51: -380143 | E51: -363143 | F51: -365926 | G51: -356427 | H51: -380180 | I51: -382252 | J51: -372401 | K51: -348701
A53: Resultat af primær drift | B53: 49739 | C53: -44738 | D53: -66857 | E53: -40520 | F53: -86205 | G53: -25196 | H53: -47716 | I53: -41569 | J53: 14075 | K53: 35960
A56: Afkoblet EU-støtte mv. | B56: 144699 | C56: 115638 | D56: 118802 | E56: 105206 | F56: 116602 | G56: 109659 | H56: 99866 | I56: 101499 | J56: 107385 | K56: 103035
A58: Forpagtningsindtægt | B58: 35346 | C58: 21215 | D58: 25869 | E58: 22430 | F58: 18481 | G58: 19212 | H58: 21097 | I58: 18239 | J58: 11509 | K58: 15142
A59: Forpagtningsafgift | B59: -46358 | C59: -35594 | D59: -37227 | E59: -34322 | F59: -33395 | G59: -29959 | H59: -30605 | I59: -27490 | J59: -25704 | K59: -26002
A60: Renteindt, landbrug og fin.tilskud | B60: 6178 | C60: 3992 | D60: 6975 | E60: 5183 | F60: 6541 | G60: 6532 | H60: 9906 | I60: 6748 | J60: 6181 | K60: 6746
A61: Realiseret gevinst/tab finansaktiver | B61: 3315 | C61: 3572 | D61: 300 | E61: 2113 | F61: 17173 | G61: -10293 | H61: -1453 | I61: 97 | J61: -2426 | K61: -3197
A62: Renteudgifter, landbrug | B62: -88277 | C62: -82299 | D62: -75827 | E62: -80497 | F62: -84418 | G62: -88442 | H62: -96881 | I62: -87656 | J62: -103190 | K62: -103208
A63: Finansomkostninger ialt, landbrug | B63: -89795 | C63: -89114 | D63: -79909 | E63: -85093 | F63: -75617 | G63: -102950 | H63: -97937 | I63: -90062 | J63: -113631 | K63: -110519
A65: Driftsresultat | B65: 104642 | C65: -18214 | D65: -27965 | E65: -20407 | F65: -45220 | G65: -18487 | H65: -45787 | I65: -30119 | J65: 7830 | K65: 28475
A67: Ejerløn | B67: -344797 | C67: -358059 | D67: -362124 | E67: -365317 | F67: -138442 | G67: -127748 | H67: -121904 | I67: -127593 | J67: -128985 | K67: 0
A68: Korr. værdiændring stambes/foderbeh. | B68: 2355 | C68: 1399 | D68: -1133 | E68: -1526 | F68: 1328 | G68: 89 | H68: -4810
A69: Driftsresultat efter ejerløn mv. | B69: -237800 | C69: -374874 | D69: -391221 | E69: -387250 | F69: -182333 | G69: -146146 | H69: -172501
A71: Afskrivning immaterielle aktiver | B71: -2050 | C71: -1941 | D71: -1989 | E71: -1896 | F71: -2008 | G71: -198 | H71: -200 | I71: -105 | J71: -122 | K71: -270
A72: Nedskrivning immaterielle aktiver | B72: -71 | C72: -286 | D72: -422 | E72: -138 | F72: -1139 | G72: -1909 | H72: -5545 | I72: -3853 | J72: -1510 | K72: -4917
A73: Gevinst/tab immaterielle aktiver | B73: 11112 | C73: 5089 | D73: 12893 | E73: 4357 | F73: 11164 | G73: 9085 | H73: 35505 | I73: 33929 | J73: 340 | K73: 13971
A74: Anden virksomhed og engangsposter | B74: 55527 | C74: 55722 | D74: 47293 | E74: 56951 | F74: 48728 | G74: 50204 | H74: 42220 | I74: 48336 | J74: 39144 | K74: 37169
A75: Renteindtægter, privat | B75: 6496 | C75: 7618 | D75: 9004 | E75: 7020 | F75: 7023 | G75: 6240 | H75: 4221 | I75: 3619 | J75: 3590 | K75: 4454
A76: Renteudgifter, privat | B76: -12979 | C76: -12950 | D76: -12747 | E76: -14037 | F76: -14047 | G76: -20978 | H76: -23249 | I76: -20704 | J76: -24006 | K76: -23841
A77: Urealiseret regulering værdipapirer | B77: 36619 | C77: 64102 | D77: -37691 | E77: 19272 | F77: 10317 | G77: 23415 | H77: 26845 | I77: 26260 | J77: 15382 | K77: -23784
A78: Urealiseret regulering gæld | B78: 2334 | C78: -45 | D78: -1406 | E78: 161 | F78: -1207 | G78: 15457 | H78: 1099 | I78: 7388 | J78: -6046 | K78: -9469
A79: Værdiændring inv. ejendomme og tilknyttede virks. | B79: 0 | C79: -9 | D79: 0 | F79: -315 | G79: 0 | H79: 0
A81: Resultat før personlig indtjening | B81: 201630 | C81: 99085 | D81: -13028 | E81: 50958 | F81: 13296 | G81: 62734 | H81: 35107 | I81: 64700 | J81: 34588 | K81: 21790
A83: Private indtægter/omkostninger | B83: 439043 | C83: 482897 | D83: 457047 | E83: 451154 | F83: 417689 | G83: 446742 | H83: 434866 | I83: 428364 | J83: 417697 | K83: 410327
A85: Årets resultat før skat | B85: 640672 | C85: 581982 | D85: 444019 | E85: 502113 | F85: 430985 | G85: 509476 | H85: 469973 | I85: 493064 | J85: 452285 | K85: 432117
A87: Skat af årets resultat | B87: -213959 | C87: -200490 | D87: -169584 | E87: -176688 | F87: -136971 | G87: -146654 | H87: -156102 | I87: -145489 | J87: -148987 | K87: -151749
A89: BALANCE
A91: Fast ejendom | B91: 10439592 | C91: 8240602 | D91: 8326768 | E91: 7515525 | F91: 7990766 | G91: 7664853 | H91: 0 | I91: 6977122 | J91: 6789831 | K91: 7063506
A92: Stamplanter | B92: 247 | C92: 260 | D92: 102 | E92: 65 | F92: 96 | G92: 0 | H92: 0
A93: Betalingsrettigheder EU | B93: 6771 | C93: 7103 | D93: 8736 | E93: 8254 | F93: 11232 | G93: 20189 | H93: 19133 | I93: 21827 | J93: 20558 | K93: 22279
A94: Mælkekvoter og andre leveringsrettigheder | B94: 974 | C94: 728 | D94: 491 | E94: 3238 | F94: 2123 | G94: 4027 | H94: 2980 | I94: 11725 | J94: 5018 | K94: 6787
A95: Inventar og maskiner | B95: 533852 | C95: 409948 | D95: 391845 | E95: 389420 | F95: 404755 | G95: 382809 | H95: 366776 | I95: 368621 | J95: 343627 | K95: 370642
A96: Besætning | B96: 122184 | C96: 104765 | D96: 115222 | E96: 123541 | F96: 115405 | G96: 102546 | H96: 120683 | I96: 122816 | J96: 123344 | K96: 135113
A97: Beholdning | B97: 284511 | C97: 207581 | D97: 187072 | E97: 172241 | F97: 184708 | G97: 192055 | H97: 149630 | I97: 169828 | J97: 170947 | K97: 166302
A98: Tilgodehavende | B98: 468278 | C98: 372021 | D98: 388792 | E98: 327473 | F98: 359859 | G98: 322342 | H98: 287523 | I98: 306424 | J98: 292457 | K98: 262591
A99: Andelskapital og financielle kontrakter | B99: 267442 | C99: 206390 | D99: 201851 | E99: 167845 | F99: 185460 | G99: 175086 | H99: 152435 | I99: 148830 | J99: 138387 | K99: 141064
A100: Landbrugsaktiver i alt | B100: 12123852 | C100: 9549398 | D100: 9620879 | E100: 8707603 | F100: 9254404 | G100: 8863907 | H100: 8166344 | I100: 8127193 | J100: 7884169 | K100: 8168283
A102: Fast ejendom udenfor landbrug | B102: 1326567 | C102: 1217881 | D102: 1240262 | E102: 1221732 | F102: 1270658 | G102: 1286100 | H102: 0 | I102: 215952 | J102: 217644 | K102: 219547
A103: Private aktiver | B103: 381934 | C103: 304499 | D103: 297490 | E103: 305317 | F103: 309807 | G103: 141209 | H103: 131690 | I103: 1071195 | J103: 1089971 | K103: 1075598
A104: Øvrige aktiver udenfor landbrug | B104: 113027 | C104: 89652 | D104: 106753 | E104: 103473 | F104: 98622 | G104: 113359 | H104: 119612 | I104: 104867 | J104: 96872 | K104: 127609
A105: Værdipapirer og indlån | B105: 807262 | C105: 815665 | D105: 750029 | E105: 719114 | F105: 654999 | G105: 665139 | H105: 539012 | I105: 457926 | J105: 445372 | K105: 482727
A106: Hensættelser (positive) | B106: 2509 | C106: 3436 | D106: 4286 | E106: 4640 | F106: 3313 | G106: 3386 | H106: 4398
A108: Aktiver i alt | B108: 14755151 | C108: 11980532 | D108: 12019699 | E108: 11061878 | F108: 11591803 | G108: 11073100 | H108: 10227104 | I108: 9977133 | J108: 9734028 | K108: 10073764
A110: Ansvarlig lånekapital | B110: 0 | C110: 0 | D110: 0
A111: Realkreditinstitutter | B111: -5154459 | C111: -3638969 | D111: -3593665 | E111: -3258075 | F111: -3429625 | G111: -3164532 | H111: -3102213 | I111: -2894763 | J111: -2858473 | K111: -2835894
A112: Pengeinstitutter | B112: -282693 | C112: -259860 | D112: -237563 | E112: -245674 | F112: -257593 | G112: -244252 | H112: -290661 | I112: -220876 | J112: -215421 | K112: -233158
A113: Pante- og gældsbreve | B113: -63338 | C113: -35604 | D113: -37301 | E113: -37383 | F113: -38750 | G113: -33938 | H113: -26337
A114: Anden langfristet gæld | B114: -33529 | C114: -25295 | D114: -24958 | E114: -25611 | F114: -29500 | G114: -643 | H114: -3212
A115: Anden gæld | B115: -475890 | C115: -282411 | D115: -292810 | E115: -285087 | F115: -282790 | G115: -283211 | H115: -303876 | I115: -284530 | J115: -296299 | K115: -297063
A116: Kassekredit | B116: -166599 | C116: -150603 | D116: -154773 | E116: -169030 | F116: -170541 | G116: -158399 | H116: -176248 | I116: -188464 | J116: -198622 | K116: -171988
A117: Gæld i alt | B117: -6176509 | C117: -4392742 | D117: -4341071 | E117: -4020859 | F117: -4208799 | G117: -3884975 | H117: -3902546 | I117: -3588632 | J117: -3568814 | K117: -3538103
A119: Hensættelser (negative) | B119: -2135473 | C119: -1792762 | D119: -1815121 | E119: -1717000 | F119: -1847292 | G119: -1674025 | H119: -1458693 | I119: -1489003 | J119: -1376708 | K119: -1470269
A121: Egenkapital | B121: 6443168 | C121: 5795028 | D121: 5863508 | E121: 5324019 | F121: 5535711 | G121: 5514100 | H121: 4865865 | I121: 4899498 | J121: 4788506 | K121: 5065391
A123: EGENKAPITALFORKLARING
A125: Resultat efter finansiering | B125: 153687 | C125: 32176 | D125: 15586 | E125: 29527 | F125: -3516 | G125: 16885 | H125: -22596 | I125: 1082 | J125: 26544 | K125: 46260
A126: Private indtægter | B126: 439043 | C126: 482897 | D126: 457047 | E126: 451154 | F126: 417689 | G126: 446742 | H126: 434866 | I126: 428364 | J126: 417697 | K126: 410327
A127: Resultat før regulering og skat | B127: 592729 | C127: 515073 | D127: 472633 | E127: 480681 | F127: 414173 | G127: 463627 | H127: 412270 | I127: 429445 | J127: 444241 | K127: 456587
A129: Privat | B129: -229736 | C129: -258629 | D129: -233511 | E129: -249105 | F129: -241191 | G129: -244397 | H129: -241938 | I129: -254363 | J129: -246978 | K129: -252814
A130: Formueindtægter/-udgifter | B130: -9217 | C130: -9175 | D130: -8933 | E130: -7103 | F130: -17503 | G130: -28986 | H130: -26545 | I130: -27493 | J130: -27007 | K130: -28403
A131: Privat udtræk | B131: -238953 | C131: -267803 | D131: -242444 | E131: -256208 | F131: -258694 | G131: -273383 | H131: -268483 | I131: -272182 | J131: -270525 | K131: -266996
A133: Ud- og indbetaling interessenter | B133: -6341 | C133: 1111 | D133: -1980 | F133: 308 | G133: -2175 | H133: -679 | I133: -2474 | J133: -1403 | K133: -2855
A134: Betalt skat | B134: -206186 | C134: -194725 | D134: -180917 | E134: -177771 | F134: -152878 | G134: -162902 | H134: -153830 | I134: -151671 | J134: -138221 | K134: -146947
A135: Ændring i udskudt skat | B135: -7773 | C135: -5765 | D135: 11333 | E135: 1084 | F135: 15908 | G135: 16248 | H135: -2272 | I135: 6182 | J135: -10766 | K135: -4801
A136: Skat af årets resultat | B136: -213959 | C136: -200490 | D136: -169584 | E136: -176688 | F136: -136971 | G136: -146654 | H136: -156102 | I136: -145489 | J136: -148987 | K136: -151749
A138: Ændring af egenkapital fra drift, privat og skat | B138: 133477 | C138: 47891 | D138: 58626 | E138: 47763 | F138: 18816 | G138: 41415 | H138: -12993 | I138: 9300 | J138: 23062 | K138: 37843
A139: Regulering ialt fra resultat | B139: 47943 | C139: 66919 | D139: -28614 | E139: 21757 | F139: 17126 | G139: 45849 | H139: 57703 | I139: 63618 | J139: 8043 | K139: -24470
A140: Værdireguleringer | B140: 48852 | C140: 11868 | D140: 34137 | E140: 35414 | F140: -59459 | G140: 24550 | H140: 56950 | I140: 3516 | J140: 27298 | K140: -201598
A141: Pensionsindbetaling | B141: -26895 | C141: -20789 | D141: -18698 | E141: -19657 | F141: -18284 | G141: -23107 | H141: -15271 | I141: -27385 | J141: -17151 | K141: -21186
A142: Øvrige egenkapitalbevægelser | B142: 0 | C142: 0 | D142: 0 | E142: 0 | F142: 0 | G142: 0 | H142: 0 | I142: 0 | J142: 0 | K142: 0
A144: Ændring af egenkapital | B144: 203377 | C144: 105879 | D144: 45450 | E144: 84952 | F144: -42115 | G144: 88708 | H144: 86389 | I144: 51565 | J144: 40984 | K144: -208657
A146: Egenkapital primo | B146: 6239791 | C146: 5689964 | D146: 5817565 | E146: 5240418 | F146: 5575709 | G146: 5426502 | H146: 4778790 | I146: 4848757 | J146: 4747646 | K146: 5274180
A148: Egenkapital ultimo | B148: 6443168 | C148: 5795028 | D148: 5863508 | E148: 5324019 | F148: 5535711 | G148: 5514100 | H148: 4865865 | I148: 4900322 | J148: 4788630 | K148: 5065522
A150: PENGEBINDING
A152: Årets resultat før skat | B152: 640672 | C152: 581982 | D152: 444019 | E152: 502113 | F152: 430985 | G152: 509476 | H152: 469973 | I152: 493064 | J152: 452285 | K152: 432117
A154: Værdiændring besætning/beholdning | B154: 3335 | C154: 13143 | D154: -18547 | E154: -4429 | F154: 6103 | G154: -2064 | H154: 0
A155: Afskrivninger m.v., landbrug | B155: 139803 | C155: 121629 | D155: 110344 | E155: 115630 | F155: 107769 | G155: 100597 | H155: 87833 | I155: 83208 | J155: 124127 | K155: 90125
A156: Afskrivninger andre erhverv | B156: 8167 | C156: 6704 | D156: 10563 | E156: 8104 | F156: 7565 | G156: 7447 | H156: 5667 | I156: 4658 | J156: 5985 | K156: 5737
A157: Regulering I/S | B157: -5874 | C157: -7931 | D157: -2026 | E157: -3562 | F157: -2225 | G157: 0 | H157: 0 | I157: 10396 | J157: 451 | K157: 142
A158: Gevinst/tab finansaktiver | B158: -1436 | C158: -623 | D158: -1039 | E158: -346 | F158: -1172 | G158: 1561 | H158: -880 | I158: -982 | J158: -574 | K158: -385
A159: Urealiseret regulering finansaktiver | B159: -36619 | C159: -64102 | D159: 37691 | E159: -19272 | F159: -10317 | G159: -23415 | H159: -26845 | I159: -26260 | J159: -15382 | K159: 23784
A160: Gevinst/tab gæld | B160: 2209 | C160: 6862 | D160: 3703 | E160: 3423 | F160: 1374 | G160: 7437 | H160: 3889 | I160: 6534 | J160: 4579 | K160: 2780
A161: Urealiseret regulering gæld | B161: -2334 | C161: 45 | D161: 1406 | E161: 161 | F161: 1207 | G161: -15457 | H161: -1099 | I161: -7388 | J161: -6046 | K161: -9469
A162: Øvrige tilbageførsler | B162: -222 | C162: -233 | D162: -287 | E162: 306 | F162: 143 | G162: 261 | H162: 170
A163: Tilbageførsel i alt | B163: 107029 | C163: 75494 | D163: 141806 | E163: 99693 | F163: 110448 | G163: 78430 | H163: 68735 | I163: 70166 | J163: 125232 | K163: 131652
A165: Betalt skat | B165: -205975 | C165: -194725 | D165: -180917 | E165: -177771 | F165: -152797 | G165: -162878 | H165: -152435 | I165: -151671 | J165: -138221 | K165: -146947
A166: Privat | B166: -229736 | C166: -259445 | D166: -233511 | E166: -249105 | F166: -241191 | G166: -244397 | H166: -241938 | I166: -254363 | J166: -246978 | K166: -252814
A167: Afskrivninger privat tlbf. | B167: 21733 | C167: 20652 | D167: 20675 | E167: 20678 | F167: 18869 | G167: 19309 | H167: 18950 | I167: 19712 | J167: 16473 | K167: 17425
A168: Formueindtægter/-udgifter | B168: -9217 | C168: -9175 | D168: -8933 | E168: -7103 | F168: -17503 | G168: -28986 | H168: -26545 | I168: -27493 | J168: -27007 | K168: -28403
A169: Pensionsindbetaling | B169: -27185 | C169: -21262 | D169: -18227 | E169: -19657 | F169: -18156 | G169: -23582 | H169: -16072 | I169: -27385 | J169: -17151 | K169: -21186
A170: Privat udtræk, skat og pension i alt | B170: -450380 | C170: -463955 | D170: -420912 | E170: -433099 | F170: -410779 | G170: -440535 | H170: -418040 | I170: -436151 | J170: -413252 | K170: -420366
A172: Indskud/udlodning mv interessentskaber/selskaber | B172: -11033 | C172: 4741 | D172: -594 | E172: 3071 | F172: 1083 | G172: -2166 | H172: -2032 | I172: -2474 | J172: -1403 | K172: -2855
A174: Til invest og afdrag | B174: 286287 | C174: 198262 | D174: 164318 | E174: 171777 | F174: 131736 | G174: 145282 | H174: 122981
A176: Besætning (realforskydning) | B176: 5591 | C176: 14838 | D176: 12429 | E176: 3437 | F176: 2308 | G176: 2731 | H176: 22575 | I176: 12857 | J176: -195 | K176: -6325
A177: Beholdninger (realforskydninger) | B177: 3790 | C177: -30585 | D177: 38744 | E177: -4235 | F177: 33260 | G177: -16334 | H177: 20900 | I177: 13047 | J177: -13066 | K177: 891
A178: Flerårige afgrøder | B178: 0 | C178: 0 | D178: 0 | E178: 0 | F178: 5 | G178: 0 | H178: 0 | I178: -2 | J178: 0 | K178: 0
A180: Likviditet før anlægsinvesteringer | B180: 295668 | C180: 182516 | D180: 215491 | E180: 170979 | F180: 167309 | G180: 131678 | H180: 166456 | I180: 152072 | J180: 151004 | K180: 137969
A182: Investeringer
A183: Jord | B183: -32606 | C183: -23949 | D183: -20715 | E183: -10110 | F183: -1495 | G183: -16742 | H183: 32111 | I183: -9091 | J183: -2901 | K183: -9090
A184: Immaterielle aktiver | B184: -145 | C184: -510 | D184: -401 | E184: -49 | F184: -387 | G184: 143 | H184: 1864 | I184: -4570 | J184: 1369 | K184: 3362
A185: Grundforbedring | B185: -3624 | C185: -655 | D185: -1569 | E185: -1034 | F185: -1344 | G185: -2069 | H185: -3507 | I185: -1201 | J185: -663 | K185: -1018
A186: Stamplanter | B186: 0 | C186: -65 | D186: 0 | E186: 65 | F186: -73 | G186: 0 | H186: 0
A187: Driftsbygninger | B187: -20600 | C187: -7800 | D187: -19227 | E187: -15764 | F187: -21652 | G187: -18215 | H187: -68011 | I187: -17581 | J187: -37600 | K187: -23332
A188: Inventar markbrug | B188: -53720 | C188: -37847 | D188: -31435 | E188: -36108 | F188: -30681 | G188: -38565 | H188: -23090 | I188: -48525 | J188: -35162 | K188: -34443
A189: Inventar husdyrbrug | B189: -5553 | C189: -573 | D189: -1283 | E189: -3445 | F189: -3533 | G189: -1498 | H189: -16289 | I189: -3712 | J189: -5989 | K189: -6944
A190: Inventar andet | B190: -976 | C190: -778 | D190: 137 | E190: -1220 | F190: -99 | G190: -2075 | H190: -40 | I190: 961 | J190: -571 | K190: -1428
A191: Beboelse, landbrug | B191: -27668 | C191: -11912 | D191: -19938 | E191: -20242 | F191: -18760 | G191: -28744 | H191: -10490 | I191: -36126 | J191: -20291 | K191: -37035
A192: Private aktiver | B192: -38883 | C192: -42010 | D192: -30757 | E192: 305317 | F192: -28487 | G192: -23012 | H192: -22381 | I192: -28591 | J192: -25005 | K192: -19484
A193: Aktiver udenfor landbrug | B193: -1026 | C193: 17695 | D193: 4661 | E193: -10616 | F193: -20133 | G193: -11582 | H193: -19733 | I193: -21519 | J193: -10920 | K193: -22863
A194: Investeringer ialt | B194: -184801 | C194: -108405 | D194: -120528 | E194: -129708 | F194: -126643 | G194: -142361 | H194: -129565 | I194: -169955 | J194: -137734 | K194: -152276
A196: Likviditetsoverskud/-behov | B196: 110867 | C196: 74111 | D196: 94963 | E196: 41272 | F196: 40666 | G196: -10683 | H196: 36891 | I196: -17883 | J196: 13270 | K196: -14307
A198: Ændring finansaktiver og gæld
A199: Tilgodehav. og værdipapirer | B199: -30159 | C199: -9022 | D199: -49048 | E199: -5612 | F199: -1044 | G199: 41540 | H199: -22387 | I199: -26271 | J199: -39024 | K199: -11663
A200: Realkreditinstitutter | B200: -25632 | C200: -24545 | D200: -29110 | E200: -3258075 | F200: -5229 | G200: 16327 | H200: -26123 | I200: -2894763 | J200: -2858473 | K200: -2835894
A201: Pengeinstitutter lån, netto | B201: -54268 | C201: -11678 | D201: -141 | E201: -600 | F201: -19326 | G201: -21749 | H201: 33782 | I201: 36021 | J201: -7137 | K201: -6203
A202: Anden gæld | B202: 17232 | C202: -5335 | D202: -14171 | E202: -285087 | F202: -25202 | G202: -17379 | H202: 21067 | I202: -284530 | J202: -296299 | K202: -297063
A203: Kassekredit, ændring | B203: -17876 | C203: -21458 | D203: -5035 | E203: -9456 | F203: 7638 | G203: -6996 | H203: -33549 | I203: 14087 | J203: 6862 | K203: -917
A204: Ændring hensættelser | B204: 20 | C204: 22 | D204: 22 | E204: -2 | F204: -1 | G204: 11 | H204: -3 | I204: 6 | J204: 21 | K204: 3
A206: Likviditetsanvendelse/fremskaffelse | B206: -110682 | C206: -72016 | D206: -97484 | E206: -41542 | F206: -43164 | G206: 8164 | H206: -33069 | I206: 25507 | J206: -13249 | K206: 14009
A208: Konsolideringsanalyse
A209: Resultat efter finansiering | B209: 153687 | C209: 32177 | D209: 15587 | E209: 29527 | F209: -3515 | G209: 0 | H209: 0
A210: Private indtægter/omkostninger | B210: 439043 | C210: 482897 | D210: 457047 | E210: 451154 | F210: 417689 | G210: 0 | H210: 0
A211: tilbf. værdiændr. stambesætning mm | B211: -348 | C211: 1266 | D211: -1836 | E211: -2191 | F211: 1226 | G211: 0 | H211: 0
A212: Beregnet skat | B212: -193226 | C212: -170310 | D212: -149770 | E212: -150089 | F212: -128779 | G212: 0 | H212: 0
A213: Privat udtræk | B213: -238953 | C213: -268620 | D213: -242444 | E213: -256208 | F213: -258694 | G213: 0 | H213: 0
A214: Pensionsindbetaling | B214: -27185 | C214: -21262 | D214: -18227 | E214: -19657 | F214: -18156 | G214: 0 | H214: 0
A215: Konsolidering | B215: 133018 | C215: 56148 | D215: 60358 | E215: 52393 | F215: 9763 | G215: 711 | H215: 0
A217: Nøgletal - konsolidering | E217: 0
A218: Ændring i resultat - nulkonsolidering | B218: -225612 | C218: -106096 | D218: -110150 | E218: -89065 | F218: -21621 | G218: 0 | H218: 0
A219: nulpunktsrente pct
A220: nulpunktsmælkepris kr/kg EKM
A221: Nulpunktspris fravænnede grise
A222: Nulpunktspris smågrise
A223: Nulpunktspris slagtesvin kg
A224: Nulpunktspris minkskind
A226: Øknomiske nøgletal
A227: Virksomhedens afkast, pct. | B227: -1.9 | C227: -3.8 | D227: =(D53+D74+D56+D67+D58+D59)*100/(D108-D103-D105) -> -2.499448605 | E227: =(E53+E74+E56+E67+E58+E59)*100/(E108-E103-E105) -> -2.5461853 | F227: -0.6985134182 | G227: -0.03728540438 | H227: -0.3876145018 | I227: -0.3382807695 | J227: 0.2125218861 | K227: 1.941226988
A228: Virksomhedens overskudsmargin, pct | B228: =(B53+B74+B56+B67+B58+B59)*100/B27 -> -12.74989279 | C228: =(C53+C74+C56+C67+C58+C59)*100/C27 -> -42.61409537 | D228: =(D53+D74+D56+D67+D58+D59)*100/D27 -> -49.59823197 | E228: =(E53+E74+E56+E67+E58+E59)*100/E27 -> -46.21906185 | F228: -14.37365182 | G228: -0.697682048 | H228: -5.750604293 | I228: -3.673703926 | J228: 2.234676995 | K228: 23.82489057
A229: Dækningsgrad, pct | B229: =B37*100/B27 -> 62.14494625 | C229: =C37*100/C27 -> 58.62905267 | D229: =D37*100/D27 -> 56.6589683 | E229: =E37*100/E27 -> 58.34475674 | F229: 54.16352011 | G229: 60.36936323 | H229: 51.61354424 | I229: 43.7948238 | J229: 49.56663375 | K229: 55.44031743
A230: Virksomhedens afkast til egenkapital, pct | B230: =(B209+B67)*100/B148 -> -2.96608749 | C230: =(C209+C67)*100/C148 -> -5.623475849 | D230: -5.910062713 | E230: -6.307077417 | F230: -2.564386038 | G230: -2.3167516 | H230: -2.505289399 | I230: -2.603767671 | J230: -2.693567889 | K230: 0
A231: Soliditetsgrad, pct | B231: 44.2 | C231: 47.4 | D231: =D148*100/D108 -> 48.78248615 | E231: =E148*100/E108 -> 48.12943155 | F231: 47.75539232 | G231: 49.79725641 | H231: 47.5781316 | I231: 49.11553249 | J231: 49.1947424 | K231: 50.28430287
A232: Rentedækningsgrad | B232: 15.7 | C232: -76.9
A234: Bilag 1: Produktionstekniske oplysninger, planteavl | K234: 0
A236: Gruppering | B236: Alle | C236: Alle | D236: Alle | E236: Alle | F236: Alle | G236: Alle | H236: Alle | I236: Alle | J236: Alle | K236: Alle
A237: År | B237: 2020 | C237: 2019 | D237: 2018 | E237: 2017 | F237: 2016 | G237: 2015 | H237: 2014 | I237: 2013 | J237: 2012 | K237: 2011
A239: Afgrødefordeling, ha
A240: Vårbyg, ha | B240: 19.4 | C240: 14.8 | D240: 18.7 | E240: 13.9 | F240: 15.6 | G240: 12.6 | H240: 10.7 | I240: 13.6 | J240: 13.9 | K240: 11.5
A241: Vinterbyg, ha | B241: 2.8 | C241: 2.4 | D241: 1.9 | E241: 2.4 | F241: 2.4 | G241: 2.3 | H241: 2 | I241: 1.7 | J241: 1.9 | K241: 2.1
A242: Vårhvede | B242: 0.4 | C242: 0.3 | D242: 0.4 | E242: 0.4 | F242: 0.4 | G242: 0.4 | H242: 0.3 | I242: 0.5 | J242: 0.3 | K242: 0.3
A243: Vinterhvede, ha | B243: 15.5 | C243: 14 | D243: 10.4 | E243: 11.6 | F243: 12.5 | G243: 11.9 | H243: 10.5 | I243: 8.8 | J243: 9.8 | K243: 12.1
A244: Triticale, ha | B244: 0.1 | C244: 0.1 | D244: 0.1 | E244: 0.1 | F244: 0.2 | G244: 0.2 | H244: 0.1 | I244: 0.2 | J244: 0.3 | K244: 0.4
A245: Rug, ha | B245: 2.3 | C245: 2 | D245: 1.4 | E245: 1.5 | F245: 1.5 | G245: 1.7 | H245: 1.3 | I245: 1.1 | J245: 0.8 | K245: 0.6
A246: Havre, ha | B246: 1.7 | C246: 1 | D246: 1.5 | E246: 1 | F246: 1 | G246: 0.6 | H246: 0.6 | I246: 0.8 | J246: 1.1 | K246: 0.7
A247: Kernemajs/majs til modenhed, ha | B247: 0.1 | C247: 0 | D247: 0.1 | E247: 0 | F247: 0.1 | G247: 0 | H247: 0.1 | I247: 0.1 | J247: 0.1 | K247: 0.1
A248: Blandsæd | B248: 0.1 | C248: 0 | D248: 0.1 | E248: 0.1 | F248: 0.1 | G248: 0.1 | H248: 0.1 | I248: 0.1 | J248: 0.2 | K248: 0.1
A249: Korn areal, ha | B249: 42.3 | C249: 34.6 | D249: 34.6 | E249: 30.9 | F249: 33.7 | G249: 29.8 | H249: 25.6 | I249: 27 | J249: 28.4 | K249: 28
A252: Græsfrø, ha | B252: 0.2 | C252: 0.2 | D252: 0.2 | E252: 0.1 | F252: 0.2 | G252: 0.2 | H252: 0.2 | I252: 0.2 | J252: 0.2 | K252: 0.4
... 513 more rows

Sheet 1.9 Deltid øko
A1: Udtrukket: 09-10-2020 08:54:54 af LFjubp
A2: Denne udskrift kan indeholde fortrolige data og skal derfor behandles med særlig omhu og i forhold til gældende regler omkring datasikkerhed. Distribution til tredje part er ikke tilladt uden samtykke fra SEGES. Sker dette alligevel, kan SEGES ikke holdes ansvarlig
A3: Udvælgelse: (([norm_t_ejendom] >= 0 AND [norm_t_ejendom] <= 1664)) AND (([006410]=2)) AND Godkendt = Ja AND Tilladelse IN (ØDB statistik) AND Opstilling = Statistik
A4: Gruppering: Afkastningsgrad
A6: Gruppering | B6: Alle | C6: Alle | D6: Alle | E6: Alle | F6: Alle | G6: Alle | H6: Alle | I6: Alle | J6: Alle | K6: Alle
A7: År | B7: 2020 | C7: 2019 | D7: 2018 | E7: 2017 | F7: 2016 | G7: 2015 | H7: 2014 | I7: 2013 | J7: 2012 | K7: 2011
A8: Antal | B8: 56 | C8: 80 | D8: 58 | E8: 79 | F8: 68 | G8: 86 | H8: 97 | I8: 92 | J8: 90 | K8: 123
A9: Antal vejet | B9: 615 | C9: 1089 | D9: 1020.97 | E9: 819 | F9: 859 | G9: 774 | H9: 836 | I9: 852.94 | J9: 906 | K9: 889
A10: Kredsnummer
A11: Ejendomsnummer
A12: Landbrugsareal, ha | B12: 61 | C12: 52 | D12: 47 | E12: 38 | F12: 39 | G12: 37 | H12: 40 | I12: 39 | J12: 37 | K12: 37
A13: Årskøer | B13: 4 | C13: 0 | D13: 0 | E13: 0 | F13: 0 | G13: 0 | H13: 0 | I13: 0 | J13: 1 | K13: 1
A14: Årssøer | B14: 0 | C14: 1 | D14: 4 | E14: 2 | F14: 0 | G14: 0 | H14: 0 | I14: 0 | J14: 0 | K14: 0
A15: Antal slagtesvin produceret | B15: 323 | C15: 221 | D15: 201 | E15: 107 | F15: 80 | G15: 115 | H15: 61 | I15: 33 | J15: 2 | K15: 44
A16: Antal minktæver | B16: 0 | C16: 0 | D16: 0 | E16: 0 | F16: 0 | G16: 0 | H16: 0 | I16: 0 | J16: 0 | K16: 0
A17: Dyreenheder | B17: 19 | C17: 12 | D17: 11 | E17: 9 | F17: 9 | G17: 11 | H17: 13 | I17: 12 | J17: 12 | K17: 15
A18: Beregnet antal normtimer | B18: 1175 | C18: 1028 | D18: 1020 | E18: 911 | F18: 899 | G18: 907 | H18: 978 | I18: 953 | J18: 941 | K18: 932
A20: Bruttoudbytte Planteavl inkl. IO | B20: 442375 | C20: 338832 | D20: 263905 | E20: 261072 | F20: 175365 | G20: 211124 | H20: 262851 | I20: 290955 | J20: 241108 | K20: 214547
A21: Bruttoudbytte Kvæg | B21: 198780 | C21: 61782 | D21: 69750 | E21: 59303 | F21: 71164 | G21: 69534 | H21: 45543 | I21: 47074 | J21: 73383 | K21: 94913
A22: Bruttoudbytte Svin | B22: 427121 | C22: 274972 | D22: 305150 | E22: 207561 | F22: 111408 | G22: 100901 | H22: 30879 | I22: 17153 | J22: 1870 | K22: 25618
A23: Bruttoudbytte andre husdyr | B23: 75814 | C23: 28290 | D23: 35680 | E23: 211839 | F23: 201276 | G23: 174284 | H23: 406929 | I23: 394829 | J23: 371003 | K23: 306678
A24: Skovindtægter | B24: 4398 | C24: 2654 | D24: 1119 | E24: 1216 | F24: 2344 | G24: 3522 | H24: 0
A25: Maskinstationsindtægter | B25: 22542 | C25: 12722 | D25: 8351 | E25: 24240 | F25: 21273 | G25: 29994 | H25: 22265 | I25: 15390 | J25: 12300 | K25: 19275
A26: Andre landbrugsindtægter | B26: 115877 | C26: 95206 | D26: 88279 | E26: 80428 | F26: 95059 | G26: 73255 | H26: 64520 | I26: 47421 | J26: 60053 | K26: 78291
A27: Bruttoudbytte ialt | B27: 1286907 | C27: 814458 | D27: 772234 | E27: 845660 | F27: 677888 | G27: 662614 | H27: 832987 | I27: 812822 | J27: 759717 | K27: 739322
A29: Stykomkostninger Mark | B29: -92216 | C29: -75946 | D29: -65297 | E29: -50862 | F29: -38415 | G29: -48197 | H29: -55259 | I29: -75027 | J29: -59313 | K29: -39169
A30: Korn inkl. IO | B30: -40711 | C30: -36567 | D30: -35864 | E30: -17970 | F30: -3738 | G30: -19154 | H30: -36780 | I30: -306641 | J30: -265662 | K30: -245545
A31: Færdigblanding mv. | B31: -341027 | C31: -218952 | D31: -225208 | E31: -230459 | F31: -177339 | G31: -154995 | H31: -239847
A32: Eget grovfoder inkl. IO | B32: -133710 | C32: -34187 | D32: -60806 | E32: -19969 | F32: -14201 | G32: -13177 | H32: -13387
A33: Øvrige stykomkostninger husdyr | B33: -42560 | C33: -15945 | D33: -24819 | E33: -24434 | F33: -24357 | G33: -15028 | H33: -22195 | I33: -21177 | J33: -22074 | K33: -24129
A34: Skovomkostninger | B34: -705 | C34: -1837 | D34: -443 | E34: -1142 | F34: -364 | G34: -2351 | H34: 0
A35: Stykomkostninger i alt | B35: -650930 | C35: -383433 | D35: -412437 | E35: -344835 | F35: -258414 | G35: -252903 | H35: -367468 | I35: -402845 | J35: -347050 | K35: -308843
A37: Dækningsbidrag | B37: 635977 | C37: 431025 | D37: 359798 | E37: 500825 | F37: 419475 | G37: 409711 | H37: 465520 | I37: 409976 | J37: 412667 | K37: 430479
A39: Energi og brændstof | B39: -38552 | C39: -28771 | D39: -35835 | E39: -28388 | F39: -22348 | G39: -23572 | H39: -41004 | I39: -38303 | J39: -35880 | K39: -35121
A40: Maskinstation | B40: -98168 | C40: -81896 | D40: -72499 | E40: -64400 | F40: -61228 | G40: -53513 | H40: -57899 | I40: -58865 | J40: -54425 | K40: -56216
A41: Vedligeholdelse | B41: -105284 | C41: -61755 | D41: -63518 | E41: -58321 | F41: -59473 | G41: -55620 | H41: -61084 | I41: -59570 | J41: -49724 | K41: -52540
A42: Investeringer over driften | B42: -4486 | C42: -8744 | D42: -8781 | E42: -8626 | F42: -5269 | G42: -8815 | H42: -5451 | I42: -6561 | J42: -6110 | K42: -6755
A43: Lønomkostninger | B43: -45353 | C43: -22455 | D43: -18822 | E43: -23746 | F43: -10546 | G43: -15386 | H43: -32889 | I43: -27260 | J43: -16564 | K43: -12660
A44: Ejendomsskat og forsikringer | B44: -49247 | C44: -31761 | D44: -29737 | E44: -28402 | F44: -28627 | G44: -29109 | H44: -30787 | I44: -28958 | J44: -28829 | K44: -28147
A45: Diverse omkostninger | B45: -81295 | C45: -56399 | D45: -56356 | E45: -58912 | F45: -57635 | G45: -61523 | H45: -84633 | I45: -61413 | J45: -55246 | K45: -62732
A46: Kontante kapacitetsomkostninger | B46: -422386 | C46: -291782 | D46: -285548 | E46: -270794 | F46: -245126 | G46: -247538 | H46: -313748 | I46: -280931 | J46: -246778 | K46: -254171
A48: Afskrivninger | B48: -146679 | C48: -103531 | D48: -107732 | E48: -106118 | F48: -113497 | G48: -105602 | H48: -124673 | I48: -104963 | J48: -100835 | K48: -113219
A49: Nedskrivninger | B49: 0 | C49: 0 | D49: 0 | E49: 0 | F49: -984 | G49: -563 | H49: -2483 | I49: -4084 | J49: 0 | K49: -630
A50: Tab/gevinst | B50: 167098 | C50: 9971 | D50: 2078 | E50: 45 | F50: 3244 | G50: 2555 | H50: 5516 | I50: 3178 | J50: -880 | K50: 4258
A51: Kapacitetsomkostninger i alt | B51: -401966 | C51: -385342 | D51: -391203 | E51: -376867 | F51: -356362 | G51: -351148 | H51: -435387 | I51: -386799 | J51: -348494 | K51: -363763
A53: Resultat af primær drift | B53: 234011 | C53: 45683 | D53: -31405 | E53: 123958 | F53: 63113 | G53: 58563 | H53: 30133 | I53: 23177 | J53: 64173 | K53: 66716
A56: Afkoblet EU-støtte mv. | B56: 144887 | C56: 122496 | D56: 112052 | E56: 88324 | F56: 85486 | G56: 84080 | H56: 102509 | I56: 98795 | J56: 95707 | K56: 97249
A58: Forpagtningsindtægt | B58: 39470 | C58: 26231 | D58: 14697 | E58: 22485 | F58: 18281 | G58: 18922 | H58: 17302 | I58: 16103 | J58: 18250 | K58: 17957
A59: Forpagtningsafgift | B59: -69755 | C59: -74446 | D59: -50044 | E59: -61895 | F59: -34845 | G59: -25005 | H59: -28096 | I59: -20274 | J59: -17912 | K59: -21465
A60: Renteindt, landbrug og fin.tilskud | B60: 3418 | C60: 2337 | D60: 3694 | E60: 3195 | F60: 2048 | G60: 5802 | H60: 5843 | I60: 4265 | J60: 3722 | K60: 10705
A61: Realiseret gevinst/tab finansaktiver | B61: 3619 | C61: 3280 | D61: 22713 | E61: -3483 | F61: -1055 | G61: 4341 | H61: -6392 | I61: -2812 | J61: -9299 | K61: -4266
A62: Renteudgifter, landbrug | B62: -136816 | C62: -100845 | D62: -95345 | E62: -81241 | F62: -88090 | G62: -82135 | H62: -138327 | I62: -95441 | J62: -127682 | K62: -123033
A63: Finansomkostninger ialt, landbrug | B63: -160065 | C63: -143442 | D63: -104285 | E63: -120939 | F63: -103661 | G63: -78075 | H63: -149669 | I63: -98158 | J63: -132920 | K63: -120102
A65: Driftsresultat | B65: 218833 | C65: 24737 | D65: -23638 | E65: 91343 | F65: 44938 | G65: 64568 | H65: -17027 | I65: 23813 | J65: 26960 | K65: 43863
A67: Ejerløn | B67: -330499 | C67: -366309 | D67: -391462 | E67: -380276 | F67: -109289 | G67: -115928 | H67: -119702 | I67: -117685 | J67: -120476 | K67: 0
A68: Korr. værdiændring stambes/foderbeh. | B68: 11121 | C68: 1538 | D68: 1012 | E68: -113 | F68: 1192 | G68: 5203 | H68: 284
A69: Driftsresultat efter ejerløn mv. | B69: -100545 | C69: -340034 | D69: -414089 | E69: -289046 | F69: -63159 | G69: -46157 | H69: -136446
A71: Afskrivning immaterielle aktiver | B71: -964 | C71: -1510 | D71: -1313 | E71: -452 | F71: -1468 | G71: -55 | H71: -3 | I71: -68 | J71: -127 | K71: -71
A72: Nedskrivning immaterielle aktiver | B72: 0 | C72: 0 | D72: 0 | E72: -176 | F72: -3861 | G72: -162 | H72: -1993 | I72: -7011 | J72: -8726 | K72: -4881
A73: Gevinst/tab immaterielle aktiver | B73: -266913 | C73: 1142 | D73: 0 | E73: 13513 | F73: -859 | G73: 8199 | H73: 1336 | I73: -19711 | J73: -383 | K73: 94
A74: Anden virksomhed og engangsposter | B74: 93269 | C74: 47888 | D74: 33059 | E74: 51269 | F74: 22925 | G74: 37111 | H74: 66096 | I74: 28269 | J74: 46534 | K74: 23992
A75: Renteindtægter, privat | B75: 4654 | C75: 1343 | D75: 2398 | E75: 4728 | F75: 6911 | G75: 4684 | H75: 4144 | I75: 2245 | J75: 1919 | K75: 1809
A76: Renteudgifter, privat | B76: -12077 | C76: -13467 | D76: -13285 | E76: -11299 | F76: -13007 | G76: -21756 | H76: -29598 | I76: -22869 | J76: -26739 | K76: -23534
A77: Urealiseret regulering værdipapirer | B77: -4058 | C77: 15812 | D77: -13279 | E77: 4680 | F77: 1691 | G77: 8202 | H77: 6916 | I77: 17343 | J77: 6468 | K77: -17513
A78: Urealiseret regulering gæld | B78: 649 | C78: -225 | D78: -518 | E78: 1453 | F78: -5531 | G78: 11926 | H78: -6093 | I78: 4812 | J78: -10020 | K78: -18571
A79: Værdiændring inv. ejendomme og tilknyttede virks. | B79: 0 | C79: 0 | D79: 0 | F79: 0 | G79: 0 | H79: 0
A81: Resultat før personlig indtjening | B81: 33394 | C81: 75719 | D81: -16576 | E81: 155060 | F81: 51739 | G81: 112718 | H81: 23778 | I81: 26823 | J81: 35886 | K81: 5187
A83: Private indtægter/omkostninger | B83: 434668 | C83: 459514 | D83: 480541 | E83: 518373 | F83: 514266 | G83: 521501 | H83: 467419 | I83: 467087 | J83: 472325 | K83: 408047
A85: Årets resultat før skat | B85: 468062 | C85: 535234 | D85: 463965 | E85: 673433 | F85: 566005 | G85: 634219 | H85: 491197 | I85: 493910 | J85: 508211 | K85: 413235
A87: Skat af årets resultat | B87: -321516 | C87: -193058 | D87: -174392 | E87: -239280 | F87: -210007 | G87: -201575 | H87: -131833 | I87: -192324 | J87: -148202 | K87: -130539
A89: BALANCE
A91: Fast ejendom | B91: 7647605 | C91: 6360337 | D91: 6076728 | E91: 5800928 | F91: 5694780 | G91: 6082518 | H91: 0 | I91: 6782720 | J91: 6681304 | K91: 6972598
A92: Stamplanter | B92: 0 | C92: 0 | D92: 0 | E92: 0 | F92: 0 | G92: 0 | H92: 0
A93: Betalingsrettigheder EU | B93: 1588 | C93: 3737 | D93: 3942 | E93: 4573 | F93: 5432 | G93: 14099 | H93: 15644 | I93: 23690 | J93: 21233 | K93: 27425
A94: Mælkekvoter og andre leveringsrettigheder | B94: 141 | C94: 805 | D94: 584 | E94: 374 | F94: 89 | G94: 562 | H94: 585 | I94: 2840 | J94: 3496 | K94: 10835
A95: Inventar og maskiner | B95: 450513 | C95: 342400 | D95: 296320 | E95: 309746 | F95: 294922 | G95: 302226 | H95: 369036 | I95: 326505 | J95: 340596 | K95: 404638
A96: Besætning | B96: 220469 | C96: 184818 | D96: 224163 | E96: 185791 | F96: 167187 | G96: 164042 | H96: 154595 | I96: 163501 | J96: 151637 | K96: 161639
A97: Beholdning | B97: 174602 | C97: 141630 | D97: 107518 | E97: 111675 | F97: 95496 | G97: 132925 | H97: 135347 | I97: 116205 | J97: 119178 | K97: 94267
A98: Tilgodehavende | B98: 535736 | C98: 409773 | D98: 327092 | E98: 342755 | F98: 218452 | G98: 237557 | H98: 244189 | I98: 188581 | J98: 173876 | K98: 190161
A99: Andelskapital og financielle kontrakter | B99: 337378 | C99: 160433 | D99: 180852 | E99: 185987 | F99: 131409 | G99: 117785 | H99: 104657 | I99: 125789 | J99: 99433 | K99: 103309
A100: Landbrugsaktiver i alt | B100: 9368032 | C100: 7603934 | D100: 7217200 | E100: 6941829 | F100: 6607766 | G100: 7051715 | H100: 7674170 | I100: 7729831 | J100: 7590753 | K100: 7964872
A102: Fast ejendom udenfor landbrug | B102: 1180513 | C102: 1109242 | D102: 1092501 | E102: 1110735 | F102: 1173923 | G102: 1315176 | H102: 0 | I102: 66636 | J102: 58462 | K102: 166538
A103: Private aktiver | B103: 297241 | C103: 257297 | D103: 243143 | E103: 290176 | F103: 281433 | G103: 119896 | H103: 129709 | I103: 1312129 | J103: 1217139 | K103: 1108545
A104: Øvrige aktiver udenfor landbrug | B104: 101945 | C104: 60794 | D104: 101150 | E104: 80429 | F104: 21841 | G104: 208694 | H104: 190069 | I104: 147626 | J104: 137811 | K104: 147135
A105: Værdipapirer og indlån | B105: 489835 | C105: 285242 | D105: 322463 | E105: 308572 | F105: 238990 | G105: 414678 | H105: 396830 | I105: 301201 | J105: 307093 | K105: 258266
A106: Hensættelser (positive) | B106: 681 | C106: 275 | D106: 3854 | E106: 1686 | F106: 0 | G106: 0 | H106: 0
A108: Aktiver i alt | B108: 11438246 | C108: 9316784 | D108: 8980310 | E108: 8733426 | F108: 8323953 | G108: 9110158 | H108: 9808248 | I108: 9557423 | J108: 9311258 | K108: 9645356
A110: Ansvarlig lånekapital | B110: 0 | C110: 0 | D110: 0
A111: Realkreditinstitutter | B111: -4497909 | C111: -3584411 | D111: -3181335 | E111: -2814366 | F111: -2841981 | G111: -2745831 | H111: -3185788 | I111: -2947196 | J111: -3101511 | K111: -3045358
A112: Pengeinstitutter | B112: -280556 | C112: -308137 | D112: -209863 | E112: -373637 | F112: -312906 | G112: -344222 | H112: -498721 | I112: -334758 | J112: -408793 | K112: -370122
A113: Pante- og gældsbreve | B113: -33021 | C113: -43439 | D113: -51781 | E113: -10248 | F113: -3824 | G113: -5181 | H113: -9345
A114: Anden langfristet gæld | B114: -8033 | C114: -44206 | D114: -13229 | E114: -19912 | F114: -5474 | G114: -465 | H114: -563
A115: Anden gæld | B115: -516463 | C115: -319015 | D115: -457887 | E115: -416567 | F115: -393419 | G115: -277393 | H115: -420237 | I115: -308453 | J115: -319920 | K115: -292589
A116: Kassekredit | B116: -221335 | C116: -247327 | D116: -216209 | E116: -216178 | F116: -201517 | G116: -170627 | H116: -381527 | I116: -187467 | J116: -229075 | K116: -229089
A117: Gæld i alt | B117: -5557317 | C117: -4546536 | D117: -4130304 | E117: -3850907 | F117: -3759121 | G117: -3543719 | H117: -4496181 | I117: -3777873 | J117: -4059300 | K117: -3937158
A119: Hensættelser (negative) | B119: -1576636 | C119: -1277662 | D119: -1261923 | E119: -1155821 | F119: -1249460 | G119: -1532699 | H119: -1524909 | I119: -1373874 | J119: -1193508 | K119: -1056366
A121: Egenkapital | B121: 4304292 | C121: 3492586 | D121: 3588083 | E121: 3726698 | F121: 3315372 | G121: 4033740 | H121: 3787158 | I121: 4405676 | J121: 4058451 | K121: 4651832
A123: EGENKAPITALFORKLARING
A125: Resultat efter finansiering | B125: 304680 | C125: 60500 | D125: -1466 | E125: 136041 | F125: 61767 | G125: 84608 | H125: 23615 | I125: 31457 | J125: 48674 | K125: 46129
A126: Private indtægter | B126: 434668 | C126: 459514 | D126: 480541 | E126: 518373 | F126: 514266 | G126: 521501 | H126: 467419 | I126: 467087 | J126: 472325 | K126: 408047
A127: Resultat før regulering og skat | B127: 739348 | C127: 520015 | D127: 479075 | E127: 654414 | F127: 576033 | G127: 606109 | H127: 491034 | I127: 498545 | J127: 520999 | K127: 454177
A129: Privat | B129: -228407 | C129: -248295 | D129: -264916 | E129: -292415 | F129: -307125 | G129: -295268 | H129: -292884 | I129: -304170 | J129: -303113 | K129: -293549
A130: Formueindtægter/-udgifter | B130: -12708 | C130: -16675 | D130: 90 | E130: -16030 | F130: -10499 | G130: -33610 | H130: -51098 | I130: -30319 | J130: -32000 | K130: -27150
A131: Privat udtræk | B131: -241115 | C131: -264970 | D131: -264827 | E131: -308445 | F131: -317624 | G131: -328878 | H131: -343982 | I131: -326504 | J131: -324288 | K131: -310756
A133: Ud- og indbetaling interessenter | B133: 1736685 | C133: -936 | D133: -1053 | F133: 0 | G133: 0 | H133: 0 | I133: 0 | J133: 0 | K133: 1871
A134: Betalt skat | B134: -258933 | C134: -160436 | D134: -174137 | E134: -215815 | F134: -212886 | G134: -206861 | H134: -170273 | I134: -183582 | J134: -142665 | K134: -132420
A135: Ændring i udskudt skat | B135: -62583 | C135: -32622 | D135: -254 | E135: -23465 | F135: 2879 | G135: 5286 | H135: 38441 | I135: -8742 | J135: -5537 | K135: 1881
A136: Skat af årets resultat | B136: -321516 | C136: -193058 | D136: -174392 | E136: -239280 | F136: -210007 | G136: -201575 | H136: -131833 | I136: -192324 | J136: -148202 | K136: -130539
A138: Ændring af egenkapital fra drift, privat og skat | B138: 1913402 | C138: 61051 | D138: 38804 | E138: 96740 | F138: 48402 | G138: 75656 | H138: 15219 | I138: -20283 | J138: 48509 | K138: 12883
A139: Regulering ialt fra resultat | B139: -271286 | C139: 15219 | D139: -15110 | E139: 19019 | F139: -10028 | G139: 28110 | H139: 163 | I139: -4635 | J139: -12788 | K139: -40942
A140: Værdireguleringer | B140: 36758 | C140: 52662 | D140: -17418 | E140: -566 | F140: -43978 | G140: -18935 | H140: -11782 | I140: 110452 | J140: -12290 | K140: -210866
A141: Pensionsindbetaling | B141: -15757 | C141: -12863 | D141: -16638 | E141: -15828 | F141: -37984 | G141: -13372 | H141: -9400 | I141: -19844 | J141: -18581 | K141: -14882
A142: Øvrige egenkapitalbevægelser | B142: 0 | C142: 0 | D142: 0 | E142: 0 | F142: 0 | G142: 0 | H142: 0 | I142: 0 | J142: 0 | K142: 0
A144: Ændring af egenkapital | B144: 1663118 | C144: 116068 | D144: -10361 | E144: 99365 | F144: -43588 | G144: 71459 | H144: -5799 | I144: 71196 | J144: 8253 | K144: -256744
A146: Egenkapital primo | B146: 2641174 | C146: 3376516 | D146: 3598443 | E146: 3627332 | F146: 3358958 | G146: 3963903 | H146: 3792956 | I146: 4339986 | J146: 4053600 | K146: 4908960
A148: Egenkapital ultimo | B148: 4304292 | C148: 3492586 | D148: 3588083 | E148: 3726698 | F148: 3315372 | G148: 4033740 | H148: 3787158 | I148: 4411183 | J148: 4061853 | K148: 4652216
A150: PENGEBINDING
A152: Årets resultat før skat | B152: 468062 | C152: 535234 | D152: 463965 | E152: 673433 | F152: 566005 | G152: 634219 | H152: 491197 | I152: 493910 | J152: 508211 | K152: 413235
A154: Værdiændring besætning/beholdning | B154: 18601 | C154: 9924 | D154: 16427 | E154: 5759 | F154: 12284 | G154: 10940 | H154: 0
A155: Afskrivninger m.v., landbrug | B155: 247458 | C155: 93928 | D155: 106967 | E155: 93188 | F155: 117425 | G155: 95628 | H155: 122299 | I155: 132659 | J155: 110951 | K155: 114449
A156: Afskrivninger andre erhverv | B156: -69704 | C156: 8061 | D156: 11034 | E156: 11753 | F156: 5201 | G156: 4071 | H156: 8835 | I156: 2981 | J156: 5795 | K156: 4982
A157: Regulering I/S | B157: -18093 | C157: -21181 | D157: -4821 | E157: -6750 | F157: 0 | G157: 0 | H157: 0 | I157: 789 | J157: 466 | K157: 506
A158: Gevinst/tab finansaktiver | B158: 2094 | C158: -667 | D158: -324 | E158: 39 | F158: -351 | G158: -252 | H158: 2958 | I158: -69 | J158: -75 | K158: 1117
A159: Urealiseret regulering finansaktiver | B159: 4058 | C159: -15812 | D159: 13279 | E159: -4680 | F159: -1691 | G159: -8202 | H159: -6916 | I159: -17343 | J159: -6468 | K159: 17513
A160: Gevinst/tab gæld | B160: 1860 | C160: 7526 | D160: 10595 | E160: -1057 | F160: -1933 | G160: 4495 | H160: 3733 | I160: 1012 | J160: 7794 | K160: 228
A161: Urealiseret regulering gæld | B161: -649 | C161: 225 | D161: 518 | E161: 1453 | F161: 5531 | G161: -11926 | H161: 6093 | I161: -4812 | J161: -10020 | K161: -18571
A162: Øvrige tilbageførsler | B162: 42732 | C162: 376 | D162: 1419 | E162: 52 | F162: 0 | G162: 843 | H162: -109
A163: Tilbageførsel i alt | B163: 228357 | C163: 82380 | D163: 155094 | E163: 96850 | F163: 136465 | G163: 84658 | H163: 136893 | I163: 115216 | J163: 128483 | K163: 157367
A165: Betalt skat | B165: -258933 | C165: -160436 | D165: -174137 | E165: -215815 | F165: -212886 | G165: -206861 | H165: -170273 | I165: -183582 | J165: -142665 | K165: -132420
A166: Privat | B166: -228407 | C166: -248295 | D166: -264916 | E166: -292415 | F166: -307125 | G166: -295268 | H166: -292884 | I166: -304170 | J166: -303113 | K166: -293549
A167: Afskrivninger privat tlbf. | B167: 144112 | C167: 13592 | D167: 23548 | E167: 23760 | F167: 16697 | G167: 20195 | H167: 19655 | I167: 23648 | J167: 24929 | K167: 23463
A168: Formueindtægter/-udgifter | B168: -12708 | C168: -16675 | D168: 90 | E168: -16030 | F168: -10499 | G168: -33610 | H168: -51098 | I168: -30319 | J168: -32000 | K168: -27150
A169: Pensionsindbetaling | B169: -15757 | C169: -12863 | D169: -16638 | E169: -15828 | F169: -7438 | G169: -13372 | H169: -16253 | I169: -19844 | J169: -18581 | K169: -14882
A170: Privat udtræk, skat og pension i alt | B170: -371692 | C170: -424677 | D170: -432053 | E170: -516328 | F170: -521251 | G170: -528916 | H170: -510853 | I170: -506703 | J170: -460983 | K170: -434870
A172: Indskud/udlodning mv interessentskaber/selskaber | B172: 1732123 | C172: 7217 | D172: 4305 | E172: 707 | F172: 0 | G172: 2 | H172: 2 | I172: 0 | J172: 0 | K172: 1871
A174: Til invest og afdrag | B174: 2056849 | C174: 200154 | D174: 191312 | E174: 254662 | F174: 181220 | G174: 189964 | H174: 117237
A176: Besætning (realforskydning) | B176: 215037 | C176: 15507 | D176: 4755 | E176: -17857 | F176: 14541 | G176: -21322 | H176: 19377 | I176: -9770 | J176: -5049 | K176: -25633
A177: Beholdninger (realforskydninger) | B177: 125990 | C177: -37334 | D177: 30618 | E177: -11507 | F177: 9118 | G177: 17812 | H177: -7645 | I177: -578 | J177: -5604 | K177: 4409
A178: Flerårige afgrøder | B178: 0 | C178: 0 | D178: 0 | E178: 0 | F178: 0 | G178: 0 | H178: 0 | I178: 0 | J178: 0 | K178: 0
A180: Likviditet før anlægsinvesteringer | B180: 2397877 | C180: 178327 | D180: 226686 | E180: 225297 | F180: 204879 | G180: 186454 | H180: 128970 | I180: 92075 | J180: 165058 | K180: 114508
A182: Investeringer
A183: Jord | B183: 3274303 | C183: -58183 | D183: -154 | E183: -79140 | F183: -19191 | G183: 12445 | H183: -1923 | I183: 63524 | J183: -78098 | K183: -6204
A184: Immaterielle aktiver | B184: 270 | C184: -182 | D184: -305 | E184: -346 | F184: -699 | G184: 418 | H184: 1992 | I184: -2646 | J184: 2581 | K184: 7865
A185: Grundforbedring | B185: -1142 | C185: -1870 | D185: -1097 | E185: -724 | F185: -556 | G185: -408 | H185: -3728 | I185: -1852 | J185: -464 | K185: -949
A186: Stamplanter | B186: 0 | C186: 0 | D186: 0 | E186: 0 | F186: 0 | G186: 0 | H186: 0
A187: Driftsbygninger | B187: 581382 | C187: -8349 | D187: -16138 | E187: -48792 | F187: -14057 | G187: -13263 | H187: -20698 | I187: -62586 | J187: -36180 | K187: -56008
A188: Inventar markbrug | B188: 10733 | C188: -53165 | D188: -25054 | E188: -55374 | F188: -34179 | G188: -32382 | H188: -27952 | I188: -20274 | J188: -37986 | K188: -25094
A189: Inventar husdyrbrug | B189: 189742 | C189: -5721 | D189: -23267 | E189: -34132 | F189: -12850 | G189: -5274 | H189: -8432 | I189: -13511 | J189: -17633 | K189: -12395
A190: Inventar andet | B190: 0 | C190: 0 | D190: 0 | E190: -48 | F190: 235 | G190: 13 | H190: -17482 | I190: 135 | J190: -1339 | K190: -529
A191: Beboelse, landbrug | B191: 242860 | C191: -4882 | D191: -2812 | E191: -50752 | F191: -43300 | G191: -6699 | H191: -20893 | I191: -41647 | J191: -12876 | K191: -35259
A192: Private aktiver | B192: -33231 | C192: 5718 | D192: -63328 | E192: 290176 | F192: -49974 | G192: -28449 | H192: -20437 | I192: -24876 | J192: -36023 | K192: -18188
A193: Aktiver udenfor landbrug | B193: 79200 | C193: -1516 | D193: -13292 | E193: 11322 | F193: -10434 | G193: -8690 | H193: -35984 | I193: -2290 | J193: -8720 | K193: -40074
A194: Investeringer ialt | B194: 4344116 | C194: -128149 | D194: -145447 | E194: -288234 | F194: -185005 | G194: -82290 | H194: -155537 | I194: -106025 | J194: -226737 | K194: -186834
A196: Likviditetsoverskud/-behov | B196: 6741993 | C196: 50179 | D196: 81238 | E196: -62936 | F196: 19874 | G196: 104165 | H196: -26567 | I196: -13949 | J196: -61679 | K196: -72327
A198: Ændring finansaktiver og gæld
A199: Tilgodehav. og værdipapirer | B199: -91407 | C199: -85358 | D199: -30577 | E199: -32633 | F199: 434 | G199: -7267 | H199: 29994 | I199: 20422 | J199: -42642 | K199: 19306
A200: Realkreditinstitutter | B200: -3469233 | C200: 54662 | D200: 61581 | E200: -2814366 | F200: 9120 | G200: -18477 | H200: -20074 | I200: -2947196 | J200: -3101511 | K200: -3045358
A201: Pengeinstitutter lån, netto | B201: -2672119 | C201: -41225 | D201: 3050 | E201: -66178 | F201: -52937 | G201: -45640 | H201: 19302 | I201: -42868 | J201: 77975 | K201: -15297
